College_Name,Check_Number,Payee,Date,Amount,Funding_Source,Purpose
Jefferson State CC,526120,Alabama Industrial Supplies ,10/3/2022,804.24,Unrestricted Shelby Campus,Materials and Supplies - MS
Jefferson State CC,526121,Alabama Power Company ,10/3/2022,10190.01,Unrestricted Jefferson Campus,Electricity - UC
Jefferson State CC,526121,Alabama Power Company ,10/3/2022,9431.12,Unrestricted St. Clair Campus,Electricity - UC
Jefferson State CC,526122,Alabama Power Company ,10/3/2022,1737.03,Unrestricted Shelby Campus,Electricity - UC
Jefferson State CC,526123,Alabama Power Company ,10/3/2022,1285.6,Unrestricted Jefferson Campus,Electricity - UC
Jefferson State CC,526124,Alabama Power Company ,10/3/2022,1727.35,Unrestricted Shelby Campus,Electricity - UC
Jefferson State CC,526125,AT&T ,10/3/2022,276.06,Unrestricted Shelby Campus,Landline Phones - UC
Jefferson State CC,526126,AT&T ,10/3/2022,4484.16,Unrestricted Jefferson Campus,Wireless Phones - UC
Jefferson State CC,526127,AT&T ,10/3/2022,52.47,Unrestricted Shelby Campus,Landline Phones - UC
Jefferson State CC,526128,AT&T ,10/3/2022,67.35,Unrestricted St. Clair Campus,Landline Phones - UC
Jefferson State CC,526129,AutoZone ,10/3/2022,112.92,R&R Jefferson Campus ,Materials and Supplies - MS
Jefferson State CC,526130,Bigbee Leah,10/3/2022,328,Unrestricted Shared Services,Materials and Supplies - MS
Jefferson State CC,526130,Bigbee Leah,10/3/2022,142.88,Unrestricted Shared Services,Mileage - IS
Jefferson State CC,526131,Blackmon Archie,10/3/2022,135,AE-Federal Regular 2XX1-2XX2,Other Travel Expenses - IS
Jefferson State CC,526132,Blackmon Jake,10/3/2022,918,Unrestricted Chilton Campus,Other Professional Fees - PS
Jefferson State CC,526133,Bobo David,10/3/2022,104.25,Unrestricted Shared Services,Conus (meals) - IS
Jefferson State CC,526133,Bobo David,10/3/2022,502.7,Unrestricted Shared Services,Lodging - IS
Jefferson State CC,526133,Bobo David,10/3/2022,366,Unrestricted Shared Services,Mileage - IS
Jefferson State CC,526134,Burroughs Kelley,10/3/2022,121.88,Unrestricted Jefferson Campus,Mileage - IS
Jefferson State CC,526135,CDW Government Inc ,10/3/2022,150.12,Unrestricted Shared Services,Materials and Supplies - MS
Jefferson State CC,526136,Chamberlain Cassandra,10/3/2022,129.63,Unrestricted Shelby Campus,Mileage - IS
Jefferson State CC,526137,Cohen Carnaggio Reynolds Inc ,10/3/2022,2572.53,R&R Jefferson Campus ,Construction in Progress - CE
Jefferson State CC,526138,Cummings Frances,10/3/2022,37.5,Unrestricted Shelby Campus,Mileage - IS
Jefferson State CC,526139,Davenport Samuel,10/3/2022,405,Unrestricted Chilton Campus,Other Professional Fees - PS
Jefferson State CC,526140,Dawkins Stephen,10/3/2022,104.25,Unrestricted Shared Services,Conus (meals) - IS
Jefferson State CC,526140,Dawkins Stephen,10/3/2022,502.7,Unrestricted Shared Services,Lodging - IS
Jefferson State CC,526140,Dawkins Stephen,10/3/2022,434.63,Unrestricted Shared Services,Mileage - IS
Jefferson State CC,526141,Elliott Cindy,10/3/2022,199.99,Unrestricted Shelby Campus,Registration Fees- IS
Jefferson State CC,526142,Ennis Jzyk,10/3/2022,811.69,Unrestricted Jefferson Campus,Mileage - IS
Jefferson State CC,526142,Ennis Jzyk,10/3/2022,340,Unrestricted Jefferson Campus,Overnight (non tax per diem)- IS
Jefferson State CC,526143,Evans Meats Inc ,10/3/2022,742.53,Unrestricted Shelby Campus,Culinary Consumables
Jefferson State CC,526144,Federal Express Corporation ,10/3/2022,16.7,Unrestricted Shared Services,Freight - OOS
Jefferson State CC,526145,Fisher Scientific ,10/3/2022,1987.5,Dual Enrollment  Sch. 2XX1-2XX2,Materials and Supplies - MS
Jefferson State CC,526145,Fisher Scientific ,10/3/2022,2877.8,Dual Enrollment  Sch. 2XX1-2XX2,Technology - non capitalized - MS
Jefferson State CC,526145,Fisher Scientific ,10/3/2022,3810.18,Unrestricted Jefferson Campus,Materials and Supplies - MS
Jefferson State CC,526145,Fisher Scientific ,10/3/2022,534.39,Unrestricted Shelby Campus,Materials and Supplies - MS
Jefferson State CC,526146,Fisher Scientific ,10/3/2022,5463.04,Unrestricted St. Clair Campus,Materials and Supplies - MS
Jefferson State CC,526147,Global Fire Sprinklers LLC ,10/3/2022,610,R&R Jefferson Campus ,Maintenance & Repairs  - OOS
Jefferson State CC,526148,Greene Greta,10/3/2022,524.31,Unrestricted Shared Services,Mileage - IS
Jefferson State CC,526149,Gulf Ice Systems Inc. ,10/3/2022,2759.2,Vocational Ed/CTE X1-X2,Equipment - non capitalized - MS
Jefferson State CC,526150,Gulf States Distributors ,10/3/2022,2552,Unrestricted Shared Services,Materials and Supplies - MS
Jefferson State CC,526151,Harmon Rachel,10/3/2022,333,Unrestricted Chilton Campus,Other Professional Fees - PS
Jefferson State CC,526152,Hill Darian,10/3/2022,1350,ARC Driving on Road to Success,Other Contractual Services - PS
Jefferson State CC,526153,Hill-Rom Company Inc. ,10/3/2022,1443.79,Unrestricted Shelby Campus,Maintenance & Repairs  - OOS
Jefferson State CC,526154,Home Depot U.S.A. Inc ,10/3/2022,812,Unrestricted Jefferson Campus,Materials and Supplies - MS
Jefferson State CC,526155,Home Depot U.S.A. Inc ,10/3/2022,245.04,R&R Shelby Campus ,Maintenance & Repairs  - OOS
Jefferson State CC,526155,Home Depot U.S.A. Inc ,10/3/2022,97.2,Unrestricted Shared Services,Materials and Supplies - MS
Jefferson State CC,526156,Hultgren Leisha,10/3/2022,261.62,Payroll Clearing Fund,Payroll Clearing
Jefferson State CC,526157,Imperial Bag & Paper Co. LLC ,10/3/2022,615.49,Unrestricted Shelby Campus,Materials and Supplies - MS
Jefferson State CC,526158,Imperial Imaging Technology LLC ,10/3/2022,608.25,Unrestricted Shelby Campus,Maintenance & Repairs  - OOS
Jefferson State CC,526159,Jones Marvin,10/3/2022,98.75,Unrestricted Jefferson Campus,Mileage - IS
Jefferson State CC,526159,Jones Marvin,10/3/2022,2,Unrestricted Jefferson Campus,Other Travel Expenses - IS
Jefferson State CC,526160,Jones Oniki,10/3/2022,30,Unrestricted Shared Services,Mileage - IS
Jefferson State CC,526161,K & L Group LLC ,10/3/2022,12995,R&R St. Clair Campus ,Maintenance & Repairs  - OOS
Jefferson State CC,526162,Leadership St. Clair County Inc ,10/3/2022,600,Unrestricted Shared Services,Professional Development - PS
Jefferson State CC,526163,Manufacturing Skill Standards Council ,10/3/2022,7380,ICI Certifications 2XX1-2XX2,Materials and Supplies - MS
Jefferson State CC,526164,Marcus Service & Solutions LLC ,10/3/2022,1087,R&R Jefferson Campus ,Maintenance & Repairs  - OOS
Jefferson State CC,526165,Meeks Environmental Services LLC ,10/3/2022,1446.38,R&R Shelby Campus ,Maintenance & Repairs  - OOS
Jefferson State CC,526166,Mims Wrecker Service ,10/3/2022,248.09,Unrestricted Chilton Campus,Maintenance & Repairs  - OOS
Jefferson State CC,526167,Multi Skill Training Services Inc. ,10/3/2022,21700,Vocational Ed/CTE X1-X2,Furniture and Equip $5K - $25K - CE
Jefferson State CC,526168,Nelbran Glass LLC ,10/3/2022,1780,R&R Jefferson Campus ,Maintenance & Repairs  - OOS
Jefferson State CC,526169,Office Depot ,10/3/2022,2139.12,Unrestricted Jefferson Campus,Materials and Supplies - MS
Jefferson State CC,526169,Office Depot ,10/3/2022,943,Unrestricted Shared Services,Materials and Supplies - MS
Jefferson State CC,526169,Office Depot ,10/3/2022,818.52,Unrestricted Shelby Campus,Materials and Supplies - MS
Jefferson State CC,526169,Office Depot ,10/3/2022,609.79,Unrestricted St. Clair Campus,Materials and Supplies - MS
Jefferson State CC,526170,Office Depot ,10/3/2022,138.04,Unrestricted Jefferson Campus,Printing and Binding - OOS
Jefferson State CC,526170,Office Depot ,10/3/2022,109.15,Unrestricted Shared Services,Printing and Binding - OOS
Jefferson State CC,526170,Office Depot ,10/3/2022,69.02,Unrestricted Shelby Campus,Printing and Binding - OOS
Jefferson State CC,526171,Pardazi Behnazsadat,10/3/2022,393.75,Unrestricted Shared Services,Mileage - IS
Jefferson State CC,526172,Phi Theta Kappa ,10/3/2022,2250,Unrestricted Jefferson Campus,Registration Fees- OS
Jefferson State CC,526173,Pocket Nurse Enterprises LLC ,10/3/2022,1056,Dual Enrollment  Sch. 2XX1-2XX2,Technology - non capitalized - MS
Jefferson State CC,526173,Pocket Nurse Enterprises LLC ,10/3/2022,6904.1,ICI Equip WFD Initiative,Materials and Supplies - MS
Jefferson State CC,526173,Pocket Nurse Enterprises LLC ,10/3/2022,84,Unrestricted Jefferson Campus,Materials and Supplies - MS
Jefferson State CC,526174,Regional Produce Distributors LLC ,10/3/2022,691.27,Unrestricted Shelby Campus,Culinary Consumables
Jefferson State CC,526175,Rittenhouse ,10/3/2022,400,Unrestricted Shared Services,Technology - non capitalized - MS
Jefferson State CC,526176,Roseberry Tara,10/3/2022,14,Unrestricted Shared Services,Mileage - IS
Jefferson State CC,526177,S & S Automotive LLC ,10/3/2022,7674.16,R&R Jefferson Campus ,Maintenance & Repairs  - OOS
Jefferson State CC,526178,Scarbrough William,10/3/2022,243,Unrestricted Chilton Campus,Other Professional Fees - PS
Jefferson State CC,526179,Sherwin Williams Company ,10/3/2022,380.46,R&R Jefferson Campus ,Maintenance & Repairs  - OOS
Jefferson State CC,526180,Shobe Phillip,10/3/2022,267.1,Unrestricted Shared Services,Mileage - IS
Jefferson State CC,526181,Southern Assoc of Colleges & Schools ,10/3/2022,550,Unrestricted Chilton Campus,Registration Fees- OS
Jefferson State CC,526181,Southern Assoc of Colleges & Schools ,10/3/2022,550,Unrestricted Distance Ed,Registration Fees- OS
Jefferson State CC,526181,Southern Assoc of Colleges & Schools ,10/3/2022,550,Unrestricted Jefferson Campus,Registration Fees- OS
Jefferson State CC,526181,Southern Assoc of Colleges & Schools ,10/3/2022,3690,Unrestricted Shared Services,Registration Fees- OS
Jefferson State CC,526181,Southern Assoc of Colleges & Schools ,10/3/2022,1650,Unrestricted Shelby Campus,Registration Fees- OS
Jefferson State CC,526181,Southern Assoc of Colleges & Schools ,10/3/2022,550,Unrestricted St. Clair Campus,Registration Fees- OS
Jefferson State CC,526182,Southern Assoc of Colleges & Schools ,10/3/2022,500,Unrestricted Shelby Campus,Accreditation Expense - PS
Jefferson State CC,526183,Spire Alabama Inc. ,10/3/2022,6421.1,Unrestricted Chilton Campus,Gas & Heating Fuel - UC
Jefferson State CC,526183,Spire Alabama Inc. ,10/3/2022,11713.79,Unrestricted Jefferson Campus,Gas & Heating Fuel - UC
Jefferson State CC,526183,Spire Alabama Inc. ,10/3/2022,8118.61,Unrestricted Shelby Campus,Gas & Heating Fuel - UC
Jefferson State CC,526183,Spire Alabama Inc. ,10/3/2022,33.19,Unrestricted St. Clair Campus,Gas & Heating Fuel - UC
Jefferson State CC,526184,Staples Contract & Commercial Inc ,10/3/2022,182,ARC Driving on Road to Success,Materials and Supplies - MS
Jefferson State CC,526184,Staples Contract & Commercial Inc ,10/3/2022,641.03,Unrestricted Jefferson Campus,Materials and Supplies - MS
Jefferson State CC,526184,Staples Contract & Commercial Inc ,10/3/2022,1456.8,Unrestricted Shared Services,Materials and Supplies - MS
Jefferson State CC,526184,Staples Contract & Commercial Inc ,10/3/2022,773.84,Unrestricted Shelby Campus,Materials and Supplies - MS
Jefferson State CC,526184,Staples Contract & Commercial Inc ,10/3/2022,72.74,Unrestricted St. Clair Campus,Materials and Supplies - MS
Jefferson State CC,526185,Triple Point Industries LLC ,10/3/2022,2115,Unrestricted Jefferson Campus,Maintenance & Repairs  - OOS
Jefferson State CC,526186,United Trophy Company ,10/3/2022,91,Unrestricted Shared Services,Materials and Supplies - MS
Jefferson State CC,526186,United Trophy Company ,10/3/2022,40.5,Unrestricted Shelby Campus,Materials and Supplies - MS
Jefferson State CC,526187,US Foods Inc. ,10/3/2022,1689.96,Unrestricted Shelby Campus,Culinary Consumables
Jefferson State CC,526188,Varsity Brands Holding Co. Inc. ,10/3/2022,1311.99,Unrestricted Shared Services,Materials and Supplies - MS
Jefferson State CC,526189,VIRCO Inc ,10/3/2022,3835.69,Unrestricted Shelby Campus,Materials and Supplies - MS
Jefferson State CC,526190,Ward's Natural Science ,10/3/2022,527.57,Unrestricted Jefferson Campus,Materials and Supplies - MS
Jefferson State CC,526191,Warrior Sign Source LLC ,10/3/2022,340,ARC Driving on Road to Success,Materials and Supplies - MS
Jefferson State CC,526192,Water Works & Sewer Board ,10/3/2022,4135.95,Unrestricted Shelby Campus,Water & Sewer - UC
Jefferson State CC,526193,Whittle Christopher,10/3/2022,189,Unrestricted Chilton Campus,Other Professional Fees - PS
Jefferson State CC,526194,Wilson Norman,10/3/2022,252,Unrestricted Chilton Campus,Other Professional Fees - PS
Jefferson State CC,526195,Wittichen Supply Company LLC ,10/3/2022,752.59,R&R Jefferson Campus ,Maintenance & Repairs  - OOS
Jefferson State CC,526232,Alabama Association on Higher Education and Disability ,10/10/2022,40,Unrestricted Shared Services,Memberships - PS
Jefferson State CC,526233,Alabama Banner Users Group ,10/10/2022,780,Unrestricted Shared Services,Registration Fees- IS
Jefferson State CC,526237,Alabama Funeral Directors Association ,10/10/2022,255,Unrestricted Jefferson Campus,Memberships - PS
Jefferson State CC,526240,American Culinary Federation ,10/10/2022,450,Miscellaneous Scholarship,Deposit Liabilities - AP
Jefferson State CC,526241,Argo Power Equipment ,10/10/2022,98.97,Unrestricted Jefferson Campus,Maintenance & Repairs  - OOS
Jefferson State CC,526242,AT&T ,10/10/2022,511.99,Unrestricted St. Clair Campus,Landline Phones - UC
Jefferson State CC,526243,AT&T ,10/10/2022,1551.11,Unrestricted St. Clair Campus,Landline Phones - UC
Jefferson State CC,526244,AT&T ,10/10/2022,872.58,Unrestricted Chilton Campus,Landline Phones - UC
Jefferson State CC,526244,AT&T ,10/10/2022,872.58,Unrestricted Jefferson Campus,Landline Phones - UC
Jefferson State CC,526244,AT&T ,10/10/2022,872.58,Unrestricted Shelby Campus,Landline Phones - UC
Jefferson State CC,526245,AT&T ,10/10/2022,511.99,Unrestricted Chilton Campus,Landline Phones - UC
Jefferson State CC,526245,AT&T ,10/10/2022,1024,Unrestricted Jefferson Campus,Landline Phones - UC
Jefferson State CC,526245,AT&T ,10/10/2022,512,Unrestricted Shelby Campus,Landline Phones - UC
Jefferson State CC,526246,Atlas Welding Supply Co. Inc. ,10/10/2022,1525,Unrestricted Jefferson Campus,Materials and Supplies - MS
Jefferson State CC,526247,Baza Services LLC ,10/10/2022,8406.38,Unrestricted Chilton Campus,Maintenance & Repairs  - OOS
Jefferson State CC,526247,Baza Services LLC ,10/10/2022,15850.86,Unrestricted Jefferson Campus,Maintenance & Repairs  - OOS
Jefferson State CC,526247,Baza Services LLC ,10/10/2022,12902.56,Unrestricted Shelby Campus,Maintenance & Repairs  - OOS
Jefferson State CC,526249,Bolton Christie,10/10/2022,50.63,Unrestricted Shelby Campus,Mileage - IS
Jefferson State CC,526250,Booth Jennifer,10/10/2022,114.75,Unrestricted Shared Services,Conus (meals) - IS
Jefferson State CC,526250,Booth Jennifer,10/10/2022,381.94,Unrestricted Shared Services,Lodging - IS
Jefferson State CC,526250,Booth Jennifer,10/10/2022,351.24,Unrestricted Shared Services,Mileage - IS
Jefferson State CC,526251,Caskey Connie,10/10/2022,42.5,Unrestricted Shelby Campus,Mileage - IS
Jefferson State CC,526253,City of Pell City ,10/10/2022,149.8,Unrestricted St. Clair Campus,Water & Sewer - UC
Jefferson State CC,526254,City of Pell City ,10/10/2022,1154.14,Unrestricted St. Clair Campus,Water & Sewer - UC
Jefferson State CC,526255,Creel Sarah,10/10/2022,139.31,Unrestricted Shelby Campus,Mileage - IS
Jefferson State CC,526256,DataArc LLC ,10/10/2022,1300,Unrestricted Shelby Campus,Other Professional Fees - PS
Jefferson State CC,526257,Deason Vicki,10/10/2022,120.88,Unrestricted Jefferson Campus,Mileage - IS
Jefferson State CC,526258,Decola Anthony,10/10/2022,1090.82,R&R Jefferson Campus ,Maintenance & Repairs  - OOS
Jefferson State CC,526259,Diversified Elevator Service & Equipment Company Inc. ,10/10/2022,2380,R&R Jefferson Campus ,Maintenance & Repairs  - OOS
Jefferson State CC,526260,Evans Meats Inc ,10/10/2022,317.63,Unrestricted Shelby Campus,Culinary Consumables
Jefferson State CC,526261,Ginas Gallow Elizabeth,10/10/2022,7.31,Unrestricted Shelby Campus,Mileage - IS
Jefferson State CC,526262,Global Fire Sprinklers LLC ,10/10/2022,2487,R&R Jefferson Campus ,Maintenance & Repairs  - OOS
Jefferson State CC,526262,Global Fire Sprinklers LLC ,10/10/2022,542,R&R Shelby Campus ,Maintenance & Repairs  - OOS
Jefferson State CC,526264,Hill Candance,10/10/2022,73.75,Unrestricted Jefferson Campus,Mileage - IS
Jefferson State CC,526267,M-POWER Ministries ,10/10/2022,2958,Spcl Pops Ind M-Power RTW 21-22,Other Contractual Services - PS
Jefferson State CC,526268,Marcus Service & Solutions LLC ,10/10/2022,91257.74,R&R Jefferson Campus ,Maintenance & Repairs  - OOS
Jefferson State CC,526269,Multi Skill Training Services Inc. ,10/10/2022,788.65,Vocational Ed/CTE X1-X2,Furniture and Equip $5K - $25K - CE
Jefferson State CC,526270,Naugher Leslie,10/10/2022,279.98,Unrestricted Shelby Campus,Registration Fees- IS
Jefferson State CC,526271,Nelbran Glass LLC ,10/10/2022,2120,R&R Jefferson Campus ,Maintenance & Repairs  - OOS
Jefferson State CC,526277,Omnilert LLC ,10/10/2022,9900,Unrestricted Shared Services,Technology - non capitalized - MS
Jefferson State CC,526278,Owens Landscape Group LLC ,10/10/2022,2243.33,Unrestricted Chilton Campus,Maintenance & Repairs  - OOS
Jefferson State CC,526278,Owens Landscape Group LLC ,10/10/2022,2895.83,Unrestricted Shelby Campus,Maintenance & Repairs  - OOS
Jefferson State CC,526278,Owens Landscape Group LLC ,10/10/2022,916.67,Unrestricted St. Clair Campus,Maintenance & Repairs  - OOS
Jefferson State CC,526279,Pritchard Industries Southeast LLC ,10/10/2022,3180,Unrestricted Jefferson Campus,Maintenance & Repairs  - OOS
Jefferson State CC,526279,Pritchard Industries Southeast LLC ,10/10/2022,3600,Unrestricted St. Clair Campus,Maintenance & Repairs  - OOS
Jefferson State CC,526280,Publix Super Markets Inc ,10/10/2022,215.16,Unrestricted Shelby Campus,Culinary Consumables
Jefferson State CC,526281,Regional Produce Distributors LLC ,10/10/2022,1042.2,Unrestricted Shelby Campus,Culinary Consumables
Jefferson State CC,526283,Robinson Darryl,10/10/2022,82.88,Unrestricted Shared Services,Mileage - IS
Jefferson State CC,526283,Robinson Darryl,10/10/2022,170,Unrestricted Shared Services,Overnight (non tax per diem)- IS
Jefferson State CC,526284,S & S Automotive LLC ,10/10/2022,683.91,R&R Jefferson Campus ,Maintenance & Repairs  - OOS
Jefferson State CC,526285,Southwest Water Company ,10/10/2022,1630.8,Unrestricted Shelby Campus,Water & Sewer - UC
Jefferson State CC,526286,Staples Contract & Commercial Inc ,10/10/2022,124.91,Unrestricted Jefferson Campus,Materials and Supplies - MS
Jefferson State CC,526286,Staples Contract & Commercial Inc ,10/10/2022,237.04,Unrestricted Shared Services,Materials and Supplies - MS
Jefferson State CC,526288,Sutton Edreama,10/10/2022,37.5,Unrestricted Shared Services,Mileage - IS
Jefferson State CC,526289,Sweatt Wendy,10/10/2022,106.44,Unrestricted Jefferson Campus,Mileage - IS
Jefferson State CC,526290,Townes Kevin,10/10/2022,41,Unrestricted Shelby Campus,Mileage - IS
Jefferson State CC,526293,University of Alabama at Birmingham ,10/10/2022,1445.16,Miscellaneous Scholarship,Deposit Liabilities - AP
Jefferson State CC,526294,University of Alabama Health Services Foundation P.C. ,10/10/2022,1600,Unrestricted Shelby Campus,Other Contractual Services - PS
Jefferson State CC,526295,US Foods Inc. ,10/10/2022,454.7,Unrestricted Shelby Campus,Culinary Consumables
Jefferson State CC,526296,Warren Germaine,10/10/2022,175,Unrestricted St. Clair Campus,Mileage - IS
Jefferson State CC,526297,Wyatt Heather,10/10/2022,20,Unrestricted Jefferson Campus,Mileage - IS
Jefferson State CC,526298,Wymer Douglas,10/10/2022,1990,Unrestricted Shared Services,Other Professional Fees - PS
Jefferson State CC,219133,Abad Fortunato,10/14/2022,801.12,Unrestricted Shared Services,Payroll
Jefferson State CC,219134,Akers Amber,10/14/2022,901.26,Unrestricted Shared Services,Payroll
Jefferson State CC,219135,Anzueto Kathryn,10/14/2022,467.32,Unrestricted Shared Services,Payroll
Jefferson State CC,219136,Bizzell Dorothy,10/14/2022,300.42,Unrestricted Shared Services,Payroll
Jefferson State CC,219137,Broome Kristy,10/14/2022,400.56,Unrestricted Shared Services,Payroll
Jefferson State CC,219138,Campbell Mae,10/14/2022,634.22,Unrestricted Shared Services,Payroll
Jefferson State CC,219139,Chen Ja Lin,10/14/2022,433.94,Unrestricted Shared Services,Payroll
Jefferson State CC,219140,Coleman Carolyn,10/14/2022,1068.16,Unrestricted Shared Services,Payroll
Jefferson State CC,219141,Richardson Hope,10/14/2022,1268.44,Unrestricted Shared Services,Payroll
Jefferson State CC,219142,Hobson Rachel,10/14/2022,417.25,Unrestricted Shared Services,Payroll
Jefferson State CC,219143,Cunningham Dana,10/14/2022,1268.44,Unrestricted Shared Services,Payroll
Jefferson State CC,219144,Duke Juanita,10/14/2022,801.12,Unrestricted Shared Services,Payroll
Jefferson State CC,219145,Dykes Betty,10/14/2022,570,Unrestricted Shared Services,Payroll
Jefferson State CC,219146,Edwards Melanie,10/14/2022,267.04,Unrestricted Shared Services,Payroll
Jefferson State CC,219147,Ellis April,10/14/2022,667.6,Unrestricted Shared Services,Payroll
Jefferson State CC,219148,Floyd Natalie,10/14/2022,854.53,Unrestricted Shared Services,Payroll
Jefferson State CC,219149,Givens Sarah,10/14/2022,801.12,Unrestricted Shared Services,Payroll
Jefferson State CC,219150,Gomez Joseph,10/14/2022,500.7,Unrestricted Shared Services,Payroll
Jefferson State CC,219151,Gonzalez Danielle,10/14/2022,1535.48,Unrestricted Shared Services,Payroll
Jefferson State CC,219152,Gregson Christa,10/14/2022,1268.44,Unrestricted Shared Services,Payroll
Jefferson State CC,219153,Hall Daniel,10/14/2022,200.28,Unrestricted Shared Services,Payroll
Jefferson State CC,219154,Ham Lora,10/14/2022,367.18,Unrestricted Shared Services,Payroll
Jefferson State CC,219155,Johnson Laurie,10/14/2022,667.6,Unrestricted Shared Services,Payroll
Jefferson State CC,219156,Jones Christina,10/14/2022,1552.17,Unrestricted Shared Services,Payroll
Jefferson State CC,219157,Jones D'Angelo,10/14/2022,934.64,Unrestricted Shared Services,Payroll
Jefferson State CC,219158,Keith Leigh,10/14/2022,283.73,Unrestricted Shared Services,Payroll
Jefferson State CC,219159,Kemp Shannon,10/14/2022,1034.78,Unrestricted Shared Services,Payroll
Jefferson State CC,219160,Liddle Anna,10/14/2022,650.91,Unrestricted Shared Services,Payroll
Jefferson State CC,219161,Lindsey Elizabeth,10/14/2022,550.77,Unrestricted Shared Services,Payroll
Jefferson State CC,219162,Lockhart Natalie,10/14/2022,801.12,Unrestricted Shared Services,Payroll
Jefferson State CC,219163,McEntire Ann,10/14/2022,216.97,Unrestricted Shared Services,Payroll
Jefferson State CC,219164,Miller Shaleen,10/14/2022,1268.44,Unrestricted Shared Services,Payroll
Jefferson State CC,219165,Pair Edward,10/14/2022,550.77,Unrestricted Shared Services,Payroll
Jefferson State CC,219166,Pickett Kimberly,10/14/2022,333.8,Unrestricted Shared Services,Payroll
Jefferson State CC,219167,Price Kelsey,10/14/2022,534.08,Unrestricted Shared Services,Payroll
Jefferson State CC,219168,Rhoden Lyndsie,10/14/2022,400.56,Unrestricted Shared Services,Payroll
Jefferson State CC,219169,Saemaldaher Melanie,10/14/2022,667.6,Unrestricted Shared Services,Payroll
Jefferson State CC,219170,Shepherd Ashley,10/14/2022,367.18,Unrestricted Shared Services,Payroll
Jefferson State CC,219171,Smith Kandice,10/14/2022,476.25,Unrestricted Shared Services,Payroll
Jefferson State CC,219172,Snipes Britney,10/14/2022,1268.44,Unrestricted Shared Services,Payroll
Jefferson State CC,219173,Stewart Amethyst,10/14/2022,1034.78,Unrestricted Shared Services,Payroll
Jefferson State CC,219174,Taylor Tamika,10/14/2022,1134.92,Unrestricted Shared Services,Payroll
Jefferson State CC,219175,Tubbs Carrie,10/14/2022,667.6,Unrestricted Shared Services,Payroll
Jefferson State CC,219176,Vanderbleek Natalie,10/14/2022,600.84,Unrestricted Shared Services,Payroll
Jefferson State CC,219177,Washington Felisa,10/14/2022,367.18,Unrestricted Shared Services,Payroll
Jefferson State CC,219178,Williams Ashley,10/14/2022,684.29,Unrestricted Shared Services,Payroll
Jefferson State CC,219179,Williams Donna,10/14/2022,1084.85,Unrestricted Shared Services,Payroll
Jefferson State CC,219180,Worsham Jessica,10/14/2022,667.6,Unrestricted Shared Services,Payroll
Jefferson State CC,219181,Hyde Natalie,10/14/2022,792,Unrestricted Shared Services,Payroll
Jefferson State CC,219182,Leach Brittany,10/14/2022,132,Unrestricted Shared Services,Payroll
Jefferson State CC,219183,Yates Lanette,10/14/2022,429,Unrestricted Shared Services,Payroll
Jefferson State CC,219184,Clark Stacy,10/14/2022,626.06,Unrestricted Shared Services,Payroll
Jefferson State CC,219185,Haywood James,10/14/2022,1088.8,Unrestricted Shared Services,Payroll
Jefferson State CC,219186,Kendrick Gary,10/14/2022,435.52,Unrestricted Shared Services,Payroll
Jefferson State CC,219187,King Dalton,10/14/2022,1007.14,Unrestricted Shared Services,Payroll
Jefferson State CC,219188,McDonnell Kyle,10/14/2022,1347.86,Unrestricted Shared Services,Payroll
Jefferson State CC,219189,McLaughlin Phillip,10/14/2022,217.76,Unrestricted Shared Services,Payroll
Jefferson State CC,219190,Nabors Stephen,10/14/2022,734.94,Unrestricted Shared Services,Payroll
Jefferson State CC,219191,Panepento Matthew,10/14/2022,1034.36,Unrestricted Shared Services,Payroll
Jefferson State CC,219192,Simmons Arlon,10/14/2022,1252.12,Unrestricted Shared Services,Payroll
Jefferson State CC,219193,Trammell Chase,10/14/2022,381.08,Unrestricted Shared Services,Payroll
Jefferson State CC,219194,Ward William,10/14/2022,1034.36,Unrestricted Shared Services,Payroll
Jefferson State CC,219195,Carroll Elizabeth,10/14/2022,1268.44,Unrestricted Shared Services,Payroll
Jefferson State CC,219196,Archie Ashley,10/14/2022,950,Unrestricted Shared Services,Payroll
Jefferson State CC,219197,Smith Lisa,10/14/2022,950,Unrestricted Shared Services,Payroll
Jefferson State CC,219198,Stephens Sheila,10/14/2022,1027.52,Unrestricted Shared Services,Payroll
Jefferson State CC,219199,Adams Kelly,10/14/2022,613.06,AE-Federal Regular 2XX1-2XX2,Payroll
Jefferson State CC,219200,Agee Teisha,10/14/2022,950,CAPTE-WIOA 22-23,Payroll
Jefferson State CC,219201,Arrowsmith Janice,10/14/2022,803.32,AE-Federal Regular 2XX1-2XX2,Payroll
Jefferson State CC,219202,Badio Jessical,10/14/2022,475.65,AE-Federal Regular 2XX1-2XX2,Payroll
Jefferson State CC,219203,Blackmon Archie,10/14/2022,401.66,AE-Federal Regular 2XX1-2XX2,Payroll
Jefferson State CC,219204,Brown Edith,10/14/2022,465.08,AE-State Regular 2XX1-2XX2,Payroll
Jefferson State CC,219205,Callins Lillian,10/14/2022,443.94,AE-Federal Regular 2XX1-2XX2,Payroll
Jefferson State CC,219206,Cochis Angela,10/14/2022,264.25,AE-Federal Regular 2XX1-2XX2,Payroll
Jefferson State CC,219207,Coleman Henry,10/14/2022,803.32,AE-Federal Regular 2XX1-2XX2,Payroll
Jefferson State CC,219208,Cook Kimberly,10/14/2022,613.06,AE-State Regular 2XX1-2XX2,Payroll
Jefferson State CC,219209,Davis Jeffrey,10/14/2022,935.34,AE-State Regular 2XX1-2XX2,Payroll
Jefferson State CC,219210,Hammonds Cindy,10/14/2022,718.76,AE-Federal Regular 2XX1-2XX2,Payroll
Jefferson State CC,219211,Hawkins Felita,10/14/2022,684,AE-State Regular 2XX1-2XX2,Payroll
Jefferson State CC,219212,Irby Helen,10/14/2022,338.24,AE-State Regular 2XX1-2XX2,Payroll
Jefferson State CC,219213,Malone Valencia,10/14/2022,739.9,AE-State Regular 2XX1-2XX2,Payroll
Jefferson State CC,219214,Markovitz Yevonne,10/14/2022,803.32,AE-State Regular 2XX1-2XX2,Payroll
Jefferson State CC,219215,Morgan Mary,10/14/2022,591.92,AE - State Inst'l 2XX1-2XX2,Payroll
Jefferson State CC,219216,Parr Michele,10/14/2022,718.76,AE-State Regular 2XX1-2XX2,Payroll
Jefferson State CC,219217,Pearson Regina,10/14/2022,592.8,AE-State Regular 2XX1-2XX2,Payroll
Jefferson State CC,219218,Riggins Resha,10/14/2022,380.52,AE-State Regular 2XX1-2XX2,Payroll
Jefferson State CC,219219,Roberts Barbara,10/14/2022,380.52,AE-State Regular 2XX1-2XX2,Payroll
Jefferson State CC,219220,Rudd Julia,10/14/2022,190.26,AE-State Regular 2XX1-2XX2,Payroll
Jefferson State CC,219221,Sanders Anthony Michael,10/14/2022,803.32,AE-Federal Regular 2XX1-2XX2,Payroll
Jefferson State CC,219222,Sheikh Linda,10/14/2022,528.5,AE-State Regular 2XX1-2XX2,Payroll
Jefferson State CC,219223,Skalac Robyn,10/14/2022,380.52,AE-State Regular 2XX1-2XX2,Payroll
Jefferson State CC,219224,Snider Ken,10/14/2022,934.83,AE-State Regular 2XX1-2XX2,Payroll
Jefferson State CC,219225,Spraberry Mollie,10/14/2022,660.24,AE-State Regular 2XX1-2XX2,Payroll
Jefferson State CC,219226,Sweatt Helen,10/14/2022,549.64,AE-State Regular 2XX1-2XX2,Payroll
Jefferson State CC,219227,Tucker Selesta,10/14/2022,253.68,AE-State Regular 2XX1-2XX2,Payroll
Jefferson State CC,219228,Vinson Phyllis,10/14/2022,507.36,AE-State Regular 2XX1-2XX2,Payroll
Jefferson State CC,219229,White Barbara,10/14/2022,761.04,AE-State Regular 2XX1-2XX2,Payroll
Jefferson State CC,219230,Wiginton Beverly,10/14/2022,549.64,AE-State Regular 2XX1-2XX2,Payroll
Jefferson State CC,219231,Foster Richard,10/14/2022,553.28,Unrestricted Shared Services,Payroll
Jefferson State CC,219232,Frank Theresa,10/14/2022,553.28,Unrestricted Shared Services,Payroll
Jefferson State CC,219233,Smith Victoria,10/14/2022,498.56,Unrestricted Shared Services,Payroll
Jefferson State CC,219234,Charping Ronda,10/14/2022,1135.68,Unrestricted Shared Services,Payroll
Jefferson State CC,219235,Begnaud Phillip,10/14/2022,1216,Unrestricted Shared Services,Payroll
Jefferson State CC,219236,O'Hern David,10/14/2022,570,Unrestricted Shared Services,Payroll
Jefferson State CC,219237,Addington Jennifer,10/14/2022,1580.8,Unrestricted Shared Services,Payroll
Jefferson State CC,219238,Baldwin Gennia,10/14/2022,624,Unrestricted Shared Services,Payroll
Jefferson State CC,219239,Barnes Wilbert,10/14/2022,416,Unrestricted Shared Services,Payroll
Jefferson State CC,219240,Bishop Patrick,10/14/2022,499.2,Unrestricted Shared Services,Payroll
Jefferson State CC,219241,Burgess Laura,10/14/2022,416,Unrestricted Shared Services,Payroll
Jefferson State CC,219242,Chappel Delena,10/14/2022,582.4,Unrestricted Shared Services,Payroll
Jefferson State CC,219243,Cobb Jonathan,10/14/2022,416,Unrestricted Shared Services,Payroll
Jefferson State CC,219244,Coleman Natalie,10/14/2022,499.2,Unrestricted Shared Services,Payroll
Jefferson State CC,219245,Fletcher La'Toya,10/14/2022,499.2,Unrestricted Shared Services,Payroll
Jefferson State CC,219246,Grace Tonya,10/14/2022,416,Unrestricted Shared Services,Payroll
Jefferson State CC,219247,Graves Candise,10/14/2022,249.6,Unrestricted Shared Services,Payroll
Jefferson State CC,219248,Gray Lisa,10/14/2022,249.6,Unrestricted Shared Services,Payroll
Jefferson State CC,219249,Hollingsworth Donna,10/14/2022,998.4,Unrestricted Shared Services,Payroll
Jefferson State CC,219250,Lee Hobert,10/14/2022,249.6,Unrestricted Shared Services,Payroll
Jefferson State CC,219251,McLain Christine,10/14/2022,1419.6,Women's Fund-Families Forward,Payroll
Jefferson State CC,219252,Mills Justin,10/14/2022,748.8,Unrestricted Shared Services,Payroll
Jefferson State CC,219253,Murphy Penny,10/14/2022,416,Unrestricted Shared Services,Payroll
Jefferson State CC,219254,Parsons Charles,10/14/2022,312,Unrestricted Shared Services,Payroll
Jefferson State CC,219255,Payne Angela,10/14/2022,1330,Unrestricted Shared Services,Payroll
Jefferson State CC,219256,Pullen Lacey,10/14/2022,832,Unrestricted Shared Services,Payroll
Jefferson State CC,219257,Russell Stephanie,10/14/2022,665.6,Unrestricted Shared Services,Payroll
Jefferson State CC,219258,Thomas Linda,10/14/2022,769.6,Unrestricted Shared Services,Payroll
Jefferson State CC,219259,Washington Ellise,10/14/2022,499.2,Unrestricted Shared Services,Payroll
Jefferson State CC,219260,Willis Erica,10/14/2022,492.96,Unrestricted Shared Services,Payroll
Jefferson State CC,219261,Winborn Jennifer,10/14/2022,291.2,Unrestricted Shared Services,Payroll
Jefferson State CC,219262,Busby Yvette,10/14/2022,988,Unrestricted Shared Services,Payroll
Jefferson State CC,219263,Jones Lesia,10/14/2022,570,Unrestricted Shared Services,Payroll
Jefferson State CC,219264,Glover Anita,10/14/2022,718.96,Unrestricted Shared Services,Payroll
Jefferson State CC,219265,Stewart Janice,10/14/2022,605.44,Unrestricted Shared Services,Payroll
Jefferson State CC,219266,Weems Bryant Denise,10/14/2022,595.98,Unrestricted Shared Services,Payroll
Jefferson State CC,219267,Amerson-Dobbs Jessica,10/14/2022,492,Unrestricted Shared Services,Payroll
Jefferson State CC,219268,Cannon Kimberly,10/14/2022,456,Unrestricted Shared Services,Payroll
Jefferson State CC,219269,Dancy Darryl,10/14/2022,492,Unrestricted Shared Services,Payroll
Jefferson State CC,219270,Gumbs Andrea,10/14/2022,492,Unrestricted Shared Services,Payroll
Jefferson State CC,219271,Hairston Ella,10/14/2022,468,Unrestricted Shared Services,Payroll
Jefferson State CC,219272,Moore Shanine,10/14/2022,296.02,Unrestricted Shared Services,Payroll
Jefferson State CC,219273,Payne Adrian,10/14/2022,492,Unrestricted Shared Services,Payroll
Jefferson State CC,219274,Smith Debra,10/14/2022,492,Unrestricted Shared Services,Payroll
Jefferson State CC,219275,Wood Kelly,10/14/2022,552,Unrestricted Shared Services,Payroll
Jefferson State CC,219276,Liddle Elizabeth,10/14/2022,75,Unrestricted Shared Services,Payroll
Jefferson State CC,219277,Wilson Candace,10/14/2022,465,Unrestricted Shared Services,Payroll
Jefferson State CC,219278,Allen Felicia,10/14/2022,456,Unrestricted Shared Services,Payroll
Jefferson State CC,219279,Allen Vicki,10/14/2022,456,Unrestricted Shared Services,Payroll
Jefferson State CC,219280,Carruba Lorrie,10/14/2022,456,Unrestricted Shared Services,Payroll
Jefferson State CC,219281,Cashmore Jeffrey,10/14/2022,456,Unrestricted Shared Services,Payroll
Jefferson State CC,219282,Collar Danielle,10/14/2022,570,Unrestricted Shared Services,Payroll
Jefferson State CC,219283,Cooper Aeneas,10/14/2022,399,Unrestricted Shared Services,Payroll
Jefferson State CC,219284,Dunning William,10/14/2022,504,Unrestricted Shared Services,Payroll
Jefferson State CC,219285,Duren Courtney,10/14/2022,216,Unrestricted Shared Services,Payroll
Jefferson State CC,219286,Dye Leah,10/14/2022,528,Unrestricted Shared Services,Payroll
Jefferson State CC,219287,Edwards Tracy,10/14/2022,420,Unrestricted Shared Services,Payroll
Jefferson State CC,219288,Jackson Madelyne,10/14/2022,462,Unrestricted Shared Services,Payroll
Jefferson State CC,219289,Key Jacob,10/14/2022,558,Unrestricted Shared Services,Payroll
Jefferson State CC,219290,Kirkland Olivia,10/14/2022,570,Unrestricted Shared Services,Payroll
Jefferson State CC,219291,Marbury Patricia,10/14/2022,570,Unrestricted Shared Services,Payroll
Jefferson State CC,219292,McDonald Timothy,10/14/2022,444,Unrestricted Shared Services,Payroll
Jefferson State CC,219293,Merritt Adrienne,10/14/2022,540,Unrestricted Shared Services,Payroll
Jefferson State CC,219294,Morgan Rickey,10/14/2022,432,Unrestricted Shared Services,Payroll
Jefferson State CC,219295,Putnam Patricia,10/14/2022,1216,Unrestricted Shared Services,Payroll
Jefferson State CC,219296,Rheaume Stephanie,10/14/2022,456,Unrestricted Shared Services,Payroll
Jefferson State CC,219297,Rivers Larry,10/14/2022,456,Unrestricted Shared Services,Payroll
Jefferson State CC,219298,Saylor Cleanese,10/14/2022,408,Unrestricted Shared Services,Payroll
Jefferson State CC,219299,White Sandra,10/14/2022,456,Unrestricted Shared Services,Payroll
Jefferson State CC,219300,Wilder Debra,10/14/2022,408,Unrestricted Shared Services,Payroll
Jefferson State CC,219301,Zandi Nader,10/14/2022,1216,Unrestricted Shared Services,Payroll
Jefferson State CC,219302,Ali Donna,10/14/2022,630,Unrestricted Shared Services,Payroll
Jefferson State CC,219303,Robinson Mattie,10/14/2022,570,Unrestricted Shared Services,Payroll
Jefferson State CC,219304,Brown-Ward Maurita,10/14/2022,288,Unrestricted Shared Services,Payroll
Jefferson State CC,219305,Crim Margaret,10/14/2022,665.6,Unrestricted Shared Services,Payroll
Jefferson State CC,219307,Kirk Willodean,10/14/2022,384,Unrestricted Shared Services,Payroll
Jefferson State CC,219308,Lewis Stephanie,10/14/2022,468,Unrestricted Shared Services,Payroll
Jefferson State CC,219309,Prevo Deborah,10/14/2022,570,Unrestricted Shared Services,Payroll
Jefferson State CC,219310,Gillham Martha,10/14/2022,503.5,Unrestricted Shared Services,Payroll
Jefferson State CC,219311,Allen Ryan,10/14/2022,288,Unrestricted Shared Services,Payroll
Jefferson State CC,219312,Burton Kenneth,10/14/2022,684,Unrestricted Shared Services,Payroll
Jefferson State CC,219313,Butler Neil,10/14/2022,432,Unrestricted Shared Services,Payroll
Jefferson State CC,219314,Chandler James,10/14/2022,560,Unrestricted Shared Services,Payroll
Jefferson State CC,219315,Channel Raymond,10/14/2022,810,Unrestricted Shared Services,Payroll
Jefferson State CC,219316,Crowe Jeffrey,10/14/2022,324,Unrestricted Shared Services,Payroll
Jefferson State CC,219317,Gibbs John,10/14/2022,576,Unrestricted Shared Services,Payroll
Jefferson State CC,219318,Harrell John,10/14/2022,686,Unrestricted Shared Services,Payroll
Jefferson State CC,219319,Harrell Ramona,10/14/2022,644,Unrestricted Shared Services,Payroll
Jefferson State CC,219320,Hedrick Charles,10/14/2022,648,Unrestricted Shared Services,Payroll
Jefferson State CC,219321,Hicks Alan,10/14/2022,864,Unrestricted Shared Services,Payroll
Jefferson State CC,219322,Howard Dwayne,10/14/2022,288,Unrestricted Shared Services,Payroll
Jefferson State CC,219323,Johnson Marsha,10/14/2022,240,Unrestricted Shared Services,Payroll
Jefferson State CC,219324,Lovelace Michael,10/14/2022,855,Unrestricted Shared Services,Payroll
Jefferson State CC,219325,Schnuelle Archie,10/14/2022,360,Unrestricted Shared Services,Payroll
Jefferson State CC,219326,Shobe Phillip,10/14/2022,1134,Unrestricted Shared Services,Payroll
Jefferson State CC,219327,Traywick Herbert,10/14/2022,532,Unrestricted Shared Services,Payroll
Jefferson State CC,219328,Turner Yolanda,10/14/2022,448,Unrestricted Shared Services,Payroll
Jefferson State CC,219329,Partain Mark,10/14/2022,760,Unrestricted Shelby Campus,Payroll
Jefferson State CC,219330,Steele Pamela,10/14/2022,503.5,Unrestricted Shared Services,Payroll
Jefferson State CC,219331,Jones Paul,10/14/2022,405,Unrestricted Shared Services,Payroll
Jefferson State CC,219332,Burge Kathy,10/14/2022,288,Unrestricted Shared Services,Payroll
Jefferson State CC,219333,Partain Daniel,10/14/2022,456,Unrestricted Shared Services,Payroll
Jefferson State CC,219334,Washington Sheila,10/14/2022,510,Unrestricted Shared Services,Payroll
Jefferson State CC,219335,Starnes Jane,10/14/2022,2598.58,Unrestricted Shared Services,Payroll
Jefferson State CC,219336,Self Bonnie,10/14/2022,2642.54,Unrestricted Shared Services,Payroll
Jefferson State CC,219337,Harris Seena,10/14/2022,2248.83,Unrestricted Shelby Campus,Payroll
Jefferson State CC,219338,Wallace Preston,10/14/2022,2727.42,Unrestricted Shared Services,Payroll
Jefferson State CC,219339,Ray Beth,10/14/2022,2029.92,Unrestricted Shared Services,Payroll
Jefferson State CC,219340,Brown Ami,10/14/2022,1410.54,Unrestricted Shared Services,Payroll
Jefferson State CC,219341,Deason Vicki,10/14/2022,1477.08,Unrestricted Distance Ed,Payroll
Jefferson State CC,219342,McLendon Rita,10/14/2022,2161.25,Unrestricted Shared Services,Payroll
Jefferson State CC,219343,Cox Melanie,10/14/2022,2248.83,Unrestricted Shared Services,Payroll
Jefferson State CC,219344,Boackle Emil,10/14/2022,1898.96,Unrestricted Shared Services,Payroll
Jefferson State CC,219345,Deloach Merissa,10/14/2022,1898.71,Unrestricted Shared Services,Payroll
Jefferson State CC,219346,Braswell Gail,10/14/2022,2073.67,Unrestricted Shared Services,Payroll
Jefferson State CC,219347,Lewis Andrea,10/14/2022,1723.83,Unrestricted Shared Services,Payroll
Jefferson State CC,219348,Cheeks Tammara,10/14/2022,1373.58,CAPTE-WIOA 22-23,Payroll
Jefferson State CC,219349,Geralds Jacqueline,10/14/2022,2336.38,AE-State Regular 2XX2-2XX3,Payroll
Jefferson State CC,219350,Finch Tamara,10/14/2022,1461.33,Unrestricted Shared Services,Payroll
Jefferson State CC,219351,Carmichael Ebonie,10/14/2022,1504.96,Unrestricted Shared Services,Payroll
Jefferson State CC,219352,Coker Pamela,10/14/2022,1592.54,Unrestricted Shared Services,Payroll
Jefferson State CC,219353,Roseberry Tara,10/14/2022,2161.25,Unrestricted Shared Services,Payroll
Jefferson State CC,219354,Cruso Lisa,10/14/2022,2161.25,Unrestricted Shared Services,Payroll
Jefferson State CC,219355,Hamilton-Williams Margaret,10/14/2022,2248.83,Unrestricted Shared Services,Payroll
Jefferson State CC,219356,Cooper Ginger,10/14/2022,2467.42,Unrestricted Shared Services,Payroll
Jefferson State CC,219357,Grady Octavia,10/14/2022,1854.88,Unrestricted Shelby Campus,Payroll
Jefferson State CC,219358,Naramore Anna,10/14/2022,2117.67,Unrestricted Shared Services,Payroll
Jefferson State CC,219359,Pugh Sandra,10/14/2022,2686.38,Unrestricted Shared Services,Payroll
Jefferson State CC,219360,Baker Precious,10/14/2022,1461.17,Unrestricted Shared Services,Payroll
Jefferson State CC,219361,Pickens Elizabeth,10/14/2022,2248.83,Unrestricted Shared Services,Payroll
Jefferson State CC,219362,Hughes Tina,10/14/2022,2336.38,Unrestricted Shared Services,Payroll
Jefferson State CC,219363,Turner Jeanie,10/14/2022,2759.53,Unrestricted Shared Services,Payroll
Jefferson State CC,219364,Anderson Davida,10/14/2022,1154.87,Unrestricted Shared Services,Payroll
Jefferson State CC,219365,Burney Roscelia,10/14/2022,2248.83,Unrestricted Shared Services,Payroll
Jefferson State CC,219366,Carpenter Valencia,10/14/2022,2030.04,Unrestricted Shared Services,Payroll
Jefferson State CC,219367,Castleberry James,10/14/2022,1417.33,Unrestricted Shared Services,Payroll
Jefferson State CC,219368,Collins Angela,10/14/2022,2809.05,Unrestricted Shared Services,Payroll
Jefferson State CC,219369,Douglas Susan,10/14/2022,1738.19,Unrestricted Shared Services,Payroll
Jefferson State CC,219370,Duncan Leconyea,10/14/2022,2117.67,Unrestricted Shared Services,Payroll
Jefferson State CC,219371,Foster Deborah,10/14/2022,1638.19,Unrestricted Shared Services,Payroll
Jefferson State CC,219372,Fraser Thompson Stacye,10/14/2022,2555,Unrestricted Shared Services,Payroll
Jefferson State CC,219373,Greene Greta,10/14/2022,1942.38,Unrestricted Shared Services,Payroll
Jefferson State CC,219374,Howard Amber,10/14/2022,1548.79,Unrestricted Shared Services,Payroll
Jefferson State CC,219375,Jones Juanita,10/14/2022,2117.67,Unrestricted Shared Services,Payroll
Jefferson State CC,219376,Kelley Pamela,10/14/2022,2778.11,Unrestricted Shared Services,Payroll
Jefferson State CC,219377,Kimble Lisa,10/14/2022,2598.58,Unrestricted Shared Services,Payroll
Jefferson State CC,219378,Minter Shondrika,10/14/2022,1986.13,Unrestricted Shared Services,Payroll
Jefferson State CC,219379,Pippens Amberetta,10/14/2022,2390.22,Unrestricted Shared Services,Payroll
Jefferson State CC,219380,Sipe James,10/14/2022,1636.29,Unrestricted Shared Services,Payroll
Jefferson State CC,219381,Smith Heather,10/14/2022,2161.25,Unrestricted Shared Services,Payroll
Jefferson State CC,219382,Stillwell Crystal,10/14/2022,2398.61,Unrestricted Shared Services,Payroll
Jefferson State CC,219383,Urbahns Laura,10/14/2022,2248.83,Unrestricted Shared Services,Payroll
Jefferson State CC,219384,Bautista Guzman Ramiro,10/14/2022,2229.25,Unrestricted Shared Services,Payroll
Jefferson State CC,219385,Chambers Lynn,10/14/2022,2029.92,AE-Federal Regular 2XX2-2XX3,Payroll
Jefferson State CC,219386,Harris John,10/14/2022,1854.75,Unrestricted Shared Services,Payroll
Jefferson State CC,219387,Hawkins Chelsie,10/14/2022,818.14,AE-State Regular 2XX2-2XX3,Payroll
Jefferson State CC,219387,Hawkins Chelsie,10/14/2022,818.15,Unrestricted Shared Services,Payroll
Jefferson State CC,219388,Clark Natalya,10/14/2022,2467.42,Unrestricted Shared Services,Payroll
Jefferson State CC,219389,Cobb Rose,10/14/2022,2467.21,Unrestricted Shared Services,Payroll
Jefferson State CC,219390,Ezell Laura,10/14/2022,1854.88,Unrestricted Shared Services,Payroll
Jefferson State CC,219391,Smith Lareatha,10/14/2022,2467.42,Unrestricted Shared Services,Payroll
Jefferson State CC,219392,Williams Sonja,10/14/2022,2209.12,Unrestricted Shared Services,Payroll
Jefferson State CC,219393,Wilson Latanya,10/14/2022,1461.17,Unrestricted Shared Services,Payroll
Jefferson State CC,219394,Barranger Lauren,10/14/2022,2029.92,Unrestricted Shared Services,Payroll
Jefferson State CC,219395,Brown Cassandra,10/14/2022,1811.42,Unrestricted Shared Services,Payroll
Jefferson State CC,219396,Cimalore Beverly,10/14/2022,2467.42,Unrestricted Shared Services,Payroll
Jefferson State CC,219397,Fisher Debra,10/14/2022,2117.5,Unrestricted Shared Services,Payroll
Jefferson State CC,219398,Guizar Hector,10/14/2022,1811.17,Unrestricted Shared Services,Payroll
Jefferson State CC,219399,Hagood Anita,10/14/2022,1461.17,Unrestricted Shared Services,Payroll
Jefferson State CC,219400,Holman Beatrice,10/14/2022,1461.17,Unrestricted Shared Services,Payroll
Jefferson State CC,219401,Lewis Scott,10/14/2022,1155.04,Unrestricted Shared Services,Payroll
Jefferson State CC,219402,Lopez Jorge,10/14/2022,1592.54,Unrestricted Shared Services,Payroll
Jefferson State CC,219403,Miller Stephanie,10/14/2022,2467.42,Unrestricted Shared Services,Payroll
Jefferson State CC,219404,Stewart Aaron,10/14/2022,1198.79,Unrestricted Shared Services,Payroll
Jefferson State CC,219405,Swann Christopher,10/14/2022,2161.25,Unrestricted Shared Services,Payroll
Jefferson State CC,219406,Wilson Colton,10/14/2022,2029.92,Unrestricted Shared Services,Payroll
Jefferson State CC,219407,Chamblin Juanita,10/14/2022,3036.8,Unrestricted Shared Services,Payroll
Jefferson State CC,219408,Key Karen,10/14/2022,2555,Unrestricted Shared Services,Payroll
Jefferson State CC,219409,Sutton Edreama,10/14/2022,3093.74,Unrestricted Shared Services,Payroll
Jefferson State CC,219410,Jones Oniki,10/14/2022,1548.79,Unrestricted Shared Services,Payroll
Jefferson State CC,219411,Cooper Jay,10/14/2022,1286.17,Unrestricted Shared Services,Payroll
Jefferson State CC,219412,Barnett C,10/14/2022,2248.83,Unrestricted Shared Services,Payroll
Jefferson State CC,219413,Borden Leslie,10/14/2022,1330.17,Unrestricted Shared Services,Payroll
Jefferson State CC,219414,Carson William,10/14/2022,2117.67,Unrestricted Shared Services,Payroll
Jefferson State CC,219415,Green Vincent,10/14/2022,2073.67,Unrestricted Shared Services,Payroll
Jefferson State CC,219416,James Selena,10/14/2022,1636.29,Unrestricted Shared Services,Payroll
Jefferson State CC,219417,Lockett Earnest,10/14/2022,2466.48,Unrestricted Shared Services,Payroll
Jefferson State CC,219418,McDonald Thomas,10/14/2022,2248.83,Unrestricted Shared Services,Payroll
Jefferson State CC,219419,Nathan Charlie,10/14/2022,1592.67,Unrestricted Shared Services,Payroll
Jefferson State CC,219420,Powrzanas Rodney,10/14/2022,1723.83,Unrestricted Shared Services,Payroll
Jefferson State CC,219421,Shorter Garland,10/14/2022,1962.5,Unrestricted Shared Services,Payroll
Jefferson State CC,219422,Tidmore Cecil,10/14/2022,2117.67,Unrestricted Shared Services,Payroll
Jefferson State CC,219423,Toney Clifford,10/14/2022,2467.71,Unrestricted Shared Services,Payroll
Jefferson State CC,219424,Sullivan Terri,10/14/2022,2248.83,Unrestricted Shared Services,Payroll
Jefferson State CC,219425,Cunningham Velma,10/14/2022,1680.25,Unrestricted Shared Services,Payroll
Jefferson State CC,219426,Eason Haley,10/14/2022,1330.04,Unrestricted Shared Services,Payroll
Jefferson State CC,219427,McCormack Phillip,10/14/2022,1699.67,Unrestricted Shared Services,Payroll
Jefferson State CC,219428,Payne Russell,10/14/2022,2467.42,Unrestricted Shared Services,Payroll
Jefferson State CC,219429,Pendleton Carolyn,10/14/2022,1071.04,Unrestricted Shared Services,Payroll
Jefferson State CC,219430,Purvis Larose,10/14/2022,1767.79,Unrestricted Shared Services,Payroll
Jefferson State CC,219431,Sanders Bernard,10/14/2022,2030.33,Unrestricted Shared Services,Payroll
Jefferson State CC,219432,Steele Kelvin,10/14/2022,1680.25,Unrestricted Shared Services,Payroll
Jefferson State CC,219433,Stockley Ginger,10/14/2022,2467.42,Unrestricted Shared Services,Payroll
Jefferson State CC,219434,Brown Mavis,10/14/2022,1330.04,Unrestricted Shared Services,Payroll
Jefferson State CC,219435,Cooper-Cox Robbie,10/14/2022,1417.58,Unrestricted Shared Services,Payroll
Jefferson State CC,219436,Crenshaw Lakeila,10/14/2022,1198.79,Unrestricted Shared Services,Payroll
Jefferson State CC,219437,Duchock Anita,10/14/2022,1461.33,Unrestricted Shared Services,Payroll
Jefferson State CC,219438,Johnson Gayle,10/14/2022,884.62,Unrestricted Shared Services,Payroll
Jefferson State CC,219439,Kimbrell Skyler,10/14/2022,1504.96,Unrestricted Shared Services,Payroll
Jefferson State CC,219440,Lattimore Rosetta,10/14/2022,1286.17,Unrestricted Shared Services,Payroll
Jefferson State CC,219441,Liddle Christiana,10/14/2022,1242.54,Unrestricted Shared Services,Payroll
Jefferson State CC,219442,Mathis Brenda,10/14/2022,1680.25,Unrestricted Shared Services,Payroll
Jefferson State CC,219443,McDaniel Barry,10/14/2022,1198.79,Unrestricted Shared Services,Payroll
Jefferson State CC,219444,Vann Rowella,10/14/2022,1198.79,Unrestricted Shared Services,Payroll
Jefferson State CC,219445,Washington Destin,10/14/2022,1592.67,Unrestricted Shared Services,Payroll
Jefferson State CC,219446,Kent Eric,10/14/2022,1155.04,Unrestricted Shared Services,Payroll
Jefferson State CC,219447,Wynn Michael,10/14/2022,1461.33,Unrestricted Shared Services,Payroll
Jefferson State CC,219448,Pettry Sherry,10/14/2022,2336.38,Unrestricted Shared Services,Payroll
Jefferson State CC,526362,Acker Dale,10/14/2022,144,Unrestricted Shelby Campus,Mileage - IS
Jefferson State CC,526363,ACT Inc ,10/14/2022,1785,AE-State Regular 2XX1-2XX2,Materials and Supplies - MS
Jefferson State CC,526363,ACT Inc ,10/14/2022,42,Spcl Pops Ind M-Power RTW 21-22,Materials and Supplies - MS
Jefferson State CC,526363,ACT Inc ,10/14/2022,716,Unrestricted Shared Services,Materials and Supplies - MS
Jefferson State CC,526364,Advance Alabama Media Llc ,10/14/2022,52.25,Unrestricted Shared Services,Advertising & Promotions - OOS
Jefferson State CC,526365,Alabama Association of Polygraph Examiners ,10/14/2022,200,Unrestricted Shared Services,Registration Fees- IS
Jefferson State CC,526366,Alabama Power Company ,10/14/2022,644.1,Unrestricted Chilton Campus,Electricity - UC
Jefferson State CC,526366,Alabama Power Company ,10/14/2022,1368.98,Unrestricted Jefferson Campus,Electricity - UC
Jefferson State CC,526366,Alabama Power Company ,10/14/2022,1288.21,Unrestricted Shelby Campus,Electricity - UC
Jefferson State CC,526366,Alabama Power Company ,10/14/2022,266.46,Unrestricted St. Clair Campus,Electricity - UC
Jefferson State CC,526367,Alexander Zachary,10/14/2022,136.25,Unrestricted Distance Ed,Mileage - IS
Jefferson State CC,526368,Alzoubi Kasim,10/14/2022,26.95,Unrestricted Shared Services,Postage - OOS
Jefferson State CC,526369,ARCpoint Labs of Birmingham-Greystone ,10/14/2022,120,Unrestricted Shared Services,Other Professional Fees - PS
Jefferson State CC,526370,Argo Power Equipment ,10/14/2022,315.18,Unrestricted Jefferson Campus,Maintenance & Repairs  - OOS
Jefferson State CC,526371,AT&T Mobility National Accounts LLC ,10/14/2022,41.24,AE-Federal Regular 2XX1-2XX2,Wireless Phones - UC
Jefferson State CC,526371,AT&T Mobility National Accounts LLC ,10/14/2022,109.8,Unrestricted Shared Services,Wireless Phones - UC
Jefferson State CC,526371,AT&T Mobility National Accounts LLC ,10/14/2022,71.66,Unrestricted Shelby Campus,Other Contractual Services - PS
Jefferson State CC,526371,AT&T Mobility National Accounts LLC ,10/14/2022,33.99,Unrestricted Shelby Campus,Wireless Phones - UC
Jefferson State CC,526372,Automatic Sync Technologies LLC ,10/14/2022,273.9,Unrestricted Shared Services,Materials and Supplies - MS
Jefferson State CC,526373,AutoZone ,10/14/2022,134.39,R&R Jefferson Campus ,Materials and Supplies - MS
Jefferson State CC,526374,Bank of America ,10/14/2022,320.31,Unrestricted Shared Services,Maintenance & Repairs  - OOS
Jefferson State CC,526374,Bank of America ,10/14/2022,848.39,Unrestricted Shared Services,Technology - non capitalized - MS
Jefferson State CC,526374,Bank of America ,10/14/2022,968.97,UW-Food Pantry-EFSP P39,Materials and Supplies - MS
Jefferson State CC,526375,Bautista Guzman Ramiro,10/14/2022,582.2,Unrestricted Shared Services,Commercial Transportation - OS
Jefferson State CC,526375,Bautista Guzman Ramiro,10/14/2022,184,Unrestricted Shared Services,Conus (meals) - OS
Jefferson State CC,526375,Bautista Guzman Ramiro,10/14/2022,934.11,Unrestricted Shared Services,Lodging - OS
Jefferson State CC,526375,Bautista Guzman Ramiro,10/14/2022,334.63,Unrestricted Shared Services,Mileage - IS
Jefferson State CC,526375,Bautista Guzman Ramiro,10/14/2022,84.97,Unrestricted Shared Services,Other Travel Expenses - OS
Jefferson State CC,526376,Birmingham Parking Authority ,10/14/2022,20,AE-Federal Regular 2XX1-2XX2,Institutional Use - OOS
Jefferson State CC,526377,Blackmon Jake,10/14/2022,328.5,Unrestricted Chilton Campus,Other Professional Fees - PS
Jefferson State CC,526378,Bobo David,10/14/2022,141.63,Unrestricted Shared Services,Mileage - IS
Jefferson State CC,526379,Bolton Christie,10/14/2022,81.25,Unrestricted Shelby Campus,Mileage - IS
Jefferson State CC,526380,Booth Jennifer,10/14/2022,102,Unrestricted Shared Services,Mileage - IS
Jefferson State CC,526381,Bracken Michael,10/14/2022,1333.33,Unrestricted Shared Services,Other Contractual Services - PS
Jefferson State CC,526382,Burns Syreeta,10/14/2022,120,Unrestricted Shelby Campus,Mileage - IS
Jefferson State CC,526383,Burroughs Kelley,10/14/2022,365,Unrestricted Jefferson Campus,Mileage - IS
Jefferson State CC,526384,Call Jacob,10/14/2022,2158.12,Unrestricted Shared Services,Lodging - IS
Jefferson State CC,526384,Call Jacob,10/14/2022,90.09,Unrestricted Shared Services,Mileage - IS
Jefferson State CC,526384,Call Jacob,10/14/2022,415.33,Unrestricted Shared Services,Other Travel Expenses - IS
Jefferson State CC,526384,Call Jacob,10/14/2022,300,Unrestricted Shared Services,Overnight (non tax per diem)- IS
Jefferson State CC,526384,Call Jacob,10/14/2022,321.9,Unrestricted Shared Services,Registration Fees- IS
Jefferson State CC,526385,Campbell Tracy,10/14/2022,15,Unrestricted Shared Services,Mileage - IS
Jefferson State CC,526386,Carmichael Ebonie,10/14/2022,79.38,Unrestricted Shared Services,Mileage - IS
Jefferson State CC,526387,Caskey Connie,10/14/2022,59.5,Unrestricted Shelby Campus,Mileage - IS
Jefferson State CC,526388,CenturyTel of Alabama ,10/14/2022,211.23,Unrestricted St. Clair Campus,Landline Phones - UC
Jefferson State CC,526389,Chamberlain Cassandra,10/14/2022,73.75,Unrestricted Shelby Campus,Mileage - IS
Jefferson State CC,526390,Chambers Lynn,10/14/2022,99.38,AE-Federal Regular 2XX1-2XX2,Other Travel Expenses - IS
Jefferson State CC,526390,Chambers Lynn,10/14/2022,17.25,Unrestricted Shared Services,Mileage - IS
Jefferson State CC,526391,Cohen Carnaggio Reynolds Inc ,10/14/2022,853.76,R&R Jefferson Campus ,Construction in Progress - CE
Jefferson State CC,526392,Creel Sarah,10/14/2022,232.69,Unrestricted Shelby Campus,Mileage - IS
Jefferson State CC,526393,Cross Creek Golf Course ,10/14/2022,575,Unrestricted Shared Services,Registration Fees- IS
Jefferson State CC,526394,Cuevas Eugene,10/14/2022,67.44,Unrestricted Shelby Campus,Mileage - IS
Jefferson State CC,526395,Cuevas Jennifer,10/14/2022,516.12,Unrestricted Jefferson Campus,Commercial Transportation - OS
Jefferson State CC,526395,Cuevas Jennifer,10/14/2022,175.5,Unrestricted Jefferson Campus,Conus (meals) - OS
Jefferson State CC,526395,Cuevas Jennifer,10/14/2022,603.72,Unrestricted Jefferson Campus,Lodging - OS
Jefferson State CC,526395,Cuevas Jennifer,10/14/2022,117.31,Unrestricted Jefferson Campus,Other Travel Expenses - OS
Jefferson State CC,526395,Cuevas Jennifer,10/14/2022,425,Unrestricted Jefferson Campus,Registration Fees- OS
Jefferson State CC,526396,Daffron Cristy,10/14/2022,140.75,Unrestricted St. Clair Campus,Conus (meals) - OS
Jefferson State CC,526396,Daffron Cristy,10/14/2022,333.88,Unrestricted St. Clair Campus,Lodging - OS
Jefferson State CC,526396,Daffron Cristy,10/14/2022,45,Unrestricted St. Clair Campus,Mileage - IS
Jefferson State CC,526396,Daffron Cristy,10/14/2022,145,Unrestricted St. Clair Campus,Mileage - OS
Jefferson State CC,526397,Davenport Samuel,10/14/2022,810,Unrestricted Chilton Campus,Other Professional Fees - PS
Jefferson State CC,526398,Dawkins Stephen,10/14/2022,137,Unrestricted Shared Services,Mileage - IS
Jefferson State CC,526399,Dean Chitty LLC ,10/14/2022,300,Unrestricted Jefferson Campus,Maintenance & Repairs  - OOS
Jefferson State CC,526400,Deason Vicki,10/14/2022,344,Unrestricted Jefferson Campus,Mileage - IS
Jefferson State CC,526401,Dehart Michael,10/14/2022,2290,Unrestricted Shelby Campus,Other Professional Fees - PS
Jefferson State CC,526402,Ennis Jzyk,10/14/2022,377.2,Unrestricted Jefferson Campus,Commercial Transportation - OS
Jefferson State CC,526402,Ennis Jzyk,10/14/2022,149.25,Unrestricted Jefferson Campus,Conus (meals) - OS
Jefferson State CC,526402,Ennis Jzyk,10/14/2022,300.58,Unrestricted Jefferson Campus,Lodging - OS
Jefferson State CC,526403,Ferguson Lydia,10/14/2022,54.38,Unrestricted Shelby Campus,Mileage - IS
Jefferson State CC,526404,Fisher Scientific ,10/14/2022,204.32,ICI Equip WFD Initiative,Materials and Supplies - MS
Jefferson State CC,526404,Fisher Scientific ,10/14/2022,690.59,Unrestricted Jefferson Campus,Materials and Supplies - MS
Jefferson State CC,526405,Fisher Scientific ,10/14/2022,113.36,Unrestricted St. Clair Campus,Materials and Supplies - MS
Jefferson State CC,526406,Florence Jeffrey,10/14/2022,1170,Unrestricted Shelby Campus,Other Professional Fees - PS
Jefferson State CC,526407,Forbes Christopher,10/14/2022,140.75,Unrestricted Chilton Campus,Conus (meals) - OS
Jefferson State CC,526407,Forbes Christopher,10/14/2022,333.88,Unrestricted Chilton Campus,Lodging - OS
Jefferson State CC,526408,Ginas Gallow Elizabeth,10/14/2022,13,Unrestricted Shelby Campus,Mileage - IS
Jefferson State CC,526410,Greene Greta,10/14/2022,240.38,Unrestricted Shared Services,Mileage - IS
Jefferson State CC,526411,Harmon Rachel,10/14/2022,189,Unrestricted Chilton Campus,Other Professional Fees - PS
Jefferson State CC,526412,Harris John,10/14/2022,76.25,Unrestricted Shared Services,Mileage - IS
Jefferson State CC,526413,Hedrick Charles,10/14/2022,15,Unrestricted Shared Services,Mileage - IS
Jefferson State CC,526414,Hill Candance,10/14/2022,224.13,Unrestricted Jefferson Campus,Mileage - IS
Jefferson State CC,526415,Hill Darian,10/14/2022,8400,Unrestricted Shared Services,Other Contractual Services - PS
Jefferson State CC,526416,Home Depot U.S.A. Inc ,10/14/2022,439.56,R&R Shelby Campus ,Maintenance & Repairs  - OOS
Jefferson State CC,526417,Hyde Dianna,10/14/2022,88.5,Unrestricted Shelby Campus,Conus (meals) - OS
Jefferson State CC,526417,Hyde Dianna,10/14/2022,148.73,Unrestricted Shelby Campus,Lodging - OS
Jefferson State CC,526417,Hyde Dianna,10/14/2022,284.75,Unrestricted Shelby Campus,Mileage - OS
Jefferson State CC,526418,Ingle Timothy,10/14/2022,833.34,Unrestricted Shared Services,Other Contractual Services - PS
Jefferson State CC,526419,Janousek Mel,10/14/2022,1040,Unrestricted Shelby Campus,Other Professional Fees - PS
Jefferson State CC,526420,K & L Group LLC ,10/14/2022,5352.75,R&R Jefferson Campus ,Maintenance & Repairs  - OOS
Jefferson State CC,526421,Kin Nicholas,10/14/2022,167.5,Unrestricted St. Clair Campus,Mileage - IS
Jefferson State CC,526422,Landauer Inc ,10/14/2022,1230.2,RAD Monitoring,Deposit Liabilities - AP
Jefferson State CC,526423,Lathan Associates Architects P.C. ,10/14/2022,218.46,R&R Jefferson Campus ,Building Alterations - CE
Jefferson State CC,526424,McClung Britney,10/14/2022,50.75,Unrestricted Shared Services,Mileage - IS
Jefferson State CC,526425,Mullins William,10/14/2022,300,Unrestricted Shelby Campus,Other Professional Fees - PS
Jefferson State CC,526426,Naramore Anita,10/14/2022,140.75,Unrestricted Shared Services,Conus (meals) - OS
Jefferson State CC,526426,Naramore Anita,10/14/2022,333.88,Unrestricted Shared Services,Lodging - OS
Jefferson State CC,526427,Office Depot ,10/14/2022,12373.43,Unrestricted Shared Services,Printing and Binding - OOS
Jefferson State CC,526428,Office Depot ,10/14/2022,34.51,Unrestricted Shared Services,Printing and Binding - OOS
Jefferson State CC,526428,Office Depot ,10/14/2022,47.56,Unrestricted Shelby Campus,Printing and Binding - OOS
Jefferson State CC,526429,Payne Tamara,10/14/2022,37.5,Unrestricted Shared Services,Mileage - IS
Jefferson State CC,526430,Phi Theta Kappa ,10/14/2022,720,Unrestricted Jefferson Campus,Registration Fees- IS
Jefferson State CC,526431,Pleasants-Pegues Ticey,10/14/2022,588.75,Unrestricted Shared Services,Other Contractual Services - PS
Jefferson State CC,526432,Pocket Nurse Enterprises LLC ,10/14/2022,9679.29,Unrestricted Shelby Campus,Materials and Supplies - MS
Jefferson State CC,526433,Richard Jessica,10/14/2022,104.25,Unrestricted Shared Services,Conus (meals) - IS
Jefferson State CC,526433,Richard Jessica,10/14/2022,502.7,Unrestricted Shared Services,Lodging - IS
Jefferson State CC,526433,Richard Jessica,10/14/2022,421.88,Unrestricted Shared Services,Mileage - IS
Jefferson State CC,526434,RJ Young Company ,10/14/2022,84.82,Unrestricted Chilton Campus,Other Contractual Services - PS
Jefferson State CC,526434,RJ Young Company ,10/14/2022,980.23,Unrestricted Jefferson Campus,Other Contractual Services - PS
Jefferson State CC,526434,RJ Young Company ,10/14/2022,845.52,Unrestricted Shared Services,Maintenance & Repairs  - OOS
Jefferson State CC,526434,RJ Young Company ,10/14/2022,5854.59,Unrestricted Shared Services,Other Contractual Services - PS
Jefferson State CC,526434,RJ Young Company ,10/14/2022,517.45,Unrestricted Shared Services,Technology - non capitalized - MS
Jefferson State CC,526434,RJ Young Company ,10/14/2022,75,Unrestricted Shelby Campus,Other Contractual Services - PS
Jefferson State CC,526435,Roseberry Tara,10/14/2022,165.9,CAPTE-WIOA 22-23,Scholarship Books
Jefferson State CC,526436,S & S Automotive LLC ,10/14/2022,968.12,R&R Jefferson Campus ,Maintenance & Repairs  - OOS
Jefferson State CC,526437,Satterfield Jennifer,10/14/2022,140.75,Unrestricted Jefferson Campus,Conus (meals) - OS
Jefferson State CC,526438,Scarbrough William,10/14/2022,945,Unrestricted Chilton Campus,Other Professional Fees - PS
Jefferson State CC,526439,Scott James,10/14/2022,96,Unrestricted Shelby Campus,Mileage - IS
Jefferson State CC,526440,Servicewear Apparel Inc. ,10/14/2022,659.45,Unrestricted Shared Services,Materials and Supplies - MS
Jefferson State CC,526441,Sherwin Williams Company ,10/14/2022,725.72,R&R Jefferson Campus ,Maintenance & Repairs  - OOS
Jefferson State CC,526442,Shobe Phillip,10/14/2022,127.5,Unrestricted Shared Services,Mileage - IS
Jefferson State CC,526443,Smith Lareatha,10/14/2022,109.75,Unrestricted Jefferson Campus,Conus (meals) - IS
Jefferson State CC,526443,Smith Lareatha,10/14/2022,335.61,Unrestricted Jefferson Campus,Lodging - IS
Jefferson State CC,526443,Smith Lareatha,10/14/2022,175,Unrestricted Jefferson Campus,Mileage - IS
Jefferson State CC,526444,Stanley Nathaniel,10/14/2022,136.25,Unrestricted Shared Services,Mileage - IS
Jefferson State CC,526445,Staples Contract & Commercial Inc ,10/14/2022,636.4,Unrestricted Jefferson Campus,Materials and Supplies - MS
Jefferson State CC,526445,Staples Contract & Commercial Inc ,10/14/2022,385.26,Unrestricted Shared Services,Materials and Supplies - MS
Jefferson State CC,526445,Staples Contract & Commercial Inc ,10/14/2022,221.54,Unrestricted Shelby Campus,Materials and Supplies - MS
Jefferson State CC,526446,Starcom Worldwide Inc ,10/14/2022,1724.33,AE-Federal Regular 2XX1-2XX2,Advertising & Promotions - OOS
Jefferson State CC,526447,Stillwell Crystal,10/14/2022,736.69,Unrestricted Shared Services,Mileage - IS
Jefferson State CC,526448,Sullivan Terri,10/14/2022,90,Unrestricted Shared Services,Mileage - IS
Jefferson State CC,526449,Sutton Edreama,10/14/2022,37.5,Unrestricted Shared Services,Mileage - IS
Jefferson State CC,526450,Townes Kevin,10/14/2022,71.75,Unrestricted Shelby Campus,Mileage - IS
Jefferson State CC,526451,Turner Venius,10/14/2022,140.75,Unrestricted Jefferson Campus,Conus (meals) - OS
Jefferson State CC,526451,Turner Venius,10/14/2022,333.88,Unrestricted Jefferson Campus,Lodging - OS
Jefferson State CC,526452,Union State Insurance Inc. ,10/14/2022,111331,Unrestricted Shared Services,Insurance and Bonding - PS
Jefferson State CC,526453,United Rentals ,10/14/2022,111.48,R&R Jefferson Campus ,Maintenance & Repairs  - OOS
Jefferson State CC,526454,University of Alabama Health Services Foundation P.C. ,10/14/2022,1600,Unrestricted Shelby Campus,Other Contractual Services - PS
Jefferson State CC,526455,Varsity Brands Holding Co. Inc. ,10/14/2022,220.32,ARC Driving on Road to Success,Materials and Supplies - MS
Jefferson State CC,526455,Varsity Brands Holding Co. Inc. ,10/14/2022,11462.26,Unrestricted Shared Services,Materials and Supplies - MS
Jefferson State CC,526456,Verified Holdings LLC ,10/14/2022,208.8,Unrestricted Shared Services,Other Professional Fees - PS
Jefferson State CC,526457,Verizon Wireless ,10/14/2022,3828.53,ARP - HEERF III Institutional,Wireless Phones - UC
Jefferson State CC,526458,Walker Melisa,10/14/2022,140.75,Unrestricted Jefferson Campus,Conus (meals) - OS
Jefferson State CC,526458,Walker Melisa,10/14/2022,333.88,Unrestricted Jefferson Campus,Lodging - OS
Jefferson State CC,526458,Walker Melisa,10/14/2022,70,Unrestricted Jefferson Campus,Other Travel Expenses - OS
Jefferson State CC,526459,Ward's Natural Science ,10/14/2022,137.55,Unrestricted Jefferson Campus,Materials and Supplies - MS
Jefferson State CC,526460,Water Works & Sewer Board ,10/14/2022,451.61,Unrestricted Jefferson Campus,Water & Sewer - UC
Jefferson State CC,526461,WEX Inc ,10/14/2022,2981.69,Unrestricted Shared Services,Gasoline & Oil - Motor Veh - OOS
Jefferson State CC,526461,WEX Inc ,10/14/2022,303,Unrestricted Shelby Campus,Gasoline & Oil - Motor Veh - OOS
Jefferson State CC,526462,Wheeler Christopher,10/14/2022,450,Unrestricted Shelby Campus,Other Professional Fees - PS
Jefferson State CC,526463,White James,10/14/2022,320,Unrestricted Jefferson Campus,Other Professional Fees - PS
Jefferson State CC,526464,Whittle Christopher,10/14/2022,279,Unrestricted Chilton Campus,Other Professional Fees - PS
Jefferson State CC,526465,Williams Sonja,10/14/2022,109.75,Unrestricted Shelby Campus,Conus (meals) - IS
Jefferson State CC,526465,Williams Sonja,10/14/2022,335.61,Unrestricted Shelby Campus,Lodging - IS
Jefferson State CC,526465,Williams Sonja,10/14/2022,161.25,Unrestricted Shelby Campus,Mileage - IS
Jefferson State CC,526466,Williford Orman Construction LLC ,10/14/2022,6826.65,R&R Jefferson Campus ,Maintenance & Repairs  - OOS
Jefferson State CC,526466,Williford Orman Construction LLC ,10/14/2022,74545,Unrestricted Jefferson Campus,Construction in Progress - CE
Jefferson State CC,526467,Wood John,10/14/2022,101.25,Unrestricted Shelby Campus,Mileage - IS
Jefferson State CC,526467,Wood John,10/14/2022,2.8,Unrestricted Shelby Campus,Other Travel Expenses - IS
Jefferson State CC,526468,Wyatt Heather,10/14/2022,35,Unrestricted Jefferson Campus,Mileage - IS
Jefferson State CC,600896,Jazeel Fathima,10/14/2022,378,Unrestricted Shared Services,Payroll
Jefferson State CC,526469,ACCS Human Resources Management Association ,10/20/2022,250,Unrestricted Shared Services,Memberships - PS
Jefferson State CC,526470,ACCS President's Association ,10/20/2022,750,Unrestricted Shared Services,Memberships - PS
Jefferson State CC,526471,Alabama Community College System ,10/20/2022,300,Unrestricted Shared Services,Memberships - PS
Jefferson State CC,526472,Alabama Skills USA Association ,10/20/2022,600,Unrestricted Shared Services,Memberships - PS
Jefferson State CC,526473,American Assoc of Comm Colleges ,10/20/2022,11925,Unrestricted Shared Services,Memberships - PS
Jefferson State CC,526474,Argo Power Equipment ,10/20/2022,242.97,Unrestricted Jefferson Campus,Maintenance & Repairs  - OOS
Jefferson State CC,526475,Call Jacob,10/20/2022,1634.64,Unrestricted Shared Services,Lodging - IS
Jefferson State CC,526475,Call Jacob,10/20/2022,109.53,Unrestricted Shared Services,Other Travel Expenses - IS
Jefferson State CC,526476,Center Point Fire District ,10/20/2022,25,Unrestricted Shared Services,Water & Sewer - UC
Jefferson State CC,526477,Charter Communications Holdings LLC ,10/20/2022,122.98,Unrestricted Shared Services,Internet - UC
Jefferson State CC,526477,Charter Communications Holdings LLC ,10/20/2022,139.96,Unrestricted Shared Services,Landline Phones - UC
Jefferson State CC,526478,Commission on Accreditation in Physical Therapy Education ,10/20/2022,7600,Unrestricted Shelby Campus,Accreditation Expense - PS
Jefferson State CC,526479,GoRescue Brand INC ,10/20/2022,256.94,Unrestricted Shared Services,Materials and Supplies - MS
Jefferson State CC,526480,Follett Higher Education Group Inc. ,10/20/2022,169407.7,Dual Enrollment  Sch. 2XX1-2XX2,Scholarship Books
Jefferson State CC,526481,Graybar Electric Co Inc. ,10/20/2022,4398.63,ARC Line Worker,Materials and Supplies - MS
Jefferson State CC,526482,Greater Alabama Council Inc ,10/20/2022,415,Unrestricted Shelby Campus,Memberships - PS
Jefferson State CC,526483,Hedrick Charles,10/20/2022,316.25,Unrestricted Shared Services,Mileage - IS
Jefferson State CC,526484,Home Depot U.S.A. Inc ,10/20/2022,1426.67,ARC Line Worker,Materials and Supplies - MS
Jefferson State CC,526485,Home Depot U.S.A. Inc. ,10/20/2022,1816.83,R&R Jefferson Campus ,Maintenance & Repairs  - OOS
Jefferson State CC,526485,Home Depot U.S.A. Inc. ,10/20/2022,214.45,R&R Shelby Campus ,Maintenance & Repairs  - OOS
Jefferson State CC,526486,K & L Group LLC ,10/20/2022,3446.17,R&R Jefferson Campus ,Maintenance & Repairs  - OOS
Jefferson State CC,526487,Kin Amanda,10/20/2022,285.25,Unrestricted Shared Services,Conus (meals) - OS
Jefferson State CC,526487,Kin Amanda,10/20/2022,979.44,Unrestricted Shared Services,Lodging - OS
Jefferson State CC,526487,Kin Amanda,10/20/2022,443.75,Unrestricted Shared Services,Mileage - OS
Jefferson State CC,526487,Kin Amanda,10/20/2022,180.31,Unrestricted Shared Services,Other Travel Expenses - OS
Jefferson State CC,526488,MPG Tent Rentals ,10/20/2022,3555,Unrestricted Jefferson Campus,Materials and Supplies - MS
Jefferson State CC,526489,NAB Intermediate Holdings LLC ,10/20/2022,700,Unrestricted Shelby Campus,Maintenance & Repairs  - OOS
Jefferson State CC,526491,Online Learning Consortium Inc ,10/20/2022,1530,Unrestricted Distance Ed,Memberships - PS
Jefferson State CC,526492,Organization for Associate Degree Nursing ,10/20/2022,595,Unrestricted Shared Services,Memberships - PS
Jefferson State CC,526493,Phi Theta Kappa ,10/20/2022,830,Unrestricted Shelby Campus,Registration Fees- IS
Jefferson State CC,526494,Plexamedia Inc. ,10/20/2022,1068,Unrestricted Shared Services,Technology - non capitalized - MS
Jefferson State CC,526495,Shobe Phillip,10/20/2022,95,Unrestricted Shared Services,Mileage - IS
Jefferson State CC,526496,Spire Alabama Inc. ,10/20/2022,44.54,Unrestricted Jefferson Campus,Gas & Heating Fuel - UC
Jefferson State CC,526497,Crane U Inc ,10/20/2022,29000,Unrestricted Shared Services,Other Contractual Services - PS
Jefferson State CC,526537,Alabama Community College System ,10/25/2022,293640.4,Unrestricted Shared Services,Other Professional Fees - PS
Jefferson State CC,526538,Alabama Community College System ,10/25/2022,23777.44,ICI Program Support 2XX0-2XX1,Unearned Revenue - Other -  AL
Jefferson State CC,526539,Alabama Power Company ,10/25/2022,107.71,Unrestricted Chilton Campus,Electricity - UC
Jefferson State CC,526540,Alabama Power Company ,10/25/2022,4229.82,Unrestricted Chilton Campus,Electricity - UC
Jefferson State CC,526541,Alabama Power Company ,10/25/2022,14494.68,Unrestricted Chilton Campus,Electricity - UC
Jefferson State CC,526542,Alabama Power Company ,10/25/2022,715.85,Unrestricted St. Clair Campus,Electricity - UC
Jefferson State CC,526543,Alabama Power Company ,10/25/2022,47.42,Unrestricted Jefferson Campus,Electricity - UC
Jefferson State CC,526544,Alabama Power Company ,10/25/2022,35976.31,Unrestricted Jefferson Campus,Electricity - UC
Jefferson State CC,526545,Alabama Power Company ,10/25/2022,1787.39,Unrestricted Chilton Campus,Electricity - UC
Jefferson State CC,526546,Alabama Power Company ,10/25/2022,23226.41,Unrestricted Shelby Campus,Electricity - UC
Jefferson State CC,526547,Alabama Power Company ,10/25/2022,3548.54,Unrestricted Jefferson Campus,Electricity - UC
Jefferson State CC,526548,Alcohol and Drug Abuse Council Inc. ,10/25/2022,3508.8,Unrestricted Shared Services,Other Professional Fees - PS
Jefferson State CC,526549,Arnold Erin,10/25/2022,137.5,Unrestricted Jefferson Campus,Mileage - IS
Jefferson State CC,526550,Assessment Technologies Institute LLC ,10/25/2022,1600,Women's Fund-Families Forward,Materials and Supplies - MS
Jefferson State CC,526551,AT&T ,10/25/2022,398.62,Unrestricted Chilton Campus,Landline Phones - UC
Jefferson State CC,526551,AT&T ,10/25/2022,398.63,Unrestricted Jefferson Campus,Landline Phones - UC
Jefferson State CC,526551,AT&T ,10/25/2022,398.63,Unrestricted Shelby Campus,Landline Phones - UC
Jefferson State CC,526551,AT&T ,10/25/2022,398.63,Unrestricted St. Clair Campus,Landline Phones - UC
Jefferson State CC,526552,AT&T ,10/25/2022,4484.16,Unrestricted Jefferson Campus,Wireless Phones - UC
Jefferson State CC,526553,Atlas Welding Supply Co. Inc. ,10/25/2022,2037.39,Dual Enrollment  Sch. 2XX1-2XX2,Equipment - non capitalized - MS
Jefferson State CC,526553,Atlas Welding Supply Co. Inc. ,10/25/2022,84902.61,Dual Enrollment  Sch. 2XX1-2XX2,Furniture and Equip > $25K - CE
Jefferson State CC,526553,Atlas Welding Supply Co. Inc. ,10/25/2022,68195,Prison Day Reporting Program,Furniture and Equip $5K - $25K - CE
Jefferson State CC,526553,Atlas Welding Supply Co. Inc. ,10/25/2022,7518.4,Unrestricted Jefferson Campus,Materials and Supplies - MS
Jefferson State CC,526553,Atlas Welding Supply Co. Inc. ,10/25/2022,3050,Unrestricted Shelby Campus,Materials and Supplies - MS
Jefferson State CC,526554,Bevill State Community College ,10/25/2022,12000,Unrestricted Shared Services,Other Contractual Services - PS
Jefferson State CC,526555,Bevill State Community College ,10/25/2022,3000,Unrestricted Shared Services,Other Contractual Services - PS
Jefferson State CC,526556,Boehm Matthew,10/25/2022,179.5,Unrestricted Jefferson Campus,Conus (meals) - OS
Jefferson State CC,526556,Boehm Matthew,10/25/2022,1733.05,Unrestricted Jefferson Campus,Lodging - OS
Jefferson State CC,526556,Boehm Matthew,10/25/2022,103.85,Unrestricted Jefferson Campus,Other Travel Expenses - OS
Jefferson State CC,526557,Call Jacob,10/25/2022,1510,Unrestricted Shared Services,Lodging - IS
Jefferson State CC,526557,Call Jacob,10/25/2022,383.23,Unrestricted Shared Services,Other Travel Expenses - IS
Jefferson State CC,526558,CDW Government Inc ,10/25/2022,9317.82,Vocational Ed/CTE X1-X2,Equipment - non capitalized - MS
Jefferson State CC,526559,Charter Communications Holdings LLC ,10/25/2022,279.99,Unrestricted Shelby Campus,Internet - UC
Jefferson State CC,526560,City of Clanton ,10/25/2022,16.11,Unrestricted Chilton Campus,Water & Sewer - UC
Jefferson State CC,526561,City of Clanton ,10/25/2022,25.46,Unrestricted Chilton Campus,Water & Sewer - UC
Jefferson State CC,526562,City of Clanton ,10/25/2022,458.37,Unrestricted Chilton Campus,Water & Sewer - UC
Jefferson State CC,526563,GoRescue Brand INC ,10/25/2022,1815,Unrestricted Shared Services,Materials and Supplies - MS
Jefferson State CC,526564,Ellison Raynette,10/25/2022,180,Unrestricted Chilton Campus,Materials and Supplies - MS
Jefferson State CC,526565,Fisher Scientific ,10/25/2022,166.24,Unrestricted Jefferson Campus,Materials and Supplies - MS
Jefferson State CC,526566,Fisher Scientific ,10/25/2022,1420,Unrestricted St. Clair Campus,Materials and Supplies - MS
Jefferson State CC,526567,Follett Higher Education Group Inc. ,10/25/2022,223183.3,Bookstore - Shared Services,Bookstore - AP
Jefferson State CC,526568,Graves Barry,10/25/2022,240.32,Unrestricted Shared Services,Mileage - IS
Jefferson State CC,526569,Green Lea,10/25/2022,1000,Unrestricted Shared Services,Other Contractual Services - PS
Jefferson State CC,526570,Hamill Shaun,10/25/2022,1700,Sigma Kappa Delta,Deposit Liabilities - AP
Jefferson State CC,526571,Hedrick Charles,10/25/2022,118.75,Unrestricted Shared Services,Mileage - IS
Jefferson State CC,526572,Hodge Mechanical Services LLC ,10/25/2022,7222.14,R&R Jefferson Campus ,Maintenance & Repairs  - OOS
Jefferson State CC,526573,Insurance Systems of Alabama ,10/25/2022,6075,Unrestricted Shared Services,Other Contractual Services - PS
Jefferson State CC,526574,K & L Group LLC ,10/25/2022,137.25,R&R Jefferson Campus ,Maintenance & Repairs  - OOS
Jefferson State CC,526575,Marcus Service & Solutions LLC ,10/25/2022,2180,R&R Jefferson Campus ,Maintenance & Repairs  - OOS
Jefferson State CC,526576,Naramore Anita,10/25/2022,61.75,Unrestricted Shared Services,Mileage - IS
Jefferson State CC,526577,National Association For The Education Of Young Children ,10/25/2022,6500,Unrestricted Jefferson Campus,Accreditation Expense - PS
Jefferson State CC,526578,Ralya Janice,10/25/2022,712,Unrestricted Shared Services,Other Travel Expenses - OS
Jefferson State CC,526578,Ralya Janice,10/25/2022,400,Unrestricted Shared Services,Registration Fees- OS
Jefferson State CC,526579,Spire Alabama Inc. ,10/25/2022,9130.35,Unrestricted Chilton Campus,Gas & Heating Fuel - UC
Jefferson State CC,526579,Spire Alabama Inc. ,10/25/2022,12938.53,Unrestricted Jefferson Campus,Gas & Heating Fuel - UC
Jefferson State CC,526579,Spire Alabama Inc. ,10/25/2022,10163.89,Unrestricted Shelby Campus,Gas & Heating Fuel - UC
Jefferson State CC,526579,Spire Alabama Inc. ,10/25/2022,49.75,Unrestricted St. Clair Campus,Gas & Heating Fuel - UC
Jefferson State CC,526580,State of Alabama ,10/25/2022,4000,Unrestricted Distance Ed,Memberships - PS
Jefferson State CC,526581,Stephens Nareiko,10/25/2022,301.2,Unrestricted Shared Services,Commercial Transportation - OS
Jefferson State CC,526581,Stephens Nareiko,10/25/2022,285.25,Unrestricted Shared Services,Conus (meals) - OS
Jefferson State CC,526581,Stephens Nareiko,10/25/2022,979.44,Unrestricted Shared Services,Lodging - OS
Jefferson State CC,526581,Stephens Nareiko,10/25/2022,200.83,Unrestricted Shared Services,Other Travel Expenses - OS
Jefferson State CC,526582,Togetherall Inc ,10/25/2022,15050,Unrestricted Shared Services,Technology - non capitalized - MS
Jefferson State CC,526583,Warrior Sign Source LLC ,10/25/2022,225,Unrestricted Shared Services,Improvements - Other - CE
Jefferson State CC,526584,Water Works & Sewer Board ,10/25/2022,12166.29,Unrestricted Jefferson Campus,Water & Sewer - UC
Jefferson State CC,526584,Water Works & Sewer Board ,10/25/2022,3647.4,Unrestricted Shelby Campus,Water & Sewer - UC
Jefferson State CC,526585,American Board of Funeral Service Edu ,10/27/2022,8000,Unrestricted Jefferson Campus,Accreditation Expense - PS
Jefferson State CC,526586,Atlas Welding Supply Co. Inc. ,10/27/2022,8850,Dual Enrollment  Sch. 2XX1-2XX2,Furniture and Equip > $25K - CE
Jefferson State CC,526587,Marcus Service & Solutions LLC ,10/27/2022,9548.19,R&R Shelby Campus ,Maintenance & Repairs  - OOS
Jefferson State CC,526588,One Diversified LLC ,10/27/2022,6154.98,Regions Student Success Hub,Furniture and Equip $5K - $25K - CE
Jefferson State CC,526653,Hodge Mechanical Services LLC ,10/28/2022,9880.24,R&R Jefferson Campus ,Maintenance & Repairs  - OOS
Jefferson State CC,526653,Hodge Mechanical Services LLC ,10/28/2022,8690.2,R&R Shelby Campus ,Maintenance & Repairs  - OOS
Jefferson State CC,219449,Starnes Jane,10/31/2022,2598.58,Unrestricted Shared Services,Payroll
Jefferson State CC,219450,Self Bonnie,10/31/2022,2642.54,Unrestricted Shared Services,Payroll
Jefferson State CC,219451,Harris Seena,10/31/2022,2248.83,Unrestricted Shelby Campus,Payroll
Jefferson State CC,219452,Wallace Preston,10/31/2022,2727.42,Unrestricted Shared Services,Payroll
Jefferson State CC,219453,Ray Beth,10/31/2022,2029.92,Unrestricted Shared Services,Payroll
Jefferson State CC,219454,Brown Ami,10/31/2022,1410.54,Unrestricted Shared Services,Payroll
Jefferson State CC,219455,Deason Vicki,10/31/2022,1489.83,Unrestricted Distance Ed,Payroll
Jefferson State CC,219456,McLendon Rita,10/31/2022,2161.25,Unrestricted Shared Services,Payroll
Jefferson State CC,219457,Cox Melanie,10/31/2022,2248.83,Unrestricted Shared Services,Payroll
Jefferson State CC,219458,Boackle Emil,10/31/2022,1898.96,Unrestricted Shared Services,Payroll
Jefferson State CC,219459,Deloach Merissa,10/31/2022,1898.71,Unrestricted Shared Services,Payroll
Jefferson State CC,219460,Braswell Gail,10/31/2022,2073.67,Unrestricted Shared Services,Payroll
Jefferson State CC,219461,Lewis Andrea,10/31/2022,1723.83,Unrestricted Shared Services,Payroll
Jefferson State CC,219462,Cheeks Tammara,10/31/2022,1373.58,CAPTE-WIOA 22-23,Payroll
Jefferson State CC,219463,Geralds Jacqueline,10/31/2022,2336.38,AE-State Regular 2XX2-2XX3,Payroll
Jefferson State CC,219464,Finch Tamara,10/31/2022,1461.33,Unrestricted Shared Services,Payroll
Jefferson State CC,219465,Carmichael Ebonie,10/31/2022,1504.96,Unrestricted Shared Services,Payroll
Jefferson State CC,219466,Coker Pamela,10/31/2022,1592.54,Unrestricted Shared Services,Payroll
Jefferson State CC,219467,Roseberry Tara,10/31/2022,2161.25,Unrestricted Shared Services,Payroll
Jefferson State CC,219468,Cruso Lisa,10/31/2022,2161.25,Unrestricted Shared Services,Payroll
Jefferson State CC,219469,Hamilton-Williams Margaret,10/31/2022,2248.83,Unrestricted Shared Services,Payroll
Jefferson State CC,219470,Cooper Ginger,10/31/2022,2467.42,Unrestricted Shared Services,Payroll
Jefferson State CC,219471,Grady Octavia,10/31/2022,1854.88,Unrestricted Shelby Campus,Payroll
Jefferson State CC,219472,Naramore Anna,10/31/2022,2117.67,Unrestricted Shared Services,Payroll
Jefferson State CC,219473,Pugh Sandra,10/31/2022,2686.38,Unrestricted Shared Services,Payroll
Jefferson State CC,219474,Baker Precious,10/31/2022,1461.17,Unrestricted Shared Services,Payroll
Jefferson State CC,219475,Pickens Elizabeth,10/31/2022,2248.83,Unrestricted Shared Services,Payroll
Jefferson State CC,219476,Hughes Tina,10/31/2022,2336.38,Unrestricted Shared Services,Payroll
Jefferson State CC,219477,Turner Jeanie,10/31/2022,2675.63,Unrestricted Shared Services,Payroll
Jefferson State CC,219478,Anderson Davida,10/31/2022,1154.87,Unrestricted Shared Services,Payroll
Jefferson State CC,219479,Burney Roscelia,10/31/2022,2248.83,Unrestricted Shared Services,Payroll
Jefferson State CC,219480,Carpenter Valencia,10/31/2022,2030.04,Unrestricted Shared Services,Payroll
Jefferson State CC,219481,Castleberry James,10/31/2022,1417.33,Unrestricted Shared Services,Payroll
Jefferson State CC,219482,Collins Angela,10/31/2022,2809.05,Unrestricted Shared Services,Payroll
Jefferson State CC,219483,Douglas Susan,10/31/2022,1680.04,Unrestricted Shared Services,Payroll
Jefferson State CC,219484,Duncan Leconyea,10/31/2022,2117.67,Unrestricted Shared Services,Payroll
Jefferson State CC,219485,Foster Deborah,10/31/2022,1751.99,Unrestricted Shared Services,Payroll
Jefferson State CC,219486,Fraser Thompson Stacye,10/31/2022,2555,Unrestricted Shared Services,Payroll
Jefferson State CC,219487,Greene Greta,10/31/2022,2009.61,Unrestricted Shared Services,Payroll
Jefferson State CC,219488,Howard Amber,10/31/2022,1548.79,Unrestricted Shared Services,Payroll
Jefferson State CC,219489,Jones Juanita,10/31/2022,2117.67,Unrestricted Shared Services,Payroll
Jefferson State CC,219490,Kelley Pamela,10/31/2022,2422.8,Unrestricted Shared Services,Payroll
Jefferson State CC,219491,Kimble Lisa,10/31/2022,2598.58,Unrestricted Shared Services,Payroll
Jefferson State CC,219492,Minter Shondrika,10/31/2022,1986.13,Unrestricted Shared Services,Payroll
Jefferson State CC,219493,Pippens Amberetta,10/31/2022,2379.92,Unrestricted Shared Services,Payroll
Jefferson State CC,219494,Sipe James,10/31/2022,1636.29,Unrestricted Shared Services,Payroll
Jefferson State CC,219495,Smith Heather,10/31/2022,2161.25,Unrestricted Shared Services,Payroll
Jefferson State CC,219496,Stillwell Crystal,10/31/2022,2467.37,Unrestricted Shared Services,Payroll
Jefferson State CC,219497,Urbahns Laura,10/31/2022,2248.83,Unrestricted Shared Services,Payroll
Jefferson State CC,219498,Bautista Guzman Ramiro,10/31/2022,2079.45,Unrestricted Shared Services,Payroll
Jefferson State CC,219499,Chambers Lynn,10/31/2022,2029.92,AE-Federal Regular 2XX2-2XX3,Payroll
Jefferson State CC,219500,Harris John,10/31/2022,1854.75,Unrestricted Shared Services,Payroll
Jefferson State CC,219501,Hawkins Chelsie,10/31/2022,818.14,AE-State Regular 2XX2-2XX3,Payroll
Jefferson State CC,219501,Hawkins Chelsie,10/31/2022,818.15,Unrestricted Shared Services,Payroll
Jefferson State CC,219502,Clark Natalya,10/31/2022,2467.42,Unrestricted Shared Services,Payroll
Jefferson State CC,219503,Cobb Rose,10/31/2022,2467.21,Unrestricted Shared Services,Payroll
Jefferson State CC,219504,Ezell Laura,10/31/2022,1967.24,Unrestricted Shared Services,Payroll
Jefferson State CC,219505,Smith Lareatha,10/31/2022,2467.42,Unrestricted Shared Services,Payroll
Jefferson State CC,219506,Williams Sonja,10/31/2022,2190.8,Unrestricted Shared Services,Payroll
Jefferson State CC,219507,Wilson Latanya,10/31/2022,1511.75,Unrestricted Shared Services,Payroll
Jefferson State CC,219508,Barranger Lauren,10/31/2022,2029.92,Unrestricted Shared Services,Payroll
Jefferson State CC,219509,Brown Cassandra,10/31/2022,1811.42,Unrestricted Shared Services,Payroll
Jefferson State CC,219510,Cimalore Beverly,10/31/2022,2467.42,Unrestricted Shared Services,Payroll
Jefferson State CC,219511,Fisher Debra,10/31/2022,2154.15,Unrestricted Shared Services,Payroll
Jefferson State CC,219512,Guizar Hector,10/31/2022,1811.17,Unrestricted Shared Services,Payroll
Jefferson State CC,219513,Hagood Anita,10/31/2022,1461.17,Unrestricted Shared Services,Payroll
Jefferson State CC,219514,Holman Beatrice,10/31/2022,1461.17,Unrestricted Shared Services,Payroll
Jefferson State CC,219515,Lewis Scott,10/31/2022,1334.95,Unrestricted Shared Services,Payroll
Jefferson State CC,219516,Lopez Jorge,10/31/2022,1592.54,Unrestricted Shared Services,Payroll
Jefferson State CC,219517,Miller Stephanie,10/31/2022,2467.42,Unrestricted Shared Services,Payroll
Jefferson State CC,219518,Stewart Aaron,10/31/2022,1198.79,Unrestricted Shared Services,Payroll
Jefferson State CC,219519,Swann Christopher,10/31/2022,2161.25,Unrestricted Shared Services,Payroll
Jefferson State CC,219520,Wilson Colton,10/31/2022,2029.92,Unrestricted Shared Services,Payroll
Jefferson State CC,219521,Chamblin Juanita,10/31/2022,3321.49,Unrestricted Shared Services,Payroll
Jefferson State CC,219522,Key Karen,10/31/2022,2555,Unrestricted Shared Services,Payroll
Jefferson State CC,219523,Sutton Edreama,10/31/2022,3036.8,Unrestricted Shared Services,Payroll
Jefferson State CC,219524,Jones Oniki,10/31/2022,1548.79,Unrestricted Shared Services,Payroll
Jefferson State CC,219525,Cooper Jay,10/31/2022,1286.17,Unrestricted Shared Services,Payroll
Jefferson State CC,219526,Barnett C,10/31/2022,2248.83,Unrestricted Shared Services,Payroll
Jefferson State CC,219527,Borden Leslie,10/31/2022,1330.17,Unrestricted Shared Services,Payroll
Jefferson State CC,219528,Carson William,10/31/2022,2117.67,Unrestricted Shared Services,Payroll
Jefferson State CC,219529,Green Vincent,10/31/2022,2073.67,Unrestricted Shared Services,Payroll
Jefferson State CC,219530,James Selena,10/31/2022,1636.29,Unrestricted Shared Services,Payroll
Jefferson State CC,219531,Lockett Earnest,10/31/2022,1723.83,Unrestricted Shared Services,Payroll
Jefferson State CC,219532,McDonald Thomas,10/31/2022,2248.83,Unrestricted Shared Services,Payroll
Jefferson State CC,219533,Nathan Charlie,10/31/2022,1592.67,Unrestricted Shared Services,Payroll
Jefferson State CC,219534,Powrzanas Rodney,10/31/2022,1723.83,Unrestricted Shared Services,Payroll
Jefferson State CC,219535,Shorter Garland,10/31/2022,1843.17,Unrestricted Shared Services,Payroll
Jefferson State CC,219536,Tidmore Cecil,10/31/2022,2117.67,Unrestricted Shared Services,Payroll
Jefferson State CC,219537,Toney Clifford,10/31/2022,16058.56,Unrestricted Shared Services,Payroll
Jefferson State CC,219538,Sullivan Terri,10/31/2022,2248.83,Unrestricted Shared Services,Payroll
Jefferson State CC,219539,Cunningham Velma,10/31/2022,1680.25,Unrestricted Shared Services,Payroll
Jefferson State CC,219540,Eason Haley,10/31/2022,1330.04,Unrestricted Shared Services,Payroll
Jefferson State CC,219541,Payne Russell,10/31/2022,2467.42,Unrestricted Shared Services,Payroll
Jefferson State CC,219542,Pendleton Carolyn,10/31/2022,1071.04,Unrestricted Shared Services,Payroll
Jefferson State CC,219543,Purvis Larose,10/31/2022,1767.79,Unrestricted Shared Services,Payroll
Jefferson State CC,219544,Sanders Bernard,10/31/2022,2030.33,Unrestricted Shared Services,Payroll
Jefferson State CC,219545,Steele Kelvin,10/31/2022,2171.38,Unrestricted Shared Services,Payroll
Jefferson State CC,219546,Stockley Ginger,10/31/2022,2467.42,Unrestricted Shared Services,Payroll
Jefferson State CC,219547,Brown Mavis,10/31/2022,1330.04,Unrestricted Shared Services,Payroll
Jefferson State CC,219548,Cooper-Cox Robbie,10/31/2022,1810.13,Unrestricted Shared Services,Payroll
Jefferson State CC,219549,Crenshaw Lakeila,10/31/2022,1198.79,Unrestricted Shared Services,Payroll
Jefferson State CC,219550,Duchock Anita,10/31/2022,1461.33,Unrestricted Shared Services,Payroll
Jefferson State CC,219551,Johnson Gayle,10/31/2022,884.62,Unrestricted Shared Services,Payroll
Jefferson State CC,219552,Kimbrell Skyler,10/31/2022,1504.96,Unrestricted Shared Services,Payroll
Jefferson State CC,219553,Lattimore Rosetta,10/31/2022,1286.17,Unrestricted Shared Services,Payroll
Jefferson State CC,219554,Liddle Christiana,10/31/2022,1242.54,Unrestricted Shared Services,Payroll
Jefferson State CC,219555,Mathis Brenda,10/31/2022,1680.25,Unrestricted Shared Services,Payroll
Jefferson State CC,219556,McDaniel Barry,10/31/2022,1023.8,Unrestricted Shared Services,Payroll
Jefferson State CC,219557,Vann Rowella,10/31/2022,1198.79,Unrestricted Shared Services,Payroll
Jefferson State CC,219558,Washington Destin,10/31/2022,1592.67,Unrestricted Shared Services,Payroll
Jefferson State CC,219559,Kent Eric,10/31/2022,1155.04,Unrestricted Shared Services,Payroll
Jefferson State CC,219560,Wynn Michael,10/31/2022,1461.33,Unrestricted Shared Services,Payroll
Jefferson State CC,219561,Pettry Sherry,10/31/2022,2336.38,Unrestricted Shared Services,Payroll
Jefferson State CC,219562,Abad Fortunato,10/31/2022,801.12,Unrestricted Shared Services,Payroll
Jefferson State CC,219563,Anderson Jennifer,10/31/2022,383.87,Unrestricted Shared Services,Payroll
Jefferson State CC,219564,Anzueto Kathryn,10/31/2022,467.32,Unrestricted Shared Services,Payroll
Jefferson State CC,219565,Bizzell Dorothy,10/31/2022,1001.4,Unrestricted Shared Services,Payroll
Jefferson State CC,219566,Boland Keema,10/31/2022,267.04,Unrestricted Shared Services,Payroll
Jefferson State CC,219567,Broome Kristy,10/31/2022,400.56,Unrestricted Shared Services,Payroll
Jefferson State CC,219568,Brown Josephine,10/31/2022,534.08,Unrestricted Shared Services,Payroll
Jefferson State CC,219569,Campbell Mae,10/31/2022,634.22,Unrestricted Shared Services,Payroll
Jefferson State CC,219570,Chen Ja Lin,10/31/2022,300.42,Unrestricted Shared Services,Payroll
Jefferson State CC,219571,Coleman Carolyn,10/31/2022,801.12,Unrestricted Shared Services,Payroll
Jefferson State CC,219572,Richardson Hope,10/31/2022,1268.44,Unrestricted Shared Services,Payroll
Jefferson State CC,219573,Hobson Rachel,10/31/2022,417.25,Unrestricted Shared Services,Payroll
Jefferson State CC,219574,Cunningham Dana,10/31/2022,1268.44,Unrestricted Shared Services,Payroll
Jefferson State CC,219575,Doolittle Jennifer,10/31/2022,433.94,Unrestricted Shared Services,Payroll
Jefferson State CC,219576,Duke Juanita,10/31/2022,801.12,Unrestricted Shared Services,Payroll
Jefferson State CC,219577,Dykes Betty,10/31/2022,570,Unrestricted Shared Services,Payroll
Jefferson State CC,219578,Edwards Melanie,10/31/2022,267.04,Unrestricted Shared Services,Payroll
Jefferson State CC,219579,Floyd Natalie,10/31/2022,343.81,Unrestricted Shared Services,Payroll
Jefferson State CC,219580,Gonzalez Danielle,10/31/2022,1268.44,Unrestricted Shared Services,Payroll
Jefferson State CC,219581,Gregson Christa,10/31/2022,1001.4,Unrestricted Shared Services,Payroll
Jefferson State CC,219582,Hall Daniel,10/31/2022,1068.16,Unrestricted Shared Services,Payroll
Jefferson State CC,219583,Ham Lora,10/31/2022,634.22,Unrestricted Shared Services,Payroll
Jefferson State CC,219584,Hamby Angela,10/31/2022,283.73,Unrestricted Shared Services,Payroll
Jefferson State CC,219585,Hill Yvette,10/31/2022,433.94,Unrestricted Shared Services,Payroll
Jefferson State CC,219586,Jones Christina,10/31/2022,1268.44,Unrestricted Shared Services,Payroll
Jefferson State CC,219587,Jones D'Angelo,10/31/2022,1134.92,Unrestricted Shared Services,Payroll
Jefferson State CC,219588,Kersh Natasha,10/31/2022,333.8,Unrestricted Shared Services,Payroll
Jefferson State CC,219589,Liddle Anna,10/31/2022,467.32,Unrestricted Shared Services,Payroll
Jefferson State CC,219590,Lindsey Elizabeth,10/31/2022,450.63,Unrestricted Shared Services,Payroll
Jefferson State CC,219591,Lockhart Natalie,10/31/2022,751.05,Unrestricted Shared Services,Payroll
Jefferson State CC,219592,McEntire Ann,10/31/2022,333.8,Unrestricted Shared Services,Payroll
Jefferson State CC,219593,Miller Shaleen,10/31/2022,1268.44,Unrestricted Shared Services,Payroll
Jefferson State CC,219594,Nannini Anna,10/31/2022,1268.44,Unrestricted Shared Services,Payroll
Jefferson State CC,219595,Oberman Allison,10/31/2022,400.56,Unrestricted Shared Services,Payroll
Jefferson State CC,219596,Odom Donna,10/31/2022,801.12,Unrestricted Shared Services,Payroll
Jefferson State CC,219597,Pair Edward,10/31/2022,667.6,Unrestricted Shared Services,Payroll
Jefferson State CC,219598,Pickett Kimberly,10/31/2022,667.6,Unrestricted Shared Services,Payroll
Jefferson State CC,219599,Rhoden Lyndsie,10/31/2022,801.12,Unrestricted Shared Services,Payroll
Jefferson State CC,219600,Saemaldaher Melanie,10/31/2022,667.6,Unrestricted Shared Services,Payroll
Jefferson State CC,219601,Self Allison,10/31/2022,1268.44,Unrestricted Shared Services,Payroll
Jefferson State CC,219602,Shepherd Ashley,10/31/2022,534.08,Unrestricted Shared Services,Payroll
Jefferson State CC,219603,Smith Kandice,10/31/2022,570,Unrestricted Shared Services,Payroll
Jefferson State CC,219604,Snipes Britney,10/31/2022,1268.44,Unrestricted Shared Services,Payroll
Jefferson State CC,219605,Stewart Amethyst,10/31/2022,1268.44,Unrestricted Shared Services,Payroll
Jefferson State CC,219606,Taylor Tamika,10/31/2022,1268.44,Unrestricted Shared Services,Payroll
Jefferson State CC,219607,Tubbs Carrie,10/31/2022,534.08,Unrestricted Shared Services,Payroll
Jefferson State CC,219608,Vanderbleek Natalie,10/31/2022,333.8,Unrestricted Shared Services,Payroll
Jefferson State CC,219609,Wallis Howard,10/31/2022,333.8,Unrestricted Shared Services,Payroll
Jefferson State CC,219610,Washington Felisa,10/31/2022,539.09,Unrestricted Shared Services,Payroll
Jefferson State CC,219611,White Kelley,10/31/2022,333.8,Unrestricted Shared Services,Payroll
Jefferson State CC,219612,Williams Ashley,10/31/2022,333.8,Unrestricted Shared Services,Payroll
Jefferson State CC,219613,Williams Donna,10/31/2022,784.43,Unrestricted Shared Services,Payroll
Jefferson State CC,219614,Worsham Jessica,10/31/2022,333.8,Unrestricted Shared Services,Payroll
Jefferson State CC,219615,Hyde Natalie,10/31/2022,792,Unrestricted Shared Services,Payroll
Jefferson State CC,219616,Leach Brittany,10/31/2022,66,Unrestricted Shared Services,Payroll
Jefferson State CC,219617,Yates Lanette,10/31/2022,264,Unrestricted Shared Services,Payroll
Jefferson State CC,219618,Clark Stacy,10/31/2022,326.64,Unrestricted Shared Services,Payroll
Jefferson State CC,219619,Harvey Richard,10/31/2022,1170.51,Unrestricted Shared Services,Payroll
Jefferson State CC,219620,Haywood James,10/31/2022,1034.36,Unrestricted Shared Services,Payroll
Jefferson State CC,219621,King Dalton,10/31/2022,925.48,Unrestricted Shared Services,Payroll
Jefferson State CC,219622,McLaughlin Phillip,10/31/2022,244.98,Unrestricted Shared Services,Payroll
Jefferson State CC,219623,Nabors Stephen,10/31/2022,571.62,Unrestricted Shared Services,Payroll
Jefferson State CC,219624,Panepento Matthew,10/31/2022,1102.41,Unrestricted Shared Services,Payroll
Jefferson State CC,219625,Simmons Arlon,10/31/2022,1034.36,Unrestricted Shared Services,Payroll
Jefferson State CC,219626,Trammell Chase,10/31/2022,653.28,Unrestricted Shared Services,Payroll
Jefferson State CC,219627,Ward William,10/31/2022,1034.36,Unrestricted Shared Services,Payroll
Jefferson State CC,219628,Carroll Elizabeth,10/31/2022,1168.3,Unrestricted Shared Services,Payroll
Jefferson State CC,219629,Archie Ashley,10/31/2022,950,Unrestricted Shared Services,Payroll
Jefferson State CC,219630,Smith Lisa,10/31/2022,950,Unrestricted Shared Services,Payroll
Jefferson State CC,219631,Adams Kelly,10/31/2022,368,AE-Federal Regular 2XX2-2XX3,Payroll
Jefferson State CC,219632,Agee Teisha,10/31/2022,950,CAPTE-WIOA 22-23,Payroll
Jefferson State CC,219633,Arrowsmith Janice,10/31/2022,874,AE-Federal Regular 2XX2-2XX3,Payroll
Jefferson State CC,219634,Badio Jessical,10/31/2022,621,AE-Federal Regular 2XX2-2XX3,Payroll
Jefferson State CC,219635,Blackmon Archie,10/31/2022,437,AE-Federal Regular 2XX2-2XX3,Payroll
Jefferson State CC,219636,Brown Edith,10/31/2022,529,AE-State Regular 2XX2-2XX3,Payroll
Jefferson State CC,219637,Callins Lillian,10/31/2022,391,AE-Federal Regular 2XX2-2XX3,Payroll
Jefferson State CC,219638,Cochis Angela,10/31/2022,379.5,AE-Federal Regular 2XX2-2XX3,Payroll
Jefferson State CC,219639,Coleman Henry,10/31/2022,874,AE-Federal Regular 2XX2-2XX3,Payroll
Jefferson State CC,219640,Davis Jeffrey,10/31/2022,935.34,AE-State Regular 2XX2-2XX3,Payroll
Jefferson State CC,219641,Hammonds Cindy,10/31/2022,782,AE-Federal Regular 2XX2-2XX3,Payroll
Jefferson State CC,219642,Hawkins Felita,10/31/2022,684,AE-State Regular 2XX2-2XX3,Payroll
Jefferson State CC,219643,Irby Helen,10/31/2022,184,AE-State Regular 2XX2-2XX3,Payroll
Jefferson State CC,219644,Malone Valencia,10/31/2022,690,AE-State Regular 2XX2-2XX3,Payroll
Jefferson State CC,219645,Markovitz Yevonne,10/31/2022,874,AE-State Regular 2XX2-2XX3,Payroll
Jefferson State CC,219646,Morgan Mary,10/31/2022,276,AE-State Regular 2XX2-2XX3,Payroll
Jefferson State CC,219647,Parr Michele,10/31/2022,828,AE-State Regular 2XX2-2XX3,Payroll
Jefferson State CC,219648,Pearson Regina,10/31/2022,684,AE-State Regular 2XX2-2XX3,Payroll
Jefferson State CC,219649,Riggins Resha,10/31/2022,414,AE-State Regular 2XX2-2XX3,Payroll
Jefferson State CC,219650,Roberts Barbara,10/31/2022,414,AE-State Regular 2XX2-2XX3,Payroll
Jefferson State CC,219651,Rudd Julia,10/31/2022,598,AE-State Regular 2XX2-2XX3,Payroll
Jefferson State CC,219652,Sanders Anthony Michael,10/31/2022,874,AE-Federal Regular 2XX2-2XX3,Payroll
Jefferson State CC,219653,Sheikh Linda,10/31/2022,575,AE-State Regular 2XX2-2XX3,Payroll
Jefferson State CC,219654,Skalac Robyn,10/31/2022,368,AE-State Regular 2XX2-2XX3,Payroll
Jefferson State CC,219655,Snider Ken,10/31/2022,910.86,AE-State Regular 2XX2-2XX3,Payroll
Jefferson State CC,219656,Spraberry Mollie,10/31/2022,660.24,AE-State Regular 2XX2-2XX3,Payroll
Jefferson State CC,219657,Sweatt Helen,10/31/2022,598,AE-State Regular 2XX2-2XX3,Payroll
Jefferson State CC,219658,Vinson Phyllis,10/31/2022,391,AE-State Regular 2XX2-2XX3,Payroll
Jefferson State CC,219659,White Barbara,10/31/2022,747.5,AE-State Regular 2XX2-2XX3,Payroll
Jefferson State CC,219660,Wiginton Beverly,10/31/2022,598,AE-State Regular 2XX2-2XX3,Payroll
Jefferson State CC,219661,Foster Richard,10/31/2022,553.28,Unrestricted Shared Services,Payroll
Jefferson State CC,219662,Frank Theresa,10/31/2022,553.28,Unrestricted Shared Services,Payroll
Jefferson State CC,219663,Smith Victoria,10/31/2022,186.96,Unrestricted Shared Services,Payroll
Jefferson State CC,219664,Charping Ronda,10/31/2022,1027.52,Unrestricted Shared Services,Payroll
Jefferson State CC,219665,Begnaud Phillip,10/31/2022,1216,Unrestricted Shared Services,Payroll
Jefferson State CC,219666,O'Hern David,10/31/2022,540,Unrestricted Shared Services,Payroll
Jefferson State CC,219667,Addington Jennifer,10/31/2022,1580.8,Unrestricted Shared Services,Payroll
Jefferson State CC,219668,Baldwin Gennia,10/31/2022,332.8,Unrestricted Shared Services,Payroll
Jefferson State CC,219669,Barnes Wilbert,10/31/2022,416,Unrestricted Shared Services,Payroll
Jefferson State CC,219670,Bishop Patrick,10/31/2022,249.6,Unrestricted Shared Services,Payroll
Jefferson State CC,219671,Burgess Laura,10/31/2022,353.6,Unrestricted Shared Services,Payroll
Jefferson State CC,219672,Chappel Delena,10/31/2022,582.4,Unrestricted Shared Services,Payroll
Jefferson State CC,219673,Cobb Jonathan,10/31/2022,416,Unrestricted Shared Services,Payroll
Jefferson State CC,219674,Coleman Natalie,10/31/2022,582.4,Unrestricted Shared Services,Payroll
Jefferson State CC,219675,Collier Cynthia,10/31/2022,582.4,Unrestricted Shared Services,Payroll
Jefferson State CC,219676,Fletcher La'Toya,10/31/2022,499.2,Unrestricted Shared Services,Payroll
Jefferson State CC,219677,Grace Tonya,10/31/2022,416,Unrestricted Shared Services,Payroll
Jefferson State CC,219678,Graves Candise,10/31/2022,124.8,Unrestricted Shared Services,Payroll
Jefferson State CC,219679,Gray Lisa,10/31/2022,249.6,Unrestricted Shared Services,Payroll
Jefferson State CC,219680,Hollingsworth Donna,10/31/2022,1008.8,Unrestricted Shared Services,Payroll
Jefferson State CC,219681,McLain Christine,10/31/2022,1383.2,Women's Fund-Families Forward,Payroll
Jefferson State CC,219682,Mills Justin,10/31/2022,998.4,Unrestricted Shared Services,Payroll
Jefferson State CC,219683,Murphy Penny,10/31/2022,208,Unrestricted Shared Services,Payroll
Jefferson State CC,219684,Parsons Charles,10/31/2022,124.8,Unrestricted Shared Services,Payroll
Jefferson State CC,219685,Payne Angela,10/31/2022,1330,Unrestricted Shared Services,Payroll
Jefferson State CC,219686,Pullen Lacey,10/31/2022,665.6,Unrestricted Shared Services,Payroll
Jefferson State CC,219687,Purdy Zane,10/31/2022,249.6,Unrestricted Shared Services,Payroll
Jefferson State CC,219688,Russell Stephanie,10/31/2022,665.6,Unrestricted Shared Services,Payroll
Jefferson State CC,219689,Sloan Kevin,10/31/2022,166.4,Unrestricted Shared Services,Payroll
Jefferson State CC,219690,Thomas Linda,10/31/2022,873.6,Unrestricted Shared Services,Payroll
Jefferson State CC,219691,Washington Ellise,10/31/2022,499.2,Unrestricted Shared Services,Payroll
Jefferson State CC,219692,Willis Erica,10/31/2022,499.2,Unrestricted Shared Services,Payroll
Jefferson State CC,219693,Busby Yvette,10/31/2022,754,Unrestricted Shared Services,Payroll
Jefferson State CC,219694,Jones Lesia,10/31/2022,570,Unrestricted Shared Services,Payroll
Jefferson State CC,219695,Glover Anita,10/31/2022,718.96,Unrestricted Shared Services,Payroll
Jefferson State CC,219696,Stewart Janice,10/31/2022,454.08,Unrestricted Shared Services,Payroll
Jefferson State CC,219697,Weems Bryant Denise,10/31/2022,676.39,Unrestricted Shared Services,Payroll
Jefferson State CC,219698,Amerson-Dobbs Jessica,10/31/2022,456,Unrestricted Shared Services,Payroll
Jefferson State CC,219699,Cannon Kimberly,10/31/2022,456,Unrestricted Shared Services,Payroll
Jefferson State CC,219700,Dancy Darryl,10/31/2022,456,Unrestricted Shared Services,Payroll
Jefferson State CC,219701,Gumbs Andrea,10/31/2022,456,Unrestricted Shared Services,Payroll
Jefferson State CC,219702,Hairston Ella,10/31/2022,420,Unrestricted Shared Services,Payroll
Jefferson State CC,219703,Moore Shanine,10/31/2022,592.04,Unrestricted Shared Services,Payroll
Jefferson State CC,219704,Payne Adrian,10/31/2022,456,Unrestricted Shared Services,Payroll
Jefferson State CC,219705,Smith Debra,10/31/2022,456,Unrestricted Shared Services,Payroll
Jefferson State CC,219706,Wood Kelly,10/31/2022,456,Unrestricted Shared Services,Payroll
Jefferson State CC,219707,Liddle Elizabeth,10/31/2022,105,Unrestricted Shared Services,Payroll
Jefferson State CC,219708,Wilson Candace,10/31/2022,570,Unrestricted Shared Services,Payroll
Jefferson State CC,219709,Allen Felicia,10/31/2022,456,Unrestricted Shared Services,Payroll
Jefferson State CC,219710,Allen Vicki,10/31/2022,456,Unrestricted Shared Services,Payroll
Jefferson State CC,219711,Carruba Lorrie,10/31/2022,456,Unrestricted Shared Services,Payroll
Jefferson State CC,219712,Cashmore Jeffrey,10/31/2022,456,Unrestricted Shared Services,Payroll
Jefferson State CC,219713,Collar Danielle,10/31/2022,570,Unrestricted Shared Services,Payroll
Jefferson State CC,219714,Cooper Aeneas,10/31/2022,399,Unrestricted Shared Services,Payroll
Jefferson State CC,219715,Dunning William,10/31/2022,456,Unrestricted Shared Services,Payroll
Jefferson State CC,219716,Duren Courtney,10/31/2022,432,Unrestricted Shared Services,Payroll
Jefferson State CC,219717,Dye Leah,10/31/2022,456,Unrestricted Shared Services,Payroll
Jefferson State CC,219718,Faulk Marilynn,10/31/2022,408,Unrestricted Shared Services,Payroll
Jefferson State CC,219719,Jackson Madelyne,10/31/2022,420,Unrestricted Shared Services,Payroll
Jefferson State CC,219720,Key Jacob,10/31/2022,354,Unrestricted Shared Services,Payroll
Jefferson State CC,219721,Kirkland Olivia,10/31/2022,570,Unrestricted Shared Services,Payroll
Jefferson State CC,219722,Marbury Patricia,10/31/2022,570,Unrestricted Shared Services,Payroll
Jefferson State CC,219723,McDonald Timothy,10/31/2022,456,Unrestricted Shared Services,Payroll
Jefferson State CC,219724,Merritt Adrienne,10/31/2022,570,Unrestricted Shared Services,Payroll
Jefferson State CC,219725,Morgan Rickey,10/31/2022,432,Unrestricted Shared Services,Payroll
Jefferson State CC,219726,Putnam Patricia,10/31/2022,1216,Unrestricted Shared Services,Payroll
Jefferson State CC,219727,Rheaume Stephanie,10/31/2022,456,Unrestricted Shared Services,Payroll
Jefferson State CC,219728,Rivers Larry,10/31/2022,78,Unrestricted Shared Services,Payroll
Jefferson State CC,219729,Saylor Cleanese,10/31/2022,456,Unrestricted Shared Services,Payroll
Jefferson State CC,219730,White Sandra,10/31/2022,456,Unrestricted Shared Services,Payroll
Jefferson State CC,219731,Wilder Debra,10/31/2022,408,Unrestricted Shared Services,Payroll
Jefferson State CC,219732,Zandi Nader,10/31/2022,1216,Unrestricted Shared Services,Payroll
Jefferson State CC,219733,Ali Donna,10/31/2022,570,Unrestricted Shared Services,Payroll
Jefferson State CC,219734,Robinson Mattie,10/31/2022,570,Unrestricted Shared Services,Payroll
Jefferson State CC,219735,Brown-Ward Maurita,10/31/2022,384,Unrestricted Shared Services,Payroll
Jefferson State CC,219736,Crim Margaret,10/31/2022,665.6,Unrestricted Shared Services,Payroll
Jefferson State CC,219738,Kirk Willodean,10/31/2022,384,Unrestricted Shared Services,Payroll
Jefferson State CC,219739,Prevo Deborah,10/31/2022,570,Unrestricted Shared Services,Payroll
Jefferson State CC,219740,Culver Cynthia,10/31/2022,700,Unrestricted Shared Services,Payroll
Jefferson State CC,219741,Gillham Martha,10/31/2022,503.5,Unrestricted Shared Services,Payroll
Jefferson State CC,219742,Boggan Brenda,10/31/2022,336,Unrestricted Shared Services,Payroll
Jefferson State CC,219743,Burton Kenneth,10/31/2022,684,Unrestricted Shared Services,Payroll
Jefferson State CC,219744,Butler Neil,10/31/2022,720,Unrestricted Shared Services,Payroll
Jefferson State CC,219745,Chandler James,10/31/2022,560,Unrestricted Shared Services,Payroll
Jefferson State CC,219746,Channel Raymond,10/31/2022,810,Unrestricted Shared Services,Payroll
Jefferson State CC,219747,Cornner Thaddeus,10/31/2022,396,Unrestricted Shared Services,Payroll
Jefferson State CC,219748,Crowe Jeffrey,10/31/2022,378,Unrestricted Shared Services,Payroll
Jefferson State CC,219749,Gibbs John,10/31/2022,576,Unrestricted Shared Services,Payroll
Jefferson State CC,219750,Harrell John,10/31/2022,644,Unrestricted Shared Services,Payroll
Jefferson State CC,219751,Harrell Ramona,10/31/2022,532,Unrestricted Shared Services,Payroll
Jefferson State CC,219752,Hedrick Charles,10/31/2022,684,Unrestricted Shared Services,Payroll
Jefferson State CC,219753,Hicks Alan,10/31/2022,684,Unrestricted Shared Services,Payroll
Jefferson State CC,219754,Howard Dwayne,10/31/2022,576,Unrestricted Shared Services,Payroll
Jefferson State CC,219755,Johnson Marsha,10/31/2022,420,Unrestricted Shared Services,Payroll
Jefferson State CC,219756,Lovelace Michael,10/31/2022,855,Unrestricted Shared Services,Payroll
Jefferson State CC,219757,Schnuelle Archie,10/31/2022,1296,Unrestricted Shared Services,Payroll
Jefferson State CC,219758,Shobe Phillip,10/31/2022,1044,Unrestricted Shared Services,Payroll
Jefferson State CC,219759,Traywick Herbert,10/31/2022,532,Unrestricted Shared Services,Payroll
Jefferson State CC,219760,Turner Yolanda,10/31/2022,336,Unrestricted Shared Services,Payroll
Jefferson State CC,219761,Partain Mark,10/31/2022,760,Unrestricted Shelby Campus,Payroll
Jefferson State CC,219762,Steele Pamela,10/31/2022,503.5,Unrestricted Shared Services,Payroll
Jefferson State CC,219763,Jones Paul,10/31/2022,345,Unrestricted Shared Services,Payroll
Jefferson State CC,219764,Burge Kathy,10/31/2022,456,Unrestricted Shared Services,Payroll
Jefferson State CC,219765,Partain Daniel,10/31/2022,456,Unrestricted Shared Services,Payroll
Jefferson State CC,219766,Washington Sheila,10/31/2022,396,Unrestricted Shared Services,Payroll
Jefferson State CC,219767,Brown Keith,10/31/2022,22966.67,Unrestricted Shared Services,Payroll
Jefferson State CC,219768,Akpom Rachel,10/31/2022,7811.11,Unrestricted Distance Ed,Payroll
Jefferson State CC,219769,Barnhill Jenna,10/31/2022,2963.46,Unrestricted Jefferson Campus,Payroll
Jefferson State CC,219769,Barnhill Jenna,10/31/2022,2963.46,Unrestricted Shelby Campus,Payroll
Jefferson State CC,219770,Bonds Amanda,10/31/2022,6381.42,Unrestricted Chilton Campus,Payroll
Jefferson State CC,219771,Bynum Christopher,10/31/2022,5324.22,Unrestricted Jefferson Campus,Payroll
Jefferson State CC,219772,Cabaniss Amanda,10/31/2022,7067.89,Unrestricted Shelby Campus,Payroll
Jefferson State CC,219773,Clifton Teresa,10/31/2022,7067.89,Unrestricted Shelby Campus,Payroll
Jefferson State CC,219774,Craven Kimberly,10/31/2022,9007.76,Unrestricted St. Clair Campus,Payroll
Jefferson State CC,219775,Cresswell Richard,10/31/2022,8069.56,Unrestricted Shelby Campus,Payroll
Jefferson State CC,219776,Cuevas Jennifer,10/31/2022,6889.62,Unrestricted Shared Services,Payroll
Jefferson State CC,219777,Daffron Cristy,10/31/2022,8908.56,Unrestricted St. Clair Campus,Payroll
Jefferson State CC,219778,Ferguson Ladeitris,10/31/2022,7985.44,Unrestricted Shelby Campus,Payroll
Jefferson State CC,219779,Forbes Christopher,10/31/2022,8385.44,Unrestricted Chilton Campus,Payroll
Jefferson State CC,219780,Grimes Natasha,10/31/2022,8782.42,Unrestricted Shared Services,Payroll
Jefferson State CC,219781,Hart Melody,10/31/2022,6370.44,Unrestricted Jefferson Campus,Payroll
Jefferson State CC,219782,Haywood Patricia,10/31/2022,9031.67,Unrestricted Shelby Campus,Payroll
Jefferson State CC,219783,Hicks Stacy,10/31/2022,8508.56,Unrestricted Shared Services,Payroll
Jefferson State CC,219784,Hill Cynthia,10/31/2022,7067.89,Unrestricted Jefferson Campus,Payroll
Jefferson State CC,219785,Jones Julie,10/31/2022,8508.56,Unrestricted Chilton Campus,Payroll
Jefferson State CC,219786,Keene Jeremy,10/31/2022,6370.44,Unrestricted Jefferson Campus,Payroll
Jefferson State CC,219787,Lee Donna,10/31/2022,9031.67,Unrestricted Shelby Campus,Payroll
Jefferson State CC,219788,Naramore Anita,10/31/2022,9653.74,Unrestricted Shared Services,Payroll
Jefferson State CC,219789,Nasworthy Sara,10/31/2022,8508.56,Unrestricted Shared Services,Payroll
Jefferson State CC,219790,Parker Amber,10/31/2022,7636.89,Unrestricted Jefferson Campus,Payroll
Jefferson State CC,219791,Richardson Gena,10/31/2022,9031.67,Unrestricted Shelby Campus,Payroll
Jefferson State CC,219792,Rowe Tina,10/31/2022,7985.44,Unrestricted Chilton Campus,Payroll
Jefferson State CC,219793,Satterfield Jennifer,10/31/2022,8385.44,Unrestricted Shared Services,Payroll
Jefferson State CC,219794,Smith Jajuana,10/31/2022,7067.89,Unrestricted Shelby Campus,Payroll
Jefferson State CC,219795,Smith Veronica,10/31/2022,6370.44,Unrestricted Shared Services,Payroll
Jefferson State CC,219796,Turner Venius,10/31/2022,9431.67,Unrestricted Distance Ed,Payroll
Jefferson State CC,219797,Walker Melisa,10/31/2022,10129.11,Unrestricted Jefferson Campus,Payroll
Jefferson State CC,219798,Willis Rebecca,10/31/2022,7636.89,Unrestricted Shelby Campus,Payroll
Jefferson State CC,219799,Wilson Marjorie,10/31/2022,8508.56,Unrestricted Jefferson Campus,Payroll
Jefferson State CC,219800,Carwell Eric,10/31/2022,7197.89,Unrestricted Jefferson Campus,Payroll
Jefferson State CC,219801,Hill Candance,10/31/2022,8234.44,Unrestricted Jefferson Campus,Payroll
Jefferson State CC,219802,Jones Marvin,10/31/2022,5498.56,Unrestricted Shared Services,Payroll
Jefferson State CC,219803,Sweatt Wendy,10/31/2022,9044.42,Unrestricted Jefferson Campus,Payroll
Jefferson State CC,219804,Chamberlain Cassandra,10/31/2022,6500,Unrestricted Shared Services,Payroll
Jefferson State CC,219805,Edwards Beverly,10/31/2022,5717.44,Unrestricted Shared Services,Payroll
Jefferson State CC,219806,Hill Mandel,10/31/2022,5892,Unrestricted Shelby Campus,Payroll
Jefferson State CC,219807,Arnold Erin,10/31/2022,2771.41,Unrestricted Distance Ed,Payroll
Jefferson State CC,219807,Arnold Erin,10/31/2022,7226.78,Unrestricted Jefferson Campus,Payroll
Jefferson State CC,219808,Baccus Steven,10/31/2022,600,Unrestricted Shelby Campus,Payroll
Jefferson State CC,219808,Baccus Steven,10/31/2022,600,Unrestricted St. Clair Campus,Payroll
Jefferson State CC,219809,Barnes Debra,10/31/2022,1200,Unrestricted St. Clair Campus,Payroll
Jefferson State CC,219810,Bej Meena,10/31/2022,600,Unrestricted Shelby Campus,Payroll
Jefferson State CC,219811,Black Kelley,10/31/2022,9031.67,Unrestricted Chilton Campus,Payroll
Jefferson State CC,219812,Boitet Evan,10/31/2022,6939.22,Unrestricted Jefferson Campus,Payroll
Jefferson State CC,219813,Culpepper Micheal,10/31/2022,1200,Unrestricted Shelby Campus,Payroll
Jefferson State CC,219814,Dodwad-Khan Zareen,10/31/2022,7288.11,Unrestricted Shared Services,Payroll
Jefferson State CC,219814,Dodwad-Khan Zareen,10/31/2022,1200,Unrestricted Shelby Campus,Payroll
Jefferson State CC,219815,Hunsinger Ronald,10/31/2022,1200,Unrestricted St. Clair Campus,Payroll
Jefferson State CC,219816,Kin Nicholas,10/31/2022,9140.34,Unrestricted Shared Services,Payroll
Jefferson State CC,219817,Maharrey Julie,10/31/2022,2127.14,Unrestricted Distance Ed,Payroll
Jefferson State CC,219817,Maharrey Julie,10/31/2022,6981.42,Unrestricted Shelby Campus,Payroll
Jefferson State CC,219818,Manners Bettie,10/31/2022,1200,Unrestricted Jefferson Campus,Payroll
Jefferson State CC,219819,Miller Stephanie,10/31/2022,2117.39,Unrestricted Distance Ed,Payroll
Jefferson State CC,219819,Miller Stephanie,10/31/2022,7552.17,Unrestricted Shelby Campus,Payroll
Jefferson State CC,219820,Raymond Charles,10/31/2022,4942.92,Unrestricted Shelby Campus,Payroll
Jefferson State CC,219821,Swindall Amanda,10/31/2022,7985.44,Unrestricted Shared Services,Payroll
Jefferson State CC,219821,Swindall Amanda,10/31/2022,600,Unrestricted St. Clair Campus,Payroll
Jefferson State CC,219822,Venglarik Charles,10/31/2022,9554.67,Unrestricted Jefferson Campus,Payroll
Jefferson State CC,219823,Wheeler Crystal,10/31/2022,5204.42,Unrestricted Shared Services,Payroll
Jefferson State CC,219823,Wheeler Crystal,10/31/2022,600,Unrestricted Shelby Campus,Payroll
Jefferson State CC,219824,Elliott Cindy,10/31/2022,1720.02,Unrestricted Distance Ed,Payroll
Jefferson State CC,219824,Elliott Cindy,10/31/2022,4650.42,Unrestricted Shelby Campus,Payroll
Jefferson State CC,219825,Naugher Leslie,10/31/2022,7067.61,Unrestricted Shared Services,Payroll
Jefferson State CC,219826,Bolton Christie,10/31/2022,7067.89,Unrestricted Shelby Campus,Payroll
Jefferson State CC,219827,Ferguson Lydia,10/31/2022,7067.89,Unrestricted Shelby Campus,Payroll
Jefferson State CC,219828,Chesser Jennifer,10/31/2022,6196.11,Unrestricted Shared Services,Payroll
Jefferson State CC,219829,Trott David,10/31/2022,6897.85,Unrestricted Shared Services,Payroll
Jefferson State CC,219830,Campbell Michelle,10/31/2022,7112.33,Unrestricted Distance Ed,Payroll
Jefferson State CC,219831,Healy Kristianna,10/31/2022,4941.92,Unrestricted Distance Ed,Payroll
Jefferson State CC,219832,Turner-Bloch Jodi,10/31/2022,8508.56,Unrestricted Distance Ed,Payroll
Jefferson State CC,219833,Bryson Jesse,10/31/2022,3114.51,Unrestricted Distance Ed,Payroll
Jefferson State CC,219833,Bryson Jesse,10/31/2022,4261.32,Unrestricted Jefferson Campus,Payroll
Jefferson State CC,219834,Calhoun James,10/31/2022,5677.83,Unrestricted Shelby Campus,Payroll
Jefferson State CC,219835,Cartwright Darrell,10/31/2022,450,Unrestricted Distance Ed,Payroll
Jefferson State CC,219836,Cummings Frances,10/31/2022,1986.67,Unrestricted Distance Ed,Payroll
Jefferson State CC,219836,Cummings Frances,10/31/2022,5960,Unrestricted Shelby Campus,Payroll
Jefferson State CC,219837,Edge Mary,10/31/2022,1350,Unrestricted Distance Ed,Payroll
Jefferson State CC,219838,Hughes Fred,10/31/2022,5039.42,Unrestricted Shared Services,Payroll
Jefferson State CC,219838,Hughes Fred,10/31/2022,450,Unrestricted Shelby Campus,Payroll
Jefferson State CC,219839,Robinson Mary Alice,10/31/2022,900,Unrestricted Distance Ed,Payroll
Jefferson State CC,219840,Ballenger Steven,10/31/2022,1350,Unrestricted Distance Ed,Payroll
Jefferson State CC,219841,Crawford Wade,10/31/2022,4031.54,Unrestricted Distance Ed,Payroll
Jefferson State CC,219841,Crawford Wade,10/31/2022,1457.88,Unrestricted Jefferson Campus,Payroll
Jefferson State CC,219842,Dobyns Linda,10/31/2022,8165.03,Unrestricted Distance Ed,Payroll
Jefferson State CC,219843,Harris Gail,10/31/2022,330,Unrestricted Shared Services,Payroll
Jefferson State CC,219844,McGhee Benjamin,10/31/2022,450,Unrestricted Chilton Campus,Payroll
Jefferson State CC,219845,Mitchell Peasant Denedra,10/31/2022,450,Unrestricted Distance Ed,Payroll
Jefferson State CC,219845,Mitchell Peasant Denedra,10/31/2022,5660,Unrestricted Shared Services,Payroll
Jefferson State CC,219846,Peeples Peggy,10/31/2022,900,Unrestricted Distance Ed,Payroll
Jefferson State CC,219847,Qamar Ruqia,10/31/2022,900,Unrestricted Jefferson Campus,Payroll
Jefferson State CC,219848,Raza Syed,10/31/2022,4791.26,Unrestricted Distance Ed,Payroll
Jefferson State CC,219848,Raza Syed,10/31/2022,1197.82,Unrestricted Shelby Campus,Payroll
Jefferson State CC,219849,Wood John,10/31/2022,3731.67,Unrestricted Shared Services,Payroll
Jefferson State CC,219849,Wood John,10/31/2022,450,Unrestricted Shelby Campus,Payroll
Jefferson State CC,219850,Young Justin,10/31/2022,1350,Unrestricted Distance Ed,Payroll
Jefferson State CC,219851,Fisher Justin,10/31/2022,2827.16,Unrestricted Distance Ed,Payroll
Jefferson State CC,219851,Fisher Justin,10/31/2022,5140.73,Unrestricted Shelby Campus,Payroll
Jefferson State CC,219852,Jackson Todd,10/31/2022,3509.91,Unrestricted Jefferson Campus,Payroll
Jefferson State CC,219852,Jackson Todd,10/31/2022,3957.98,Unrestricted Shelby Campus,Payroll
Jefferson State CC,219853,Mitchell Joseph,10/31/2022,1834.21,Unrestricted Jefferson Campus,Payroll
Jefferson State CC,219853,Mitchell Joseph,10/31/2022,7819.54,Unrestricted Shelby Campus,Payroll
Jefferson State CC,219854,Rinsky Glenn,10/31/2022,9729.11,Unrestricted Shelby Campus,Payroll
Jefferson State CC,219855,Cottingham Latisha,10/31/2022,900,Unrestricted Distance Ed,Payroll
Jefferson State CC,219856,Mitchell Geana,10/31/2022,8508.56,Unrestricted Distance Ed,Payroll
Jefferson State CC,219857,Williams Dionne,10/31/2022,450,Unrestricted Distance Ed,Payroll
Jefferson State CC,219858,Avery Camilla,10/31/2022,2504.99,Unrestricted Distance Ed,Payroll
Jefferson State CC,219858,Avery Camilla,10/31/2022,5620.05,Unrestricted Jefferson Campus,Payroll
Jefferson State CC,219859,Crain Carol,10/31/2022,450,Unrestricted St. Clair Campus,Payroll
Jefferson State CC,219860,Griffen Tywain,10/31/2022,450,Unrestricted Shelby Campus,Payroll
Jefferson State CC,219861,Johnson Ana-Sky,10/31/2022,1350,Unrestricted Chilton Campus,Payroll
Jefferson State CC,219862,Kuhlman Bailey,10/31/2022,450,Unrestricted Jefferson Campus,Payroll
Jefferson State CC,219863,Mayton Patrick,10/31/2022,6370.44,Unrestricted Shelby Campus,Payroll
Jefferson State CC,219864,Montgomery Margaret,10/31/2022,1350,Unrestricted Jefferson Campus,Payroll
Jefferson State CC,219865,Morgan Melissa,10/31/2022,1350,Unrestricted Jefferson Campus,Payroll
Jefferson State CC,219866,Patrick Frank,10/31/2022,900,Unrestricted Shelby Campus,Payroll
Jefferson State CC,219867,Pierini Linda,10/31/2022,450,Unrestricted Shelby Campus,Payroll
Jefferson State CC,219868,Puckett Christina,10/31/2022,1350,Unrestricted St. Clair Campus,Payroll
Jefferson State CC,219869,Richard Mary,10/31/2022,600,Unrestricted St. Clair Campus,Payroll
Jefferson State CC,219870,Thompson Scott,10/31/2022,1350,Unrestricted Shelby Campus,Payroll
Jefferson State CC,219871,Waldron Edward,10/31/2022,1350,Unrestricted Shelby Campus,Payroll
Jefferson State CC,219872,Warren Germaine,10/31/2022,4123.92,Unrestricted Shared Services,Payroll
Jefferson State CC,219872,Warren Germaine,10/31/2022,450,Unrestricted St. Clair Campus,Payroll
Jefferson State CC,219873,Wright Catherine,10/31/2022,900,Unrestricted Shelby Campus,Payroll
Jefferson State CC,219874,Lanier Mildred,10/31/2022,6625.83,Unrestricted Shelby Campus,Payroll
Jefferson State CC,219875,Thomas Michael,10/31/2022,5096.35,Unrestricted Jefferson Campus,Payroll
Jefferson State CC,219875,Thomas Michael,10/31/2022,1274.09,Unrestricted Shelby Campus,Payroll
Jefferson State CC,219876,Bland Robert,10/31/2022,5847.25,Unrestricted Shared Services,Payroll
Jefferson State CC,219877,Manasco Jeffery,10/31/2022,450,Unrestricted Distance Ed,Payroll
Jefferson State CC,219878,Tallmage Doyle,10/31/2022,450,Unrestricted Distance Ed,Payroll
Jefferson State CC,219879,Barber Dakota,10/31/2022,1050,Unrestricted St. Clair Campus,Payroll
Jefferson State CC,219880,Boehm Matthew,10/31/2022,6849.22,Unrestricted Jefferson Campus,Payroll
Jefferson State CC,219881,Boulware Kim,10/31/2022,600,Unrestricted Chilton Campus,Payroll
Jefferson State CC,219882,Brooks Michael,10/31/2022,1350,Unrestricted Shelby Campus,Payroll
Jefferson State CC,219883,Burke Eleanna,10/31/2022,900,Unrestricted Chilton Campus,Payroll
Jefferson State CC,219884,Burns Syreeta,10/31/2022,8435.44,Unrestricted Shelby Campus,Payroll
Jefferson State CC,219885,Carr Bethany,10/31/2022,450,Unrestricted Distance Ed,Payroll
Jefferson State CC,219886,Caskey Connie,10/31/2022,6575.83,Unrestricted Shelby Campus,Payroll
Jefferson State CC,219887,Conner Debra,10/31/2022,1350,Unrestricted Jefferson Campus,Payroll
Jefferson State CC,219888,Cornelius Kindall,10/31/2022,1200,Unrestricted Shelby Campus,Payroll
Jefferson State CC,219889,Cotten Linda,10/31/2022,450,Unrestricted Shelby Campus,Payroll
Jefferson State CC,219890,Creel Sarah,10/31/2022,6066.08,Unrestricted Shelby Campus,Payroll
Jefferson State CC,219891,Crumpton Eva,10/31/2022,1950,Unrestricted Shelby Campus,Payroll
Jefferson State CC,219892,Cuevas Eugene,10/31/2022,7169.22,Unrestricted Shelby Campus,Payroll
Jefferson State CC,219893,Eastman Jacqueline,10/31/2022,450,Unrestricted Shelby Campus,Payroll
Jefferson State CC,219894,Eastman Robert,10/31/2022,450,Unrestricted Shelby Campus,Payroll
Jefferson State CC,219895,Fabris Shaley,10/31/2022,1800,Unrestricted Shelby Campus,Payroll
Jefferson State CC,219896,Foushee Rebecca,10/31/2022,1350,Unrestricted Shelby Campus,Payroll
Jefferson State CC,219897,Ginas Gallow Elizabeth,10/31/2022,3862.42,Unrestricted Shelby Campus,Payroll
Jefferson State CC,219898,Henderson Kristin,10/31/2022,10171.75,Unrestricted Shared Services,Payroll
Jefferson State CC,219899,Hyde Dianna,10/31/2022,7667.89,Unrestricted Shelby Campus,Payroll
Jefferson State CC,219900,Isbell Julie,10/31/2022,1200,Unrestricted Shelby Campus,Payroll
Jefferson State CC,219901,Kendrick Haley,10/31/2022,4516.25,Unrestricted Shared Services,Payroll
Jefferson State CC,219901,Kendrick Haley,10/31/2022,150,Unrestricted St. Clair Campus,Payroll
Jefferson State CC,219902,King Jamie,10/31/2022,3460.84,Unrestricted Chilton Campus,Payroll
Jefferson State CC,219902,King Jamie,10/31/2022,3010.83,Unrestricted St. Clair Campus,Payroll
Jefferson State CC,219903,Kitchens Lauren,10/31/2022,8460.17,Unrestricted Shared Services,Payroll
Jefferson State CC,219904,Kosmus Amanda,10/31/2022,1350,Unrestricted Jefferson Campus,Payroll
Jefferson State CC,219905,Krall Nora,10/31/2022,1200,Unrestricted Shelby Campus,Payroll
Jefferson State CC,219906,Lewis Erin,10/31/2022,2338.89,Unrestricted Shelby Campus,Payroll
Jefferson State CC,219906,Lewis Erin,10/31/2022,3508.33,Unrestricted St. Clair Campus,Payroll
Jefferson State CC,219907,Lucas Gail,10/31/2022,900,Unrestricted Shelby Campus,Payroll
Jefferson State CC,219908,McKinley Robert,10/31/2022,1350,Unrestricted Shelby Campus,Payroll
Jefferson State CC,219909,Melvin Jacob,10/31/2022,1274.09,Unrestricted Distance Ed,Payroll
Jefferson State CC,219909,Melvin Jacob,10/31/2022,5546.35,Unrestricted St. Clair Campus,Payroll
Jefferson State CC,219910,Merrill John,10/31/2022,900,Unrestricted Jefferson Campus,Payroll
Jefferson State CC,219910,Merrill John,10/31/2022,6849.22,Unrestricted Shared Services,Payroll
Jefferson State CC,219911,Milton Lorrie,10/31/2022,1200,Unrestricted Shelby Campus,Payroll
Jefferson State CC,219912,Moreman Sarah,10/31/2022,2250,Unrestricted Chilton Campus,Payroll
Jefferson State CC,219913,Mosley Lucille,10/31/2022,600,Unrestricted Shelby Campus,Payroll
Jefferson State CC,219914,Pass Lynn,10/31/2022,450,Unrestricted Jefferson Campus,Payroll
Jefferson State CC,219915,Pelliccio Priscilla,10/31/2022,1650,Unrestricted Shelby Campus,Payroll
Jefferson State CC,219916,Rezek Thomas,10/31/2022,1350,Unrestricted Shelby Campus,Payroll
Jefferson State CC,219917,Rockett Brian,10/31/2022,6719.22,Unrestricted Shelby Campus,Payroll
Jefferson State CC,219918,Steed Thomas,10/31/2022,1350,Unrestricted Shelby Campus,Payroll
Jefferson State CC,219919,Taylor Mary,10/31/2022,900,Unrestricted Shelby Campus,Payroll
Jefferson State CC,219920,Thompson Kevin,10/31/2022,1800,Unrestricted Shelby Campus,Payroll
Jefferson State CC,219921,Wyatt Heather,10/31/2022,6196.11,Unrestricted Shared Services,Payroll
Jefferson State CC,219922,Youngblood Mark,10/31/2022,5300.92,Unrestricted Shelby Campus,Payroll
Jefferson State CC,219923,Bacani Tanja,10/31/2022,1350,Unrestricted Jefferson Campus,Payroll
Jefferson State CC,219924,Bishop Christopher,10/31/2022,1350,Unrestricted Shelby Campus,Payroll
Jefferson State CC,219925,Bunn Benjamin,10/31/2022,1350,Unrestricted Shelby Campus,Payroll
Jefferson State CC,219926,Irvin Joseph,10/31/2022,8519.56,Unrestricted Shelby Campus,Payroll
Jefferson State CC,219927,Kline David,10/31/2022,1350,Unrestricted Chilton Campus,Payroll
Jefferson State CC,219928,McRae David,10/31/2022,2791.64,Unrestricted Chilton Campus,Payroll
Jefferson State CC,219928,McRae David,10/31/2022,4637.47,Unrestricted St. Clair Campus,Payroll
Jefferson State CC,219929,Shuffett Wendy,10/31/2022,8024.89,Unrestricted Shelby Campus,Payroll
Jefferson State CC,219930,West Pamela,10/31/2022,8069.56,Unrestricted Jefferson Campus,Payroll
Jefferson State CC,219931,Bonner Phaer,10/31/2022,6370.44,Unrestricted Jefferson Campus,Payroll
Jefferson State CC,219931,Bonner Phaer,10/31/2022,450,Unrestricted Shelby Campus,Payroll
Jefferson State CC,219932,Ford Angela,10/31/2022,2015.77,Unrestricted Distance Ed,Payroll
Jefferson State CC,219932,Ford Angela,10/31/2022,3473.65,Unrestricted Jefferson Campus,Payroll
Jefferson State CC,219933,Gasper Sarah,10/31/2022,1343.84,Unrestricted Distance Ed,Payroll
Jefferson State CC,219933,Gasper Sarah,10/31/2022,5825.38,Unrestricted St. Clair Campus,Payroll
Jefferson State CC,219934,Maximo-Medrano Jose,10/31/2022,1350,Unrestricted Shelby Campus,Payroll
Jefferson State CC,219935,Pouncey Jeffrey,10/31/2022,4661.28,Unrestricted Chilton Campus,Payroll
Jefferson State CC,219935,Pouncey Jeffrey,10/31/2022,862.55,Unrestricted Distance Ed,Payroll
Jefferson State CC,219936,Triplett Stanley,10/31/2022,450,Unrestricted Jefferson Campus,Payroll
Jefferson State CC,219936,Triplett Stanley,10/31/2022,5989.08,Unrestricted Shared Services,Payroll
Jefferson State CC,219937,Lewis Lucy,10/31/2022,6175.83,Unrestricted Distance Ed,Payroll
Jefferson State CC,219937,Lewis Lucy,10/31/2022,2058.61,Unrestricted Jefferson Campus,Payroll
Jefferson State CC,219937,Lewis Lucy,10/31/2022,450,Unrestricted St. Clair Campus,Payroll
Jefferson State CC,219938,Aldrich Summer,10/31/2022,6719.22,Unrestricted Shelby Campus,Payroll
Jefferson State CC,219939,Coleman Jamilya,10/31/2022,450,Unrestricted Shelby Campus,Payroll
Jefferson State CC,219940,Dudchock Natalie,10/31/2022,900,Unrestricted Shelby Campus,Payroll
Jefferson State CC,219941,Hamilton Marisa,10/31/2022,1212,Unrestricted Distance Ed,Payroll
Jefferson State CC,219941,Hamilton Marisa,10/31/2022,5298,Unrestricted Jefferson Campus,Payroll
Jefferson State CC,219942,Harrison Vernon,10/31/2022,7811.11,Unrestricted Shelby Campus,Payroll
Jefferson State CC,219943,Humphries Jacob,10/31/2022,450,Unrestricted Shelby Campus,Payroll
Jefferson State CC,219944,McKinney David,10/31/2022,7327.89,Unrestricted Shared Services,Payroll
Jefferson State CC,219944,McKinney David,10/31/2022,450,Unrestricted Shelby Campus,Payroll
Jefferson State CC,219945,Olmstead Jerrid,10/31/2022,5599.89,Unrestricted Chilton Campus,Payroll
Jefferson State CC,219946,Ralya Janice,10/31/2022,9729.11,Unrestricted Shelby Campus,Payroll
Jefferson State CC,219947,Webb Cherroyle,10/31/2022,6151.67,Unrestricted Jefferson Campus,Payroll
Jefferson State CC,219948,Lamb Kristen,10/31/2022,600,Unrestricted Jefferson Campus,Payroll
Jefferson State CC,219949,Lewis Breaunna,10/31/2022,600,Unrestricted Jefferson Campus,Payroll
Jefferson State CC,219950,Owens Laura,10/31/2022,600,Unrestricted Chilton Campus,Payroll
Jefferson State CC,219951,Porter Alexandria,10/31/2022,1200,Unrestricted Jefferson Campus,Payroll
Jefferson State CC,219952,Smith Jessica,10/31/2022,1200,Unrestricted Chilton Campus,Payroll
Jefferson State CC,219953,Carlisle Amanda,10/31/2022,5847.22,Unrestricted Shelby Campus,Payroll
Jefferson State CC,219954,Adams Vicki,10/31/2022,8640.89,Unrestricted Jefferson Campus,Payroll
Jefferson State CC,219955,Bates Susan,10/31/2022,1350,Unrestricted Jefferson Campus,Payroll
Jefferson State CC,219956,Bennett Kim,10/31/2022,6650.33,Unrestricted Shelby Campus,Payroll
Jefferson State CC,219957,Compton Leah,10/31/2022,4875.25,Unrestricted Shared Services,Payroll
Jefferson State CC,219957,Compton Leah,10/31/2022,1400,Unrestricted Shelby Campus,Payroll
Jefferson State CC,219958,Cunningham Jarrod,10/31/2022,1050,Unrestricted Chilton Campus,Payroll
Jefferson State CC,219958,Cunningham Jarrod,10/31/2022,2306.87,Unrestricted Jefferson Campus,Payroll
Jefferson State CC,219958,Cunningham Jarrod,10/31/2022,2306.88,Unrestricted St. Clair Campus,Payroll
Jefferson State CC,219959,Darby Jeffrey,10/31/2022,7647.89,Unrestricted Shelby Campus,Payroll
Jefferson State CC,219960,Easterling Brittany,10/31/2022,1200,Unrestricted Chilton Campus,Payroll
Jefferson State CC,219961,Easterling Nanette,10/31/2022,7276.35,Unrestricted Chilton Campus,Payroll
Jefferson State CC,219961,Easterling Nanette,10/31/2022,1214.54,Unrestricted Distance Ed,Payroll
Jefferson State CC,219962,Fall Ethel,10/31/2022,9669.56,Unrestricted Jefferson Campus,Payroll
Jefferson State CC,219963,Gray Mark,10/31/2022,1200,Unrestricted Shelby Campus,Payroll
Jefferson State CC,219964,Hargett Yu-Ing,10/31/2022,4174.99,Unrestricted Distance Ed,Payroll
Jefferson State CC,219964,Hargett Yu-Ing,10/31/2022,4465.9,Unrestricted Shelby Campus,Payroll
Jefferson State CC,219965,Holley Jamie,10/31/2022,1912.87,Unrestricted Distance Ed,Payroll
Jefferson State CC,219965,Holley Jamie,10/31/2022,5583.24,Unrestricted Shelby Campus,Payroll
Jefferson State CC,219966,Moore Sabrina,10/31/2022,4777.83,Unrestricted Shared Services,Payroll
Jefferson State CC,219966,Moore Sabrina,10/31/2022,1050,Unrestricted St. Clair Campus,Payroll
Jefferson State CC,219967,Nagy Lisa,10/31/2022,600,Unrestricted Jefferson Campus,Payroll
Jefferson State CC,219967,Nagy Lisa,10/31/2022,8508.56,Unrestricted Shelby Campus,Payroll
Jefferson State CC,219968,Pate Peggy,10/31/2022,600,Unrestricted Jefferson Campus,Payroll
Jefferson State CC,219969,Roberson Rebecca,10/31/2022,600,Unrestricted Shelby Campus,Payroll
Jefferson State CC,219970,Shypil Olena,10/31/2022,1050,Unrestricted Jefferson Campus,Payroll
Jefferson State CC,219971,Smitherman April,10/31/2022,1200,Unrestricted Shelby Campus,Payroll
Jefferson State CC,219972,Stricklin Sharon,10/31/2022,1350,Unrestricted Jefferson Campus,Payroll
Jefferson State CC,219973,Wallace Robert,10/31/2022,4864.56,Unrestricted Distance Ed,Payroll
Jefferson State CC,219973,Wallace Robert,10/31/2022,6064.55,Unrestricted Jefferson Campus,Payroll
Jefferson State CC,219974,White Samuel,10/31/2022,7096.75,Unrestricted Jefferson Campus,Payroll
Jefferson State CC,219975,Williams Chad,10/31/2022,1350,Unrestricted Shelby Campus,Payroll
Jefferson State CC,219976,Yazdi Roya,10/31/2022,1350,Unrestricted Shelby Campus,Payroll
Jefferson State CC,219977,Dice James,10/31/2022,1200,Unrestricted Jefferson Campus,Payroll
Jefferson State CC,219978,Barnett Laura,10/31/2022,3626.11,AE-Federal Regular 2XX2-2XX3,Payroll
Jefferson State CC,219979,Gross Montez,10/31/2022,6193.27,AE-Federal Regular 2XX2-2XX3,Payroll
Jefferson State CC,219980,Rowland Adrienne,10/31/2022,6898.01,Unrestricted Shared Services,Payroll
Jefferson State CC,219981,Skelton Laurie,10/31/2022,4214.22,AE-Federal Regular 2XX2-2XX3,Payroll
Jefferson State CC,219982,Stanley Nathaniel,10/31/2022,4057.56,Unrestricted Shared Services,Payroll
Jefferson State CC,219983,Wood Barbara,10/31/2022,6334.84,AE-Federal Regular 2XX2-2XX3,Payroll
Jefferson State CC,219984,Best Fred,10/31/2022,450,Unrestricted Jefferson Campus,Payroll
Jefferson State CC,219985,Meadow Stephen,10/31/2022,750,Unrestricted Jefferson Campus,Payroll
Jefferson State CC,219986,Safavi Seyed,10/31/2022,6979.68,Unrestricted Chilton Campus,Payroll
Jefferson State CC,219987,Smith Edwin,10/31/2022,1350,Unrestricted Jefferson Campus,Payroll
Jefferson State CC,219988,Seagle Heather,10/31/2022,5758.31,Unrestricted Distance Ed,Payroll
Jefferson State CC,219988,Seagle Heather,10/31/2022,1439.58,Unrestricted Jefferson Campus,Payroll
Jefferson State CC,219989,Shackelford Cindy,10/31/2022,1204.09,DHR Childcare 2XX0-2XX1,Payroll
Jefferson State CC,219989,Shackelford Cindy,10/31/2022,1605.66,Unrestricted Distance Ed,Payroll
Jefferson State CC,219989,Shackelford Cindy,10/31/2022,1605.05,Unrestricted Shelby Campus,Payroll
Jefferson State CC,219989,Shackelford Cindy,10/31/2022,1605.66,Unrestricted St. Clair Campus,Payroll
Jefferson State CC,219990,Anderson Randall,10/31/2022,1800,Unrestricted Jefferson Campus,Payroll
Jefferson State CC,219991,Ennis Jzyk,10/31/2022,3891.64,Unrestricted Distance Ed,Payroll
Jefferson State CC,219991,Ennis Jzyk,10/31/2022,5837.47,Unrestricted Jefferson Campus,Payroll
Jefferson State CC,219992,Freind Jonathan,10/31/2022,1200,Unrestricted Jefferson Campus,Payroll
Jefferson State CC,219993,Smith Venus,10/31/2022,1886.67,Unrestricted Distance Ed,Payroll
Jefferson State CC,219993,Smith Venus,10/31/2022,5660,Unrestricted Jefferson Campus,Payroll
Jefferson State CC,219994,Burroughs Kelley,10/31/2022,6370.44,Unrestricted Shared Services,Payroll
Jefferson State CC,219995,Wilcher Donald,10/31/2022,8071.92,Unrestricted Jefferson Campus,Payroll
Jefferson State CC,219996,Acker Dale,10/31/2022,8239.22,Unrestricted Shelby Campus,Payroll
Jefferson State CC,219997,Scott James,10/31/2022,5365.08,Unrestricted Shared Services,Payroll
Jefferson State CC,219998,Wiley Jeffrey,10/31/2022,5479.38,Unrestricted Jefferson Campus,Payroll
Jefferson State CC,219998,Wiley Jeffrey,10/31/2022,1369.84,Unrestricted St. Clair Campus,Payroll
Jefferson State CC,219999,Bigbee Leah,10/31/2022,8289,Unrestricted Shared Services,Payroll
Jefferson State CC,220000,Blevins Alex,10/31/2022,6066.67,Unrestricted Shared Services,Payroll
Jefferson State CC,220001,McClung Britney,10/31/2022,3678.85,Unrestricted Shared Services,Payroll
Jefferson State CC,220002,Rainwater Scotty,10/31/2022,4166.67,Unrestricted Shared Services,Payroll
Jefferson State CC,220003,Gordon Brian,10/31/2022,10133.84,Unrestricted Shared Services,Payroll
Jefferson State CC,220004,LeBlanc Vanessa,10/31/2022,8626.84,Unrestricted Shared Services,Payroll
Jefferson State CC,220005,Hughes Kevin,10/31/2022,450,Unrestricted Jefferson Campus,Payroll
Jefferson State CC,220006,Coburn Danielle,10/31/2022,12260.07,Unrestricted Shared Services,Payroll
Jefferson State CC,220007,Brown Catherine,10/31/2022,1413.58,Unrestricted Chilton Campus,Payroll
Jefferson State CC,220007,Brown Catherine,10/31/2022,5954.31,Unrestricted Shelby Campus,Payroll
Jefferson State CC,220008,Echols Danise,10/31/2022,2120.37,Unrestricted Distance Ed,Payroll
Jefferson State CC,220008,Echols Danise,10/31/2022,600,Unrestricted Jefferson Campus,Payroll
Jefferson State CC,220008,Echols Danise,10/31/2022,3180.55,Unrestricted Shelby Campus,Payroll
Jefferson State CC,220009,Hallmark Camille,10/31/2022,1518.18,Unrestricted Distance Ed,Payroll
Jefferson State CC,220009,Hallmark Camille,10/31/2022,6672.71,Unrestricted Jefferson Campus,Payroll
Jefferson State CC,220010,Harris Liesl,10/31/2022,9653.75,Unrestricted Shared Services,Payroll
Jefferson State CC,220011,Bierley Jason,10/31/2022,7254.51,Unrestricted Shared Services,Payroll
Jefferson State CC,220012,Moore Kenneth,10/31/2022,7027.42,Unrestricted Shared Services,Payroll
Jefferson State CC,220013,Sykes-Bennett Latosha,10/31/2022,5483.49,Unrestricted Shared Services,Payroll
Jefferson State CC,220014,Alexander Zachary,10/31/2022,6370.44,Unrestricted Distance Ed,Payroll
Jefferson State CC,220014,Alexander Zachary,10/31/2022,900,Unrestricted Shelby Campus,Payroll
Jefferson State CC,220015,Culbertson Shay,10/31/2022,7067.89,Unrestricted Shared Services,Payroll
Jefferson State CC,220016,Davis Alan,10/31/2022,10000.58,Unrestricted Shared Services,Payroll
Jefferson State CC,220017,Hall Melissa,10/31/2022,450,Unrestricted Jefferson Campus,Payroll
Jefferson State CC,220017,Hall Melissa,10/31/2022,450,Unrestricted Shelby Campus,Payroll
Jefferson State CC,220018,Jones LaTonya,10/31/2022,6492.1,Unrestricted Shared Services,Payroll
Jefferson State CC,220019,Luna Wilmer,10/31/2022,8508.56,Unrestricted Shared Services,Payroll
Jefferson State CC,220020,Lyons Charlotte,10/31/2022,600,Unrestricted Jefferson Campus,Payroll
Jefferson State CC,220021,Payne Michael,10/31/2022,5624.53,Unrestricted Shared Services,Payroll
Jefferson State CC,220022,Townes Kevin,10/31/2022,8266.44,Unrestricted Shelby Campus,Payroll
Jefferson State CC,220023,Folds Dusty,10/31/2022,5495.92,Unrestricted Shared Services,Payroll
Jefferson State CC,220024,Goss Barbara,10/31/2022,8612.42,Unrestricted Shared Services,Payroll
Jefferson State CC,220025,King Clare,10/31/2022,6370.44,Unrestricted St. Clair Campus,Payroll
Jefferson State CC,220026,Lawley Heather,10/31/2022,6853.64,Unrestricted Shared Services,Payroll
Jefferson State CC,220027,Stewart Sharon,10/31/2022,6719.22,Unrestricted Shelby Campus,Payroll
Jefferson State CC,220028,Ginn Shannon,10/31/2022,7056.28,Unrestricted Shared Services,Payroll
Jefferson State CC,220029,Lane Tiffany,10/31/2022,5856.18,Unrestricted Shared Services,Payroll
Jefferson State CC,220030,Wangle Timothy,10/31/2022,3978,Unrestricted Shared Services,Payroll
Jefferson State CC,220031,Sherman Anne,10/31/2022,6529.38,Unrestricted Shared Services,Payroll
Jefferson State CC,220032,Armstrong Toneka,10/31/2022,6570.63,Unrestricted Shared Services,Payroll
Jefferson State CC,220033,Bobo Cynthia,10/31/2022,7472.51,Unrestricted Shared Services,Payroll
Jefferson State CC,220034,Call Jacob,10/31/2022,5628.65,Unrestricted Shared Services,Payroll
Jefferson State CC,220035,Creer Reina,10/31/2022,3144.21,Unrestricted Shared Services,Payroll
Jefferson State CC,220036,Emmerich Julie,10/31/2022,6558.92,Unrestricted Shared Services,Payroll
Jefferson State CC,220037,Goodman Adam,10/31/2022,8973.67,Unrestricted Shared Services,Payroll
Jefferson State CC,220038,Graves Barry,10/31/2022,6500,Unrestricted Shared Services,Payroll
Jefferson State CC,220039,Guinn Philip,10/31/2022,7472.51,Unrestricted Shared Services,Payroll
Jefferson State CC,220040,Johnson Kathleen,10/31/2022,5229.68,Unrestricted Shared Services,Payroll
Jefferson State CC,220041,Lindell TyAnn,10/31/2022,5684.95,Unrestricted Shared Services,Payroll
Jefferson State CC,220042,Rigg Kimberly,10/31/2022,5093.92,Unrestricted Shared Services,Payroll
Jefferson State CC,220043,Thomas Brandy,10/31/2022,4244.93,Unrestricted Shared Services,Payroll
Jefferson State CC,220044,Thompson Rodney,10/31/2022,7137.54,Unrestricted Shared Services,Payroll
Jefferson State CC,220045,Campbell Tracy,10/31/2022,4690.54,Unrestricted Shared Services,Payroll
Jefferson State CC,220046,Moore Aaliyah,10/31/2022,6012.85,Regions Student Success Hub,Payroll
Jefferson State CC,220047,Payne Tamara,10/31/2022,914.04,CAPTE-WIOA 22-23,Payroll
Jefferson State CC,220047,Payne Tamara,10/31/2022,8226.3,Unrestricted Shared Services,Payroll
Jefferson State CC,220048,Wright Tierra,10/31/2022,7035.81,AE-State Regular 2XX2-2XX3,Payroll
Jefferson State CC,220049,Alzoubi Kasim,10/31/2022,8460.17,Unrestricted Shared Services,Payroll
Jefferson State CC,220050,Douglass Robert,10/31/2022,6494.4,Unrestricted Shared Services,Payroll
Jefferson State CC,220051,Reach Brett,10/31/2022,5978.14,Unrestricted Shared Services,Payroll
Jefferson State CC,220052,Harris Patricia,10/31/2022,7472.51,Unrestricted Shared Services,Payroll
Jefferson State CC,220053,Brown India,10/31/2022,4181.31,Unrestricted Shared Services,Payroll
Jefferson State CC,220054,Cole Ched,10/31/2022,6348.45,Unrestricted Shared Services,Payroll
Jefferson State CC,220055,Cook Paul,10/31/2022,8612.42,Unrestricted Shared Services,Payroll
Jefferson State CC,220056,Relihan Bruce,10/31/2022,6990.71,Unrestricted Shared Services,Payroll
Jefferson State CC,220057,White Pamela,10/31/2022,6606.96,Unrestricted Shared Services,Payroll
Jefferson State CC,220058,Holmes Elizabeth,10/31/2022,5300.92,Unrestricted Shelby Campus,Payroll
Jefferson State CC,220059,Boone Deborah,10/31/2022,8612.42,Unrestricted Shared Services,Payroll
Jefferson State CC,220060,Kennedy Tonja,10/31/2022,6162.21,Unrestricted Shared Services,Payroll
Jefferson State CC,220061,Bergman Michael,10/31/2022,6354.67,Unrestricted Shared Services,Payroll
Jefferson State CC,220062,Kin Amanda,10/31/2022,9967.17,Unrestricted Shared Services,Payroll
Jefferson State CC,220063,Stephens Nareiko,10/31/2022,6315.49,Unrestricted Shared Services,Payroll
Jefferson State CC,220064,George James,10/31/2022,5127.2,Unrestricted Shared Services,Payroll
Jefferson State CC,220065,Kennedy Ronphael,10/31/2022,6718.4,Unrestricted Shared Services,Payroll
Jefferson State CC,220066,Bobo David,10/31/2022,7905.25,Unrestricted Shared Services,Payroll
Jefferson State CC,220067,Booth Jennifer,10/31/2022,6066.67,Unrestricted Shared Services,Payroll
Jefferson State CC,220068,Creamer Kelli,10/31/2022,7457.55,Unrestricted Shared Services,Payroll
Jefferson State CC,220069,Dawkins Stephen,10/31/2022,5058.42,Unrestricted Shared Services,Payroll
Jefferson State CC,220070,Robinson Darryl,10/31/2022,11165.17,Unrestricted Shared Services,Payroll
Jefferson State CC,220071,Richard Jessica,10/31/2022,3978,Unrestricted Shared Services,Payroll
Jefferson State CC,220072,Blair David,10/31/2022,6529.97,Unrestricted Shared Services,Payroll
Jefferson State CC,220073,Bowers Andrew,10/31/2022,4994.03,Unrestricted Shared Services,Payroll
Jefferson State CC,220074,Burton James,10/31/2022,8099,Unrestricted Shared Services,Payroll
Jefferson State CC,220075,Cope Angelo,10/31/2022,3380,Unrestricted Shared Services,Payroll
Jefferson State CC,220076,Eubanks Colin,10/31/2022,10480.58,Unrestricted Shared Services,Payroll
Jefferson State CC,220077,McCallister Gregory,10/31/2022,7056.28,Unrestricted Shared Services,Payroll
Jefferson State CC,220078,McCombs Valerie,10/31/2022,7056.28,Unrestricted Shared Services,Payroll
Jefferson State CC,220079,McIntosh Linda,10/31/2022,8099,Unrestricted Shared Services,Payroll
Jefferson State CC,220080,Mitchell Michael,10/31/2022,4677.18,Unrestricted Shared Services,Payroll
Jefferson State CC,220081,Pardazi Behnazsadat,10/31/2022,6242.54,Unrestricted Shared Services,Payroll
Jefferson State CC,220082,Tindill-Rohr Elaine,10/31/2022,7056.28,Unrestricted Shared Services,Payroll
Jefferson State CC,220083,Wangle Jonathan,10/31/2022,4409.11,Unrestricted Shared Services,Payroll
Jefferson State CC,220084,Harris Perry,10/31/2022,7905.25,Unrestricted Shared Services,Payroll
Jefferson State CC,220085,Young Reginald,10/31/2022,4322.65,Unrestricted Shared Services,Payroll
Jefferson State CC,220086,Fulmer Ann,10/31/2022,1437.36,Unrestricted Shared Services,Payroll
Jefferson State CC,600848,Parsons Rex,10/31/2022,450,Unrestricted Shelby Campus,Payroll
Jefferson State CC,600897,Jazeel Fathima,10/31/2022,282,Unrestricted Shared Services,Payroll
Jefferson State CC,526654,Agent's Choice Drug and Background Screening Inc. ,11/1/2022,650,Women's Fund-Families Forward,Scholarship and Waivers - SW
Jefferson State CC,526655,Alabama Industrial Supplies ,11/1/2022,535,Unrestricted Shelby Campus,Materials and Supplies - MS
Jefferson State CC,526656,Alabama Power Company ,11/1/2022,9187.14,Unrestricted Jefferson Campus,Electricity - UC
Jefferson State CC,526656,Alabama Power Company ,11/1/2022,40723.07,Unrestricted Shelby Campus,Electricity - UC
Jefferson State CC,526656,Alabama Power Company ,11/1/2022,7936.18,Unrestricted St. Clair Campus,Electricity - UC
Jefferson State CC,526657,Alabama Power Company ,11/1/2022,1231.91,Unrestricted Shelby Campus,Electricity - UC
Jefferson State CC,526658,Alabama Power Company ,11/1/2022,1038.3,Unrestricted Jefferson Campus,Electricity - UC
Jefferson State CC,526659,Alcohol and Drug Abuse Council Inc. ,11/1/2022,1754.4,Unrestricted Shared Services,Other Professional Fees - PS
Jefferson State CC,526660,Aramark Uniform & Career Apparel Group Inc. ,11/1/2022,1260.8,Unrestricted Shelby Campus,Materials and Supplies - MS
Jefferson State CC,526661,AT&T ,11/1/2022,277.33,Unrestricted Shelby Campus,Landline Phones - UC
Jefferson State CC,526662,AT&T ,11/1/2022,50.85,Unrestricted Shelby Campus,Landline Phones - UC
Jefferson State CC,526663,AT&T ,11/1/2022,65.27,Unrestricted St. Clair Campus,Landline Phones - UC
Jefferson State CC,526664,B&D Electric Motor Co. Inc. ,11/1/2022,675.83,R&R Jefferson Campus ,Maintenance & Repairs  - OOS
Jefferson State CC,526665,Bautista Guzman Ramiro,11/1/2022,115.01,Unrestricted Shared Services,Mileage - IS
Jefferson State CC,526666,Bigbee Leah,11/1/2022,171.06,Unrestricted Shared Services,Mileage - IS
Jefferson State CC,526667,Blackmon Archie,11/1/2022,150,Unrestricted Shared Services,Other Travel Expenses - IS
Jefferson State CC,526668,Bobo Cynthia,11/1/2022,76.25,Unrestricted Shelby Campus,Mileage - IS
Jefferson State CC,526669,Bracken Michael,11/1/2022,450,Unrestricted Shared Services,Commercial Transportation - OS
Jefferson State CC,526669,Bracken Michael,11/1/2022,1333.33,Unrestricted Shared Services,Other Contractual Services - PS
Jefferson State CC,526670,Call Jacob,11/1/2022,5332.95,Unrestricted Shared Services,Lodging - IS
Jefferson State CC,526670,Call Jacob,11/1/2022,3853.3,Unrestricted Shared Services,Mileage - IS
Jefferson State CC,526670,Call Jacob,11/1/2022,1633.63,Unrestricted Shared Services,Other Travel Expenses - IS
Jefferson State CC,526671,Carolina Biological Supply Co ,11/1/2022,1458.04,Dual Enrollment  Sch. 2XX1-2XX2,Scholarship Books
Jefferson State CC,526672,CDW Government Inc ,11/1/2022,1790.98,Regions Student Success Hub,Equipment - non capitalized - MS
Jefferson State CC,526672,CDW Government Inc ,11/1/2022,2883.24,Unrestricted Shared Services,Technology - non capitalized - MS
Jefferson State CC,526673,Chilton County Chamber of Commerce ,11/1/2022,500,Unrestricted Shared Services,Advertising & Promotions - OOS
Jefferson State CC,526674,Darby Jeffrey,11/1/2022,13.22,Mu Alpha Theta,Deposit Liabilities - AP
Jefferson State CC,526675,Erwin and Associates Inc ,11/1/2022,3039,Unrestricted Jefferson Campus,Materials and Supplies - MS
Jefferson State CC,526676,Follett Higher Education Group Inc. ,11/1/2022,1239.67,Bookstore - Shared Services,Bookstore - AP
Jefferson State CC,526677,Fraser Thompson Stacye,11/1/2022,99.36,Unrestricted Shared Services,Materials and Supplies - MS
Jefferson State CC,526678,Graybar Electric Co Inc. ,11/1/2022,25.92,ARC Line Worker,Materials and Supplies - MS
Jefferson State CC,526679,Hampton Demetrius,11/1/2022,664,Unrestricted Shared Services,Other Contractual Services - PS
Jefferson State CC,526680,Hand Arendall Harrison Sale LLC ,11/1/2022,3825,Unrestricted Shared Services,Legal Services - PS
Jefferson State CC,526681,Hedrick Charles,11/1/2022,222.25,Unrestricted Shared Services,Mileage - IS
Jefferson State CC,526682,Hill Cynthia,11/1/2022,270,Unrestricted Jefferson Campus,Registration Fees- IS
Jefferson State CC,526683,Holmes Elizabeth,11/1/2022,173.28,Unrestricted Shared Services,Materials and Supplies - MS
Jefferson State CC,526683,Holmes Elizabeth,11/1/2022,134.25,Unrestricted Shared Services,Mileage - IS
Jefferson State CC,526684,Home Depot U.S.A. Inc. ,11/1/2022,305.04,R&R Jefferson Campus ,Maintenance & Repairs  - OOS
Jefferson State CC,526685,Industrial Fire & Safety Equipment Co. Inc ,11/1/2022,767.4,Unrestricted Jefferson Campus,Other Professional Fees - PS
Jefferson State CC,526686,Informatics Holdings Inc. ,11/1/2022,3995,Unrestricted Shared Services,Technology - non capitalized - MS
Jefferson State CC,526687,K & L Group LLC ,11/1/2022,6994,R&R Jefferson Campus ,Maintenance & Repairs  - OOS
Jefferson State CC,526688,Kelley Pamela,11/1/2022,298.51,Unrestricted Shared Services,Mileage - IS
Jefferson State CC,526689,Marcus Service & Solutions LLC ,11/1/2022,1196.75,R&R Jefferson Campus ,Maintenance & Repairs  - OOS
Jefferson State CC,526690,National Center for Construction Education and Research ,11/1/2022,93.6,Unrestricted Shelby Campus,Materials and Supplies - MS
Jefferson State CC,526691,National Organization for Student Success ,11/1/2022,75,Unrestricted Shared Services,Registration Fees- IS
Jefferson State CC,526692,Office Depot ,11/1/2022,982.75,Unrestricted Jefferson Campus,Materials and Supplies - MS
Jefferson State CC,526693,Opportunity Systems Incorporating Independence LLC ,11/1/2022,1857.6,Unrestricted Shared Services,Other Contractual Services - PS
Jefferson State CC,526694,Osborn Brothers Inc ,11/1/2022,767.56,Unrestricted Shelby Campus,Culinary Consumables
Jefferson State CC,526695,Palmerdale Fire District ,11/1/2022,67.29,Unrestricted Shared Services,Water & Sewer - UC
Jefferson State CC,526696,Parchment LLC ,11/1/2022,2261,Unrestricted Shared Services,Technology - non capitalized - MS
Jefferson State CC,526697,Republic Services Inc. ,11/1/2022,1188.67,Unrestricted Jefferson Campus,Waste Disposal - UC
Jefferson State CC,526697,Republic Services Inc. ,11/1/2022,79.23,Unrestricted St. Clair Campus,Waste Disposal - UC
Jefferson State CC,526698,Safelite Autoglass ,11/1/2022,440.78,R&R Jefferson Campus ,Maintenance & Repairs  - OOS
Jefferson State CC,526699,Sherwin Williams Company ,11/1/2022,2412.31,R&R Jefferson Campus ,Maintenance & Repairs  - OOS
Jefferson State CC,526700,Shirley Richard,11/1/2022,9350,ARC Driving on Road to Success,Other Contractual Services - PS
Jefferson State CC,526701,Staples Contract & Commercial Inc ,11/1/2022,363.12,Unrestricted Shared Services,Materials and Supplies - MS
Jefferson State CC,526701,Staples Contract & Commercial Inc ,11/1/2022,116.95,Unrestricted Shelby Campus,Materials and Supplies - MS
Jefferson State CC,526702,Starcom Worldwide Inc ,11/1/2022,12824.23,Unrestricted Shared Services,Advertising & Promotions - OOS
Jefferson State CC,526703,State of Alabama ,11/1/2022,450,Unrestricted Shared Services,Technology - non capitalized - MS
Jefferson State CC,526704,Sutton Edreama,11/1/2022,224.5,Unrestricted Shared Services,Conus (meals) - IS
Jefferson State CC,526704,Sutton Edreama,11/1/2022,871.23,Unrestricted Shared Services,Lodging - IS
Jefferson State CC,526704,Sutton Edreama,11/1/2022,371.25,Unrestricted Shared Services,Mileage - IS
Jefferson State CC,526705,Sweatt Wendy,11/1/2022,76.56,Unrestricted Jefferson Campus,Mileage - IS
Jefferson State CC,526705,Sweatt Wendy,11/1/2022,5,Unrestricted Jefferson Campus,Other Travel Expenses - IS
Jefferson State CC,526706,TestOut Corporation ,11/1/2022,129,SNAP 2XX0-2XX1,Scholarship Books
Jefferson State CC,526707,Turner Jeanie,11/1/2022,143.64,Unrestricted Shared Services,Materials and Supplies - MS
Jefferson State CC,526708,University of Montevallo ,11/1/2022,500,Unrestricted Shared Services,Registration Fees- IS
Jefferson State CC,526709,Varsity Brands Holding Co. Inc. ,11/1/2022,3388.64,Unrestricted Shared Services,Materials and Supplies - MS
Jefferson State CC,526710,W W Grainger Inc ,11/1/2022,24941.23,Unrestricted Jefferson Campus,Technology $5K to $25K - CE
Jefferson State CC,526711,Wallace Preston,11/1/2022,205,Unrestricted Shelby Campus,Mileage - IS
Jefferson State CC,526712,Warren Germaine,11/1/2022,393.75,Unrestricted St. Clair Campus,Mileage - IS
Jefferson State CC,526713,Water Works & Sewer Board ,11/1/2022,216.9,Unrestricted Shelby Campus,Water & Sewer - UC
Jefferson State CC,526714,Xerox Business Solutions Southeast ,11/1/2022,7070.41,Unrestricted Shared Services,Other Contractual Services - PS
Jefferson State CC,526715,Pearson Education Inc ,11/3/2022,3510,AE - GED 2XX1-2XX2,Institutional Use - OOS
Jefferson State CC,526721,ACETA ,11/10/2022,525,Unrestricted Shared Services,Memberships - PS
Jefferson State CC,526723,Agent's Choice Drug and Background Screening Inc. ,11/10/2022,65,CAPTE-WIOA 22-23,Other Professional Fees - PS
Jefferson State CC,526725,Alabama Community College Conference Inc ,11/10/2022,6442,Unrestricted Shared Services,Memberships - PS
Jefferson State CC,526728,Alabama Power Company ,11/10/2022,1651.03,Unrestricted Shelby Campus,Electricity - UC
Jefferson State CC,526729,Alabama Power Company ,11/10/2022,533.68,Unrestricted Chilton Campus,Electricity - UC
Jefferson State CC,526729,Alabama Power Company ,11/10/2022,1292.06,Unrestricted Jefferson Campus,Electricity - UC
Jefferson State CC,526729,Alabama Power Company ,11/10/2022,1105.85,Unrestricted Shelby Campus,Electricity - UC
Jefferson State CC,526729,Alabama Power Company ,11/10/2022,223.35,Unrestricted St. Clair Campus,Electricity - UC
Jefferson State CC,526730,Alabama Water Utilities Inc ,11/10/2022,1630.8,Unrestricted Shelby Campus,Water & Sewer - UC
Jefferson State CC,526731,All-South Subcontractors Inc. ,11/10/2022,362.63,R&R Jefferson Campus ,Maintenance & Repairs  - OOS
Jefferson State CC,526733,American Academy Holdings LLC ,11/10/2022,4500,Unrestricted Shared Services,Materials and Supplies - MS
Jefferson State CC,526734,American Society for Clinical Pathology ,11/10/2022,300,Unrestricted Jefferson Campus,Accreditation Expense - PS
Jefferson State CC,526735,Ascension Health Alliance ,11/10/2022,1,Unrestricted Jefferson Campus,Other Contractual Services - PS
Jefferson State CC,526736,AT&T ,11/10/2022,872.58,Unrestricted Chilton Campus,Landline Phones - UC
Jefferson State CC,526736,AT&T ,11/10/2022,872.58,Unrestricted Jefferson Campus,Landline Phones - UC
Jefferson State CC,526736,AT&T ,11/10/2022,872.58,Unrestricted Shelby Campus,Landline Phones - UC
Jefferson State CC,526737,AT&T ,11/10/2022,502.25,Unrestricted St. Clair Campus,Landline Phones - UC
Jefferson State CC,526738,AT&T ,11/10/2022,1551.11,Unrestricted St. Clair Campus,Landline Phones - UC
Jefferson State CC,526739,AT&T ,11/10/2022,502.25,Unrestricted Chilton Campus,Landline Phones - UC
Jefferson State CC,526739,AT&T ,11/10/2022,1004.45,Unrestricted Jefferson Campus,Landline Phones - UC
Jefferson State CC,526739,AT&T ,11/10/2022,502.25,Unrestricted Shelby Campus,Landline Phones - UC
Jefferson State CC,526740,Atlas Welding Supply Co. Inc. ,11/10/2022,1525,Unrestricted Jefferson Campus,Materials and Supplies - MS
Jefferson State CC,526740,Atlas Welding Supply Co. Inc. ,11/10/2022,3695.7,Unrestricted Shelby Campus,Materials and Supplies - MS
Jefferson State CC,526741,AutoZone ,11/10/2022,366.11,R&R Jefferson Campus ,Materials and Supplies - MS
Jefferson State CC,526742,B&D Electric Motor Co. Inc. ,11/10/2022,974.8,R&R Jefferson Campus ,Maintenance & Repairs  - OOS
Jefferson State CC,526743,Baza Services LLC ,11/10/2022,8406.38,Unrestricted Chilton Campus,Maintenance & Repairs  - OOS
Jefferson State CC,526743,Baza Services LLC ,11/10/2022,15850.86,Unrestricted Jefferson Campus,Maintenance & Repairs  - OOS
Jefferson State CC,526743,Baza Services LLC ,11/10/2022,12902.56,Unrestricted Shelby Campus,Maintenance & Repairs  - OOS
Jefferson State CC,526744,Birmingham Business Journal ,11/10/2022,100,Unrestricted Shared Services,Subscriptions - OOS
Jefferson State CC,526745,Blackmon Archie,11/10/2022,135,AE-Federal Regular 2XX2-2XX3,Other Travel Expenses - IS
Jefferson State CC,526746,Bobo Cynthia,11/10/2022,30,Unrestricted Shelby Campus,Mileage - IS
Jefferson State CC,526747,Booth Jennifer,11/10/2022,79.19,Unrestricted Shared Services,Mileage - IS
Jefferson State CC,526748,Brown Keith,11/10/2022,53,Unrestricted Shared Services,Conus (meals) - IS
Jefferson State CC,526748,Brown Keith,11/10/2022,415.7,Unrestricted Shared Services,Lodging - IS
Jefferson State CC,526748,Brown Keith,11/10/2022,170,Unrestricted Shared Services,Overnight (non tax per diem)- IS
Jefferson State CC,526749,Calhoun Community College Foundation ,11/10/2022,300,Unrestricted Shared Services,Registration Fees- IS
Jefferson State CC,526750,CDW Government Inc ,11/10/2022,2899.52,Unrestricted Shared Services,Technology - non capitalized - MS
Jefferson State CC,526751,Chambers Lynn,11/10/2022,18.13,Unrestricted Shared Services,Mileage - IS
Jefferson State CC,526753,Clark Natalya,11/10/2022,53.75,Unrestricted Shared Services,Mileage - IS
Jefferson State CC,526754,Comm On Accreditation of Allied Health Edu Prog ,11/10/2022,600,Unrestricted Shelby Campus,Memberships - PS
Jefferson State CC,526755,Community Colleges for International Development Inc ,11/10/2022,800,Unrestricted Shared Services,Memberships - PS
Jefferson State CC,526756,Connect Parent Corporation ,11/10/2022,209.7,Unrestricted St. Clair Campus,Landline Phones - UC
Jefferson State CC,526757,Cresswell Richard,11/10/2022,90,Unrestricted Shelby Campus,Mileage - IS
Jefferson State CC,526757,Cresswell Richard,11/10/2022,25,Unrestricted Shelby Campus,Registration Fees- IS
Jefferson State CC,526758,Davenport Samuel,11/10/2022,418.5,Unrestricted Chilton Campus,Other Professional Fees - PS
Jefferson State CC,526759,Dawkins Stephen,11/10/2022,148.13,Unrestricted Shared Services,Mileage - IS
Jefferson State CC,526760,Deason Vicki,11/10/2022,756.69,Unrestricted Jefferson Campus,Mileage - IS
Jefferson State CC,526760,Deason Vicki,11/10/2022,170,Unrestricted Jefferson Campus,Overnight (non tax per diem)- IS
Jefferson State CC,526761,Decola Anthony,11/10/2022,101.06,R&R Chilton Campus ,Maintenance & Repairs  - OOS
Jefferson State CC,526761,Decola Anthony,11/10/2022,716.9,R&R Jefferson Campus ,Maintenance & Repairs  - OOS
Jefferson State CC,526761,Decola Anthony,11/10/2022,171.8,R&R Shelby Campus ,Maintenance & Repairs  - OOS
Jefferson State CC,526761,Decola Anthony,11/10/2022,101.06,R&R St. Clair Campus ,Maintenance & Repairs  - OOS
Jefferson State CC,526762,Dehart Michael,11/10/2022,410,Unrestricted Shelby Campus,Other Professional Fees - PS
Jefferson State CC,526763,Diversified Elevator Service & Equipment Company Inc. ,11/10/2022,2380,R&R Jefferson Campus ,Maintenance & Repairs  - OOS
Jefferson State CC,526764,EBSCO Industries Inc ,11/10/2022,10936,Unrestricted Shared Services,Technology - non capitalized - MS
Jefferson State CC,526765,Economic Development Association of Alabama ,11/10/2022,575,Unrestricted Shared Services,Registration Fees- IS
Jefferson State CC,526766,Electric Cooperative Foundation Inc ,11/10/2022,1000,Miscellaneous Scholarship,Deposit Liabilities - AP
Jefferson State CC,526767,Ennis Jzyk,11/10/2022,256.5,Unrestricted Jefferson Campus,Conus (meals) - OS
Jefferson State CC,526767,Ennis Jzyk,11/10/2022,585.16,Unrestricted Jefferson Campus,Lodging - OS
Jefferson State CC,526767,Ennis Jzyk,11/10/2022,496.53,Unrestricted Jefferson Campus,Mileage - IS
Jefferson State CC,526767,Ennis Jzyk,11/10/2022,66.92,Unrestricted Jefferson Campus,Other Travel Expenses - OS
Jefferson State CC,526768,Ezell Laura,11/10/2022,81.25,Unrestricted Shared Services,Mileage - IS
Jefferson State CC,526769,Federal Express Corporation ,11/10/2022,16.2,Unrestricted Shared Services,Freight - OOS
Jefferson State CC,526770,Florence Jeffrey,11/10/2022,520,Unrestricted Shelby Campus,Other Professional Fees - PS
Jefferson State CC,526771,George James,11/10/2022,221.25,Unrestricted Shared Services,Mileage - IS
Jefferson State CC,526772,Ginas Gallow Elizabeth,11/10/2022,11.38,Unrestricted Shelby Campus,Mileage - IS
Jefferson State CC,526774,Green Lea,11/10/2022,1000,Unrestricted Shared Services,Other Contractual Services - PS
Jefferson State CC,526775,Harmon Rachel,11/10/2022,409.5,Unrestricted Chilton Campus,Other Professional Fees - PS
Jefferson State CC,526776,Hawkins Chelsie,11/10/2022,56.75,AE-State Regular 2XX2-2XX3,Other Travel Expenses - IS
Jefferson State CC,526777,Hedrick Charles,11/10/2022,548.93,Unrestricted Shared Services,Mileage - IS
Jefferson State CC,526778,High Tide Technologies ,11/10/2022,480,R&R Shelby Campus ,Maintenance & Repairs  - OOS
Jefferson State CC,526779,Holmes Elizabeth,11/10/2022,53.99,Unrestricted Shared Services,Materials and Supplies - MS
Jefferson State CC,526779,Holmes Elizabeth,11/10/2022,30,Unrestricted Shared Services,Mileage - IS
Jefferson State CC,526780,Home Depot U.S.A. Inc. ,11/10/2022,1186.26,R&R Jefferson Campus ,Maintenance & Repairs  - OOS
Jefferson State CC,526782,Infobase Holdings Inc. ,11/10/2022,10848.07,Unrestricted Shared Services,Technology - non capitalized - MS
Jefferson State CC,526783,Intelitek Inc. ,11/10/2022,600,STEAM 2XX1-2XX2,Materials and Supplies - MS
Jefferson State CC,526784,Janousek Mel,11/10/2022,700,Unrestricted Shelby Campus,Other Professional Fees - PS
Jefferson State CC,526786,K & L Group LLC ,11/10/2022,11111.44,R&R Jefferson Campus ,Maintenance & Repairs  - OOS
Jefferson State CC,526787,KGS Steel Inc ,11/10/2022,26629.86,Unrestricted Jefferson Campus,Materials and Supplies - MS
Jefferson State CC,526788,Kin Nicholas,11/10/2022,203.75,Unrestricted St. Clair Campus,Mileage - IS
Jefferson State CC,526789,Landauer Inc ,11/10/2022,403.8,RAD Monitoring,Deposit Liabilities - AP
Jefferson State CC,526790,Lathan Associates Architects P.C. ,11/10/2022,282.32,R&R Jefferson Campus ,Maintenance & Repairs  - OOS
Jefferson State CC,526791,Lathan Associates Architects P.C. ,11/10/2022,1379.67,R&R Jefferson Campus ,Maintenance & Repairs  - OOS
Jefferson State CC,526792,LeBlanc Vanessa,11/10/2022,19,Unrestricted Shelby Campus,Mileage - IS
Jefferson State CC,526793,Marcus Service & Solutions LLC ,11/10/2022,244.83,R&R Shelby Campus ,Maintenance & Repairs  - OOS
Jefferson State CC,526795,Mims Wrecker Service ,11/10/2022,265,Unrestricted Shared Services,Maintenance & Repairs  - OOS
Jefferson State CC,526796,Nail John,11/10/2022,415.12,Unrestricted Jefferson Campus,Maintenance & Repairs  - OOS
Jefferson State CC,526797,Naramore Anita,11/10/2022,114.88,Unrestricted Shared Services,Mileage - IS
Jefferson State CC,526797,Naramore Anita,11/10/2022,38.5,Unrestricted Shared Services,Registration Fees- IS
Jefferson State CC,526798,National Student Clearinghouse ,11/10/2022,3295,Unrestricted Shared Services,Technology - non capitalized - MS
Jefferson State CC,526805,Office Depot ,11/10/2022,74.54,Unrestricted Shared Services,Printing and Binding - OOS
Jefferson State CC,526806,Office Depot ,11/10/2022,274.34,Unrestricted Jefferson Campus,Materials and Supplies - MS
Jefferson State CC,526806,Office Depot ,11/10/2022,286.33,Unrestricted Shared Services,Materials and Supplies - MS
Jefferson State CC,526807,Office Depot ,11/10/2022,34.51,AE-Federal Regular 2XX1-2XX2,Materials and Supplies - MS
Jefferson State CC,526807,Office Depot ,11/10/2022,171.32,Unrestricted Jefferson Campus,Printing and Binding - OOS
Jefferson State CC,526807,Office Depot ,11/10/2022,118.06,Unrestricted Shared Services,Printing and Binding - OOS
Jefferson State CC,526808,Opportunity Systems Incorporating Independence LLC ,11/10/2022,722.4,Unrestricted Shared Services,Other Contractual Services - PS
Jefferson State CC,526809,Owens Landscape Group LLC ,11/10/2022,1083.33,Unrestricted Chilton Campus,Maintenance & Repairs  - OOS
Jefferson State CC,526809,Owens Landscape Group LLC ,11/10/2022,2895.83,Unrestricted Shelby Campus,Maintenance & Repairs  - OOS
Jefferson State CC,526809,Owens Landscape Group LLC ,11/10/2022,916.67,Unrestricted St. Clair Campus,Maintenance & Repairs  - OOS
Jefferson State CC,526810,Payne Tamara,11/10/2022,37.5,Unrestricted Shared Services,Mileage - IS
Jefferson State CC,526811,Pennsylvania National Mutual Casualty Ins Co ,11/10/2022,1541,Unrestricted Shared Services,Insurance and Bonding - PS
Jefferson State CC,526812,Pocket Nurse Enterprises LLC ,11/10/2022,701.43,ICI Equip WFD Initiative,Equipment - non capitalized - MS
Jefferson State CC,526812,Pocket Nurse Enterprises LLC ,11/10/2022,25078.27,ICI Equip WFD Initiative,Furniture and Equip $5K - $25K - CE
Jefferson State CC,526812,Pocket Nurse Enterprises LLC ,11/10/2022,342.65,ICI Equip WFD Initiative,Materials and Supplies - MS
Jefferson State CC,526813,Pritchard Industries Southeast LLC ,11/10/2022,3180,Unrestricted Jefferson Campus,Maintenance & Repairs  - OOS
Jefferson State CC,526813,Pritchard Industries Southeast LLC ,11/10/2022,3600,Unrestricted St. Clair Campus,Maintenance & Repairs  - OOS
Jefferson State CC,526814,Ralya Janice,11/10/2022,200,Unrestricted Shared Services,Registration Fees- IS
Jefferson State CC,526815,Ralya Janice,11/10/2022,59.81,Unrestricted Shared Services,Materials and Supplies - MS
Jefferson State CC,526815,Ralya Janice,11/10/2022,50,Unrestricted Shared Services,Registration Fees- IS
Jefferson State CC,526816,Robinson Darryl,11/10/2022,41.25,Unrestricted Shared Services,Mileage - IS
Jefferson State CC,526817,S & S Automotive LLC ,11/10/2022,373.51,R&R Jefferson Campus ,Maintenance & Repairs  - OOS
Jefferson State CC,526818,Scarbrough William,11/10/2022,909,Unrestricted Chilton Campus,Other Professional Fees - PS
Jefferson State CC,526819,Sherwin Williams Company ,11/10/2022,365.57,R&R Jefferson Campus ,Maintenance & Repairs  - OOS
Jefferson State CC,526820,Shobe Phillip,11/10/2022,76.25,Unrestricted Shared Services,Mileage - IS
Jefferson State CC,526821,Smith Venus,11/10/2022,480.5,Unrestricted Jefferson Campus,Mileage - IS
Jefferson State CC,526821,Smith Venus,11/10/2022,131.48,Unrestricted Jefferson Campus,Mileage - OS
Jefferson State CC,526821,Smith Venus,11/10/2022,200,Unrestricted Jefferson Campus,Registration Fees- OS
Jefferson State CC,526822,Southern Pipe & Supply Co Inc ,11/10/2022,138.56,R&R Jefferson Campus ,Maintenance & Repairs  - OOS
Jefferson State CC,526823,Stanley Nathaniel,11/10/2022,153.5,Unrestricted Shared Services,Mileage - IS
Jefferson State CC,526824,Staples Contract & Commercial Inc ,11/10/2022,847.44,Unrestricted Jefferson Campus,Materials and Supplies - MS
Jefferson State CC,526824,Staples Contract & Commercial Inc ,11/10/2022,1883.35,Unrestricted Shared Services,Materials and Supplies - MS
Jefferson State CC,526824,Staples Contract & Commercial Inc ,11/10/2022,525.46,Unrestricted Shelby Campus,Materials and Supplies - MS
Jefferson State CC,526825,State of Alabama ,11/10/2022,34843,Unrestricted Shared Services,Insurance and Bonding - PS
Jefferson State CC,526826,State of Alabama ,11/10/2022,286878,Unrestricted Shared Services,Insurance and Bonding - PS
Jefferson State CC,526828,State of Alabama ,11/10/2022,30,Unrestricted Shared Services,Other Professional Fees - PS
Jefferson State CC,526829,Tillman David,11/10/2022,900,Unrestricted Shared Services,Other Contractual Services - PS
Jefferson State CC,526830,Townes Kevin,11/10/2022,82,Unrestricted Shelby Campus,Mileage - IS
Jefferson State CC,526831,Tri-County Turf Equipment ,11/10/2022,564.15,Unrestricted Jefferson Campus,Maintenance & Repairs  - OOS
Jefferson State CC,526832,Triple Point Industries LLC ,11/10/2022,3550,Unrestricted Jefferson Campus,Maintenance & Repairs  - OOS
Jefferson State CC,526833,Turner Venius,11/10/2022,205.38,Unrestricted Jefferson Campus,Mileage - IS
Jefferson State CC,526833,Turner Venius,11/10/2022,63.5,Unrestricted Jefferson Campus,Registration Fees- IS
Jefferson State CC,526836,Warren Germaine,11/10/2022,218.75,Unrestricted St. Clair Campus,Mileage - IS
Jefferson State CC,526837,Water Works & Sewer Board ,11/10/2022,433.2,Unrestricted Jefferson Campus,Water & Sewer - UC
Jefferson State CC,526838,Wheeler Christopher,11/10/2022,120,Unrestricted Shelby Campus,Other Professional Fees - PS
Jefferson State CC,526839,White James,11/10/2022,400,Unrestricted Jefferson Campus,Other Professional Fees - PS
Jefferson State CC,526840,Whittle Christopher,11/10/2022,477,Unrestricted Chilton Campus,Other Professional Fees - PS
Jefferson State CC,526841,Williford Orman Construction LLC ,11/10/2022,71627,Unrestricted Jefferson Campus,Building Alterations - CE
Jefferson State CC,526842,Wymer Douglas,11/10/2022,1990,Unrestricted Shared Services,Other Professional Fees - PS
Jefferson State CC,526856,Atlas Welding Supply Co. Inc. ,11/14/2022,1535,Unrestricted Shelby Campus,Materials and Supplies - MS
Jefferson State CC,526857,Davenport Samuel,11/14/2022,513,Unrestricted Chilton Campus,Other Professional Fees - PS
Jefferson State CC,526858,Dehart Michael,11/14/2022,610,Unrestricted Shelby Campus,Other Professional Fees - PS
Jefferson State CC,526859,Florence Jeffrey,11/14/2022,390,Unrestricted Shelby Campus,Other Professional Fees - PS
Jefferson State CC,526860,Harmon Rachel,11/14/2022,328.5,Unrestricted Chilton Campus,Other Professional Fees - PS
Jefferson State CC,526861,Janousek Mel,11/14/2022,620,Unrestricted Shelby Campus,Other Professional Fees - PS
Jefferson State CC,526862,Mims Justin,11/14/2022,207,Unrestricted Chilton Campus,Other Professional Fees - PS
Jefferson State CC,526863,Mullins William,11/14/2022,300,Unrestricted Shelby Campus,Other Professional Fees - PS
Jefferson State CC,526864,Pleasants-Pegues Ticey,11/14/2022,810,Unrestricted Shared Services,Other Contractual Services - PS
Jefferson State CC,526865,Scarbrough William,11/14/2022,1044,Unrestricted Chilton Campus,Other Professional Fees - PS
Jefferson State CC,526866,WEX Inc ,11/14/2022,2199.97,Unrestricted Shared Services,Gasoline & Oil - Motor Veh - OOS
Jefferson State CC,526866,WEX Inc ,11/14/2022,355.6,Unrestricted Shelby Campus,Gasoline & Oil - Motor Veh - OOS
Jefferson State CC,526866,WEX Inc ,11/14/2022,26.25,Unrestricted St. Clair Campus,Gasoline & Oil - Motor Veh - OOS
Jefferson State CC,526867,Wheeler Christopher,11/14/2022,155,Unrestricted Shelby Campus,Other Professional Fees - PS
Jefferson State CC,526868,Whittle Christopher,11/14/2022,99,Unrestricted Chilton Campus,Other Professional Fees - PS
Jefferson State CC,220087,Starnes Jane,11/15/2022,2598.58,Unrestricted Shared Services,Payroll
Jefferson State CC,220088,Self Bonnie,11/15/2022,2642.54,Unrestricted Shared Services,Payroll
Jefferson State CC,220089,Harris Seena,11/15/2022,2248.83,Unrestricted Shelby Campus,Payroll
Jefferson State CC,220090,Wallace Preston,11/15/2022,2727.42,Unrestricted Shared Services,Payroll
Jefferson State CC,220091,Ray Beth,11/15/2022,2029.92,Unrestricted Shared Services,Payroll
Jefferson State CC,220092,Brown Ami,11/15/2022,1410.54,Unrestricted Shared Services,Payroll
Jefferson State CC,220093,Deason Vicki,11/15/2022,1489.83,Unrestricted Distance Ed,Payroll
Jefferson State CC,220094,McLendon Rita,11/15/2022,2161.25,Unrestricted Shared Services,Payroll
Jefferson State CC,220095,Cox Melanie,11/15/2022,2248.83,Unrestricted Shared Services,Payroll
Jefferson State CC,220096,Boackle Emil,11/15/2022,1898.96,Unrestricted Shared Services,Payroll
Jefferson State CC,220097,Deloach Merissa,11/15/2022,1898.71,Unrestricted Shared Services,Payroll
Jefferson State CC,220098,Braswell Gail,11/15/2022,2073.67,Unrestricted Shared Services,Payroll
Jefferson State CC,220099,Lewis Andrea,11/15/2022,1723.83,Unrestricted Shared Services,Payroll
Jefferson State CC,220100,Cheeks Tammara,11/15/2022,1373.58,CAPTE-WIOA 22-23,Payroll
Jefferson State CC,220101,Geralds Jacqueline,11/15/2022,2336.38,AE-State Regular 2XX2-2XX3,Payroll
Jefferson State CC,220102,Finch Tamara,11/15/2022,1461.33,Unrestricted Shared Services,Payroll
Jefferson State CC,220103,Carmichael Ebonie,11/15/2022,1504.96,Unrestricted Shared Services,Payroll
Jefferson State CC,220104,Coker Pamela,11/15/2022,1592.54,Unrestricted Shared Services,Payroll
Jefferson State CC,220105,Roseberry Tara,11/15/2022,2161.25,Unrestricted Shared Services,Payroll
Jefferson State CC,220106,Cruso Lisa,11/15/2022,2161.25,Unrestricted Shared Services,Payroll
Jefferson State CC,220107,Hamilton-Williams Margaret,11/15/2022,2248.83,Unrestricted Shared Services,Payroll
Jefferson State CC,220108,Cooper Ginger,11/15/2022,2467.42,Unrestricted Shared Services,Payroll
Jefferson State CC,220109,Grady Octavia,11/15/2022,1854.88,Unrestricted Shelby Campus,Payroll
Jefferson State CC,220110,Naramore Anna,11/15/2022,2117.67,Unrestricted Shared Services,Payroll
Jefferson State CC,220111,Pugh Sandra,11/15/2022,2686.38,Unrestricted Shared Services,Payroll
Jefferson State CC,220112,Baker Precious,11/15/2022,1461.17,Unrestricted Shared Services,Payroll
Jefferson State CC,220113,Pickens Elizabeth,11/15/2022,2248.83,Unrestricted Shared Services,Payroll
Jefferson State CC,220114,Hughes Tina,11/15/2022,2336.38,Unrestricted Shared Services,Payroll
Jefferson State CC,220115,Turner Jeanie,11/15/2022,2675.63,Unrestricted Shared Services,Payroll
Jefferson State CC,220116,Anderson Davida,11/15/2022,1194.84,Unrestricted Shared Services,Payroll
Jefferson State CC,220117,Burney Roscelia,11/15/2022,2248.83,Unrestricted Shared Services,Payroll
Jefferson State CC,220118,Carpenter Valencia,11/15/2022,2030.04,Unrestricted Shared Services,Payroll
Jefferson State CC,220119,Castleberry James,11/15/2022,1417.33,Unrestricted Shared Services,Payroll
Jefferson State CC,220120,Collins Angela,11/15/2022,2851.75,Unrestricted Shared Services,Payroll
Jefferson State CC,220121,Douglas Susan,11/15/2022,1680.04,Unrestricted Shared Services,Payroll
Jefferson State CC,220122,Duncan Leconyea,11/15/2022,2117.67,Unrestricted Shared Services,Payroll
Jefferson State CC,220123,Foster Deborah,11/15/2022,1638.19,Unrestricted Shared Services,Payroll
Jefferson State CC,220124,Fraser Thompson Stacye,11/15/2022,2555,Unrestricted Shared Services,Payroll
Jefferson State CC,220125,Greene Greta,11/15/2022,1942.38,Unrestricted Shared Services,Payroll
Jefferson State CC,220126,Howard Amber,11/15/2022,1548.79,Unrestricted Shared Services,Payroll
Jefferson State CC,220127,Jones Juanita,11/15/2022,2117.67,Unrestricted Shared Services,Payroll
Jefferson State CC,220128,Kelley Pamela,11/15/2022,2609.81,Unrestricted Shared Services,Payroll
Jefferson State CC,220129,Kimble Lisa,11/15/2022,2598.58,Unrestricted Shared Services,Payroll
Jefferson State CC,220130,Milton Lorrie,11/15/2022,2083.03,Unrestricted Shared Services,Payroll
Jefferson State CC,220131,Minter Shondrika,11/15/2022,2089.25,Unrestricted Shared Services,Payroll
Jefferson State CC,220132,Pettway Silvia,11/15/2022,2476.26,Unrestricted Shared Services,Payroll
Jefferson State CC,220133,Pippens Amberetta,11/15/2022,2379.92,Unrestricted Shared Services,Payroll
Jefferson State CC,220134,Sipe James,11/15/2022,1636.29,Unrestricted Shared Services,Payroll
Jefferson State CC,220135,Smith Heather,11/15/2022,2161.25,Unrestricted Shared Services,Payroll
Jefferson State CC,220136,Stillwell Crystal,11/15/2022,2811.11,Unrestricted Shared Services,Payroll
Jefferson State CC,220137,Urbahns Laura,11/15/2022,2248.83,Unrestricted Shared Services,Payroll
Jefferson State CC,220138,Bautista Guzman Ramiro,11/15/2022,2368.35,Unrestricted Shared Services,Payroll
Jefferson State CC,220139,Chambers Lynn,11/15/2022,2029.92,AE-Federal Regular 2XX2-2XX3,Payroll
Jefferson State CC,220140,Harris John,11/15/2022,1854.75,Unrestricted Shared Services,Payroll
Jefferson State CC,220141,Hawkins Chelsie,11/15/2022,818.14,AE-State Regular 2XX2-2XX3,Payroll
Jefferson State CC,220141,Hawkins Chelsie,11/15/2022,818.15,Unrestricted Shared Services,Payroll
Jefferson State CC,220142,Clark Natalya,11/15/2022,2467.42,Unrestricted Shared Services,Payroll
Jefferson State CC,220143,Cobb Rose,11/15/2022,2467.21,Unrestricted Shared Services,Payroll
Jefferson State CC,220144,Ezell Laura,11/15/2022,1983.29,Unrestricted Shared Services,Payroll
Jefferson State CC,220145,Smith Lareatha,11/15/2022,2680.94,Unrestricted Shared Services,Payroll
Jefferson State CC,220146,Williams Sonja,11/15/2022,2117.5,Unrestricted Shared Services,Payroll
Jefferson State CC,220147,Wilson Latanya,11/15/2022,1452.74,Unrestricted Shared Services,Payroll
Jefferson State CC,220148,Barranger Lauren,11/15/2022,2029.92,Unrestricted Shared Services,Payroll
Jefferson State CC,220149,Brown Cassandra,11/15/2022,1811.42,Unrestricted Shared Services,Payroll
Jefferson State CC,220150,Cimalore Beverly,11/15/2022,2467.42,Unrestricted Shared Services,Payroll
Jefferson State CC,220151,Fisher Debra,11/15/2022,2117.5,Unrestricted Shared Services,Payroll
Jefferson State CC,220152,Guizar Hector,11/15/2022,1147.68,Unrestricted Shared Services,Payroll
Jefferson State CC,220153,Hagood Anita,11/15/2022,1461.17,Unrestricted Shared Services,Payroll
Jefferson State CC,220154,Holman Beatrice,11/15/2022,1461.17,Unrestricted Shared Services,Payroll
Jefferson State CC,220155,Lewis Scott,11/15/2022,1155.04,Unrestricted Shared Services,Payroll
Jefferson State CC,220156,Lopez Jorge,11/15/2022,1592.54,Unrestricted Shared Services,Payroll
Jefferson State CC,220157,Miller Stephanie,11/15/2022,2467.42,Unrestricted Shared Services,Payroll
Jefferson State CC,220158,Stewart Aaron,11/15/2022,1198.79,Unrestricted Shared Services,Payroll
Jefferson State CC,220159,Swann Christopher,11/15/2022,2161.25,Unrestricted Shared Services,Payroll
Jefferson State CC,220160,Wilson Colton,11/15/2022,2029.92,Unrestricted Shared Services,Payroll
Jefferson State CC,220161,Chamblin Juanita,11/15/2022,2467.42,Unrestricted Shared Services,Payroll
Jefferson State CC,220162,Key Karen,11/15/2022,2555,Unrestricted Shared Services,Payroll
Jefferson State CC,220163,Sutton Edreama,11/15/2022,2894.46,Unrestricted Shared Services,Payroll
Jefferson State CC,220164,Jones Oniki,11/15/2022,1548.79,Unrestricted Shared Services,Payroll
Jefferson State CC,220165,Cooper Jay,11/15/2022,1286.17,Unrestricted Shared Services,Payroll
Jefferson State CC,220166,Barnett C,11/15/2022,2248.83,Unrestricted Shared Services,Payroll
Jefferson State CC,220167,Borden Leslie,11/15/2022,1330.17,Unrestricted Shared Services,Payroll
Jefferson State CC,220168,Carson William,11/15/2022,2117.67,Unrestricted Shared Services,Payroll
Jefferson State CC,220169,Green Vincent,11/15/2022,2073.67,Unrestricted Shared Services,Payroll
Jefferson State CC,220170,James Selena,11/15/2022,1636.29,Unrestricted Shared Services,Payroll
Jefferson State CC,220171,Lockett Earnest,11/15/2022,1723.83,Unrestricted Shared Services,Payroll
Jefferson State CC,220172,McDonald Thomas,11/15/2022,2248.83,Unrestricted Shared Services,Payroll
Jefferson State CC,220173,Nathan Charlie,11/15/2022,1592.67,Unrestricted Shared Services,Payroll
Jefferson State CC,220174,Powrzanas Rodney,11/15/2022,1887.92,Unrestricted Shared Services,Payroll
Jefferson State CC,220175,Shorter Garland,11/15/2022,1723.83,Unrestricted Shared Services,Payroll
Jefferson State CC,220176,Tidmore Cecil,11/15/2022,2117.67,Unrestricted Shared Services,Payroll
Jefferson State CC,220177,Sullivan Terri,11/15/2022,2248.83,Unrestricted Shared Services,Payroll
Jefferson State CC,220178,Cunningham Velma,11/15/2022,1680.25,Unrestricted Shared Services,Payroll
Jefferson State CC,220179,Eason Haley,11/15/2022,1330.04,Unrestricted Shared Services,Payroll
Jefferson State CC,220180,Payne Russell,11/15/2022,2467.42,Unrestricted Shared Services,Payroll
Jefferson State CC,220181,Pendleton Carolyn,11/15/2022,1071.04,Unrestricted Shared Services,Payroll
Jefferson State CC,220182,Purvis Larose,11/15/2022,1767.79,Unrestricted Shared Services,Payroll
Jefferson State CC,220183,Sanders Bernard,11/15/2022,2030.33,Unrestricted Shared Services,Payroll
Jefferson State CC,220184,Stockley Ginger,11/15/2022,2467.42,Unrestricted Shared Services,Payroll
Jefferson State CC,220185,Brown Mavis,11/15/2022,1330.04,Unrestricted Shared Services,Payroll
Jefferson State CC,220186,Cooper-Cox Robbie,11/15/2022,1417.58,Unrestricted Shared Services,Payroll
Jefferson State CC,220187,Crenshaw Lakeila,11/15/2022,1198.79,Unrestricted Shared Services,Payroll
Jefferson State CC,220188,Duchock Anita,11/15/2022,1461.33,Unrestricted Shared Services,Payroll
Jefferson State CC,220189,Johnson Gayle,11/15/2022,884.62,Unrestricted Shared Services,Payroll
Jefferson State CC,220190,Kimbrell Skyler,11/15/2022,1504.96,Unrestricted Shared Services,Payroll
Jefferson State CC,220191,Lattimore Rosetta,11/15/2022,1286.17,Unrestricted Shared Services,Payroll
Jefferson State CC,220192,Liddle Christiana,11/15/2022,1242.54,Unrestricted Shared Services,Payroll
Jefferson State CC,220193,Mathis Brenda,11/15/2022,1680.25,Unrestricted Shared Services,Payroll
Jefferson State CC,220194,McDaniel Barry,11/15/2022,1155.04,Unrestricted Shared Services,Payroll
Jefferson State CC,220195,Vann Rowella,11/15/2022,1198.79,Unrestricted Shared Services,Payroll
Jefferson State CC,220196,Washington Destin,11/15/2022,1592.67,Unrestricted Shared Services,Payroll
Jefferson State CC,220197,Kent Eric,11/15/2022,1155.04,Unrestricted Shared Services,Payroll
Jefferson State CC,220198,Wynn Michael,11/15/2022,1461.33,Unrestricted Shared Services,Payroll
Jefferson State CC,220199,Pettry Sherry,11/15/2022,2336.38,Unrestricted Shared Services,Payroll
Jefferson State CC,220200,Abad Fortunato,11/15/2022,801.12,Unrestricted Shared Services,Payroll
Jefferson State CC,220201,Akers Amber,11/15/2022,1201.68,Unrestricted Shared Services,Payroll
Jefferson State CC,220202,Anderson Jennifer,11/15/2022,367.18,Unrestricted Shared Services,Payroll
Jefferson State CC,220203,Anwah Elsie,11/15/2022,1802.52,Unrestricted Shared Services,Payroll
Jefferson State CC,220204,Bates Michelle,11/15/2022,2570.26,Unrestricted Shared Services,Payroll
Jefferson State CC,220205,Bizzell Dorothy,11/15/2022,667.6,Unrestricted Shared Services,Payroll
Jefferson State CC,220206,Boland Keema,11/15/2022,534.08,Unrestricted Shared Services,Payroll
Jefferson State CC,220207,Broome Kristy,11/15/2022,1201.68,Unrestricted Shared Services,Payroll
Jefferson State CC,220208,Brown Josephine,11/15/2022,534.08,Unrestricted Shared Services,Payroll
Jefferson State CC,220209,Campbell Mae,11/15/2022,534.08,Unrestricted Shared Services,Payroll
Jefferson State CC,220210,Chen Ja Lin,11/15/2022,300.42,Unrestricted Shared Services,Payroll
Jefferson State CC,220211,Coleman Carolyn,11/15/2022,667.6,Unrestricted Shared Services,Payroll
Jefferson State CC,220212,Richardson Hope,11/15/2022,1268.44,Unrestricted Shared Services,Payroll
Jefferson State CC,220213,Hobson Rachel,11/15/2022,417.25,Unrestricted Shared Services,Payroll
Jefferson State CC,220214,Cunningham Dana,11/15/2022,1268.44,Unrestricted Shared Services,Payroll
Jefferson State CC,220215,Duke Juanita,11/15/2022,400.56,Unrestricted Shared Services,Payroll
Jefferson State CC,220216,Dykes Betty,11/15/2022,667.5,Unrestricted Shared Services,Payroll
Jefferson State CC,220217,Edwards Melanie,11/15/2022,267.04,Unrestricted Shared Services,Payroll
Jefferson State CC,220218,Floyd Natalie,11/15/2022,499.03,Unrestricted Shared Services,Payroll
Jefferson State CC,220219,Givens Sarah,11/15/2022,751.05,Unrestricted Shared Services,Payroll
Jefferson State CC,220220,Gomez Joseph,11/15/2022,83.45,Unrestricted Shared Services,Payroll
Jefferson State CC,220221,Gonzalez Danielle,11/15/2022,1602.24,Unrestricted Shared Services,Payroll
Jefferson State CC,220222,Gregson Christa,11/15/2022,1235.06,Unrestricted Shared Services,Payroll
Jefferson State CC,220223,Hall Daniel,11/15/2022,934.64,Unrestricted Shared Services,Payroll
Jefferson State CC,220224,Ham Lora,11/15/2022,367.18,Unrestricted Shared Services,Payroll
Jefferson State CC,220225,Hill Yvette,11/15/2022,467.32,Unrestricted Shared Services,Payroll
Jefferson State CC,220226,Johnson Laurie,11/15/2022,667.6,Unrestricted Shared Services,Payroll
Jefferson State CC,220227,Jones Christina,11/15/2022,1268.44,Unrestricted Shared Services,Payroll
Jefferson State CC,220228,Jones D'Angelo,11/15/2022,968.02,Unrestricted Shared Services,Payroll
Jefferson State CC,220229,Keith Leigh,11/15/2022,133.52,Unrestricted Shared Services,Payroll
Jefferson State CC,220230,Kersh Natasha,11/15/2022,667.6,Unrestricted Shared Services,Payroll
Jefferson State CC,220231,Liddle Anna,11/15/2022,383.87,Unrestricted Shared Services,Payroll
Jefferson State CC,220232,Lindsey Elizabeth,11/15/2022,684.29,Unrestricted Shared Services,Payroll
Jefferson State CC,220233,Lockhart Natalie,11/15/2022,400.56,Unrestricted Shared Services,Payroll
Jefferson State CC,220234,McEntire Ann,11/15/2022,684.29,Unrestricted Shared Services,Payroll
Jefferson State CC,220235,Miller Shaleen,11/15/2022,1268.44,Unrestricted Shared Services,Payroll
Jefferson State CC,220236,Nannini Anna,11/15/2022,1268.44,Unrestricted Shared Services,Payroll
Jefferson State CC,220237,Oberman Allison,11/15/2022,400.56,Unrestricted Shared Services,Payroll
Jefferson State CC,220238,Odom Donna,11/15/2022,267.04,Unrestricted Shared Services,Payroll
Jefferson State CC,220239,Pair Edward,11/15/2022,367.18,Unrestricted Shared Services,Payroll
Jefferson State CC,220240,Pickett Kimberly,11/15/2022,333.8,Unrestricted Shared Services,Payroll
Jefferson State CC,220241,Rhoden Lyndsie,11/15/2022,801.12,Unrestricted Shared Services,Payroll
Jefferson State CC,220242,Saemaldaher Melanie,11/15/2022,1001.4,Unrestricted Shared Services,Payroll
Jefferson State CC,220243,Self Allison,11/15/2022,1268.44,Unrestricted Shared Services,Payroll
Jefferson State CC,220244,Shepherd Ashley,11/15/2022,534.08,Unrestricted Shared Services,Payroll
Jefferson State CC,220245,Smith Kandice,11/15/2022,652.5,Unrestricted Shared Services,Payroll
Jefferson State CC,220246,Stewart Amethyst,11/15/2022,333.8,Unrestricted Shared Services,Payroll
Jefferson State CC,220247,Taylor Tamika,11/15/2022,1335.2,Unrestricted Shared Services,Payroll
Jefferson State CC,220248,Tubbs Carrie,11/15/2022,700.98,Unrestricted Shared Services,Payroll
Jefferson State CC,220249,Turner Taylor,11/15/2022,400.56,Unrestricted Shared Services,Payroll
Jefferson State CC,220250,Vanderbleek Natalie,11/15/2022,333.8,Unrestricted Shared Services,Payroll
Jefferson State CC,220251,Washington Felisa,11/15/2022,367.18,Unrestricted Shared Services,Payroll
Jefferson State CC,220252,White Kelley,11/15/2022,1001.4,Unrestricted Shared Services,Payroll
Jefferson State CC,220253,Williams Ashley,11/15/2022,100.14,Unrestricted Shared Services,Payroll
Jefferson State CC,220254,Williams Donna,11/15/2022,1235.06,Unrestricted Shared Services,Payroll
Jefferson State CC,220255,Wilson Jada,11/15/2022,484.01,Unrestricted Shared Services,Payroll
Jefferson State CC,220256,Worsham Jessica,11/15/2022,333.8,Unrestricted Shared Services,Payroll
Jefferson State CC,220257,Hyde Natalie,11/15/2022,792,Unrestricted Shared Services,Payroll
Jefferson State CC,220258,Leach Brittany,11/15/2022,132,Unrestricted Shared Services,Payroll
Jefferson State CC,220259,Yates Lanette,11/15/2022,330,Unrestricted Shared Services,Payroll
Jefferson State CC,220260,Clark Stacy,11/15/2022,362.03,Unrestricted Shared Services,Payroll
Jefferson State CC,220261,Harvey Richard,11/15/2022,869.02,Unrestricted Shared Services,Payroll
Jefferson State CC,220262,Haywood James,11/15/2022,1061.58,Unrestricted Shared Services,Payroll
Jefferson State CC,220263,King Dalton,11/15/2022,925.48,Unrestricted Shared Services,Payroll
Jefferson State CC,220264,McDonnell Kyle,11/15/2022,1205.98,Unrestricted Shared Services,Payroll
Jefferson State CC,220265,McLaughlin Phillip,11/15/2022,326.64,Unrestricted Shared Services,Payroll
Jefferson State CC,220266,Nabors Stephen,11/15/2022,598.84,Unrestricted Shared Services,Payroll
Jefferson State CC,220267,Panepento Matthew,11/15/2022,1102.41,Unrestricted Shared Services,Payroll
Jefferson State CC,220268,Simmons Arlon,11/15/2022,1306.56,Unrestricted Shared Services,Payroll
Jefferson State CC,220269,Trammell Chase,11/15/2022,381.08,Unrestricted Shared Services,Payroll
Jefferson State CC,220270,Ward William,11/15/2022,1034.36,Unrestricted Shared Services,Payroll
Jefferson State CC,220271,Carroll Elizabeth,11/15/2022,1068.16,Unrestricted Shared Services,Payroll
Jefferson State CC,220272,Archie Ashley,11/15/2022,950,Unrestricted Shared Services,Payroll
Jefferson State CC,220273,Smith Lisa,11/15/2022,950,Unrestricted Shared Services,Payroll
Jefferson State CC,220274,Agee Teisha,11/15/2022,1075,CAPTE-WIOA 22-23,Payroll
Jefferson State CC,220275,Arrowsmith Janice,11/15/2022,1035,AE-Federal Regular 2XX2-2XX3,Payroll
Jefferson State CC,220276,Badio Jessical,11/15/2022,529,AE-Federal Regular 2XX2-2XX3,Payroll
Jefferson State CC,220277,Blackmon Archie,11/15/2022,1023.5,AE-Federal Regular 2XX2-2XX3,Payroll
Jefferson State CC,220278,Brown Edith,11/15/2022,598,AE-State Regular 2XX2-2XX3,Payroll
Jefferson State CC,220279,Callins Lillian,11/15/2022,391,AE-Federal Regular 2XX2-2XX3,Payroll
Jefferson State CC,220280,Cochis Angela,11/15/2022,483,AE-Federal Regular 2XX2-2XX3,Payroll
Jefferson State CC,220281,Coleman Henry,11/15/2022,1035,AE-Federal Regular 2XX2-2XX3,Payroll
Jefferson State CC,220282,Cook Kimberly,11/15/2022,517.5,AE-State Regular 2XX2-2XX3,Payroll
Jefferson State CC,220283,Davis Jeffrey,11/15/2022,1072.89,AE-State Regular 2XX2-2XX3,Payroll
Jefferson State CC,220284,Hammonds Cindy,11/15/2022,690,AE-Federal Regular 2XX2-2XX3,Payroll
Jefferson State CC,220285,Hawkins Felita,11/15/2022,684,AE-State Regular 2XX2-2XX3,Payroll
Jefferson State CC,220286,Malone Valencia,11/15/2022,874,AE-State Regular 2XX2-2XX3,Payroll
Jefferson State CC,220287,Markovitz Yevonne,11/15/2022,989,AE-State Regular 2XX2-2XX3,Payroll
Jefferson State CC,220288,Morgan Mary,11/15/2022,184,AE-State Regular 2XX2-2XX3,Payroll
Jefferson State CC,220289,Parr Michele,11/15/2022,862.5,AE-State Regular 2XX2-2XX3,Payroll
Jefferson State CC,220290,Pearson Regina,11/15/2022,684,AE-State Regular 2XX2-2XX3,Payroll
Jefferson State CC,220291,Riggins Resha,11/15/2022,310.5,AE-State Regular 2XX2-2XX3,Payroll
Jefferson State CC,220292,Roberts Barbara,11/15/2022,517.5,AE-State Regular 2XX2-2XX3,Payroll
Jefferson State CC,220293,Rudd Julia,11/15/2022,299,AE-State Regular 2XX2-2XX3,Payroll
Jefferson State CC,220294,Sanders Anthony Michael,11/15/2022,1000.5,AE-Federal Regular 2XX2-2XX3,Payroll
Jefferson State CC,220295,Sheikh Linda,11/15/2022,575,AE-State Regular 2XX2-2XX3,Payroll
Jefferson State CC,220296,Skalac Robyn,11/15/2022,517.5,AE-State Regular 2XX2-2XX3,Payroll
Jefferson State CC,220297,Snider Ken,11/15/2022,1018.73,AE-State Regular 2XX2-2XX3,Payroll
Jefferson State CC,220298,Spraberry Mollie,11/15/2022,770.28,AE-State Regular 2XX2-2XX3,Payroll
Jefferson State CC,220299,Sweatt Helen,11/15/2022,690,AE-State Regular 2XX2-2XX3,Payroll
Jefferson State CC,220300,Tucker Selesta,11/15/2022,23,AE-State Regular 2XX2-2XX3,Payroll
Jefferson State CC,220301,Vinson Phyllis,11/15/2022,736,AE-State Regular 2XX2-2XX3,Payroll
Jefferson State CC,220302,White Barbara,11/15/2022,931.5,AE-State Regular 2XX2-2XX3,Payroll
Jefferson State CC,220303,Wiginton Beverly,11/15/2022,598,AE-State Regular 2XX2-2XX3,Payroll
Jefferson State CC,220304,Foster Richard,11/15/2022,626.08,Unrestricted Shared Services,Payroll
Jefferson State CC,220305,Frank Theresa,11/15/2022,567.84,Unrestricted Shared Services,Payroll
Jefferson State CC,220306,Smith Victoria,11/15/2022,436.24,Unrestricted Shared Services,Payroll
Jefferson State CC,220307,Charping Ronda,11/15/2022,1135.68,Unrestricted Shared Services,Payroll
Jefferson State CC,220308,Begnaud Phillip,11/15/2022,1376,Unrestricted Shared Services,Payroll
Jefferson State CC,220309,O'Hern David,11/15/2022,645,Unrestricted Shared Services,Payroll
Jefferson State CC,220310,Addington Jennifer,11/15/2022,1580.8,Unrestricted Shared Services,Payroll
Jefferson State CC,220311,Baldwin Gennia,11/15/2022,1081.6,Unrestricted Shared Services,Payroll
Jefferson State CC,220312,Barnes Wilbert,11/15/2022,416,Unrestricted Shared Services,Payroll
Jefferson State CC,220313,Bishop Patrick,11/15/2022,124.8,Unrestricted Shared Services,Payroll
Jefferson State CC,220314,Chappel Delena,11/15/2022,894.4,Unrestricted Shared Services,Payroll
Jefferson State CC,220315,Cobb Jonathan,11/15/2022,520,Unrestricted Shared Services,Payroll
Jefferson State CC,220316,Coleman Natalie,11/15/2022,478.4,Unrestricted Shared Services,Payroll
Jefferson State CC,220317,Collier Cynthia,11/15/2022,249.6,Unrestricted Shared Services,Payroll
Jefferson State CC,220318,Flanagan Soneaqua,11/15/2022,166.4,Unrestricted Shared Services,Payroll
Jefferson State CC,220319,Fletcher La'Toya,11/15/2022,374.4,Unrestricted Shared Services,Payroll
Jefferson State CC,220320,Grace Tonya,11/15/2022,312,Unrestricted Shared Services,Payroll
Jefferson State CC,220321,Hollingsworth Donna,11/15/2022,655.2,Unrestricted Shared Services,Payroll
Jefferson State CC,220322,Keane Annabelle,11/15/2022,249.6,Unrestricted Shared Services,Payroll
Jefferson State CC,220323,Lee Hobert,11/15/2022,374.4,Unrestricted Shared Services,Payroll
Jefferson State CC,220324,Marshall Tommisene,11/15/2022,249.6,Unrestricted Shared Services,Payroll
Jefferson State CC,220325,McLain Christine,11/15/2022,1383.2,Women's Fund-Families Forward,Payroll
Jefferson State CC,220326,Mills Justin,11/15/2022,624,Unrestricted Shared Services,Payroll
Jefferson State CC,220327,Murphy Penny,11/15/2022,104,Unrestricted Shared Services,Payroll
Jefferson State CC,220328,Parsons Charles,11/15/2022,124.8,Unrestricted Shared Services,Payroll
Jefferson State CC,220329,Payne Angela,11/15/2022,1551.55,Unrestricted Shared Services,Payroll
Jefferson State CC,220330,Pullen Lacey,11/15/2022,832,Unrestricted Shared Services,Payroll
Jefferson State CC,220331,Purdy Zane,11/15/2022,249.6,Unrestricted Shared Services,Payroll
Jefferson State CC,220332,Russell Stephanie,11/15/2022,499.2,Unrestricted Shared Services,Payroll
Jefferson State CC,220333,Sloan Kevin,11/15/2022,1497.6,Unrestricted Shared Services,Payroll
Jefferson State CC,220334,Thomas Linda,11/15/2022,499.2,Unrestricted Shared Services,Payroll
Jefferson State CC,220335,Washington Ellise,11/15/2022,499.2,Unrestricted Shared Services,Payroll
Jefferson State CC,220336,Willis Erica,11/15/2022,624,Unrestricted Shared Services,Payroll
Jefferson State CC,220337,Busby Yvette,11/15/2022,988,Unrestricted Shared Services,Payroll
Jefferson State CC,220338,Jones Lesia,11/15/2022,570,Unrestricted Shared Services,Payroll
Jefferson State CC,220339,Glover Anita,11/15/2022,813.56,Unrestricted Shared Services,Payroll
Jefferson State CC,220340,Stewart Janice,11/15/2022,529.76,Unrestricted Shared Services,Payroll
Jefferson State CC,220341,Weems Bryant Denise,11/15/2022,648.01,Unrestricted Shared Services,Payroll
Jefferson State CC,220342,Amerson-Dobbs Jessica,11/15/2022,504,Unrestricted Shared Services,Payroll
Jefferson State CC,220343,Cannon Kimberly,11/15/2022,504,Unrestricted Shared Services,Payroll
Jefferson State CC,220344,Dancy Darryl,11/15/2022,504,Unrestricted Shared Services,Payroll
Jefferson State CC,220345,Gumbs Andrea,11/15/2022,504,Unrestricted Shared Services,Payroll
Jefferson State CC,220346,Hairston Ella,11/15/2022,474,Unrestricted Shared Services,Payroll
Jefferson State CC,220347,Moore Shanine,11/15/2022,451.82,Unrestricted Shared Services,Payroll
Jefferson State CC,220348,Payne Adrian,11/15/2022,504,Unrestricted Shared Services,Payroll
Jefferson State CC,220349,Smith Debra,11/15/2022,504,Unrestricted Shared Services,Payroll
Jefferson State CC,220350,Wood Kelly,11/15/2022,456,Unrestricted Shared Services,Payroll
